Publisher Label,Publisher URI,"Directorate code","Directorate","Service code","Service","Revenue or capital code","Revenue capital","Cost centre","Cost centre description","Bvsub Category","Bvsub description","Bvsum code","Bvsum description","Account code","Account description","Transaction No","Period","Transaction Date","Amount","Classification code","Classification description","Supplier ID","Supplier description","Company registration number","Company registration number Uri","VAT registration number"
"London Borough of Redbridge","http://opendatacommunities.org/doc/london-borough-council/redbridge","1BCENTRALPUB","Central Services to the Public","1CLOCALTAXCO","Local Tax Collection","REV","Revenue","R5760","Local Tax Collection","01-EMPLOYEES","Employees","01A","Direct employee expenses","4","Agency Staff - Pay","3599605","202103",01/07/2020 00:00:00,1133.04,"31230","Employment and Recruitment Agencies","REDACTED DATA","MATRIX SCM LTD","2227962","http://opencorporates.com/companies/gb/2227962","249573468"
"London Borough of Redbridge","http://opendatacommunities.org/doc/london-borough-council/redbridge","1BCENTRALPUB","Central Services to the Public","1CLOCALTAXCO","Local Tax Collection","REV","Revenue","R5760","Local Tax Collection","01-EMPLOYEES","Employees","01A","Direct employee expenses","4","Agency Staff - Pay","3599605","202103",01/07/2020 00:00:00,1147.01,"31230","Employment and Recruitment Agencies","REDACTED DATA","MATRIX SCM LTD","2227962","http://opencorporates.com/companies/gb/2227962","249573468"
"London Borough of Redbridge","http://opendatacommunities.org/doc/london-borough-council/redbridge","1BCENTRALPUB","Central Services to the Public","1CLOCALTAXCO","Local Tax Collection","REV","Revenue","R5760","Local Tax Collection","04-SUPPLIES","Supplies And Services","04H","Grants and subscriptions","5954","Professional Fees","60433135","202103",31/05/2020 00:00:00,8,"20520","Company Registration Agents","REDACTED DATA","COMPANIES HOUSE","",,""
"London Borough of Redbridge","http://opendatacommunities.org/doc/london-borough-council/redbridge","1BCENTRALPUB","Central Services to the Public","1CLOCALTAXCO","Local Tax Collection","REV","Revenue","R5760","Local Tax Collection","04-SUPPLIES","Supplies And Services","04H","Grants and subscriptions","5957","Bailiff Fees","70114194","202103",07/03/2020 00:00:00,0.11,"24230","Debt Collection Agencies","REDACTED DATA","NEWLYN PLC","3770985","http://opencorporates.com/companies/gb/3770985","739828088"
"London Borough of Redbridge","http://opendatacommunities.org/doc/london-borough-council/redbridge","1BCENTRALPUB","Central Services to the Public","1CLOCALTAXCO","Local Tax Collection","REV","Revenue","R5760","Local Tax Collection","04-SUPPLIES","Supplies And Services","04H","Grants and subscriptions","5957","Bailiff Fees","70114192","202103",29/02/2020 00:00:00,260.87,"24230","Debt Collection Agencies","REDACTED DATA","NEWLYN PLC","3770985","http://opencorporates.com/companies/gb/3770985","739828088"
"London Borough of Redbridge","http://opendatacommunities.org/doc/london-borough-council/redbridge","1BCENTRALPUB","Central Services to the Public","1CLOCALTAXCO","Local Tax Collection","REV","Revenue","R5760","Local Tax Collection","04-SUPPLIES","Supplies And Services","04H","Grants and subscriptions","5957","Bailiff Fees","70114197","202103",25/04/2020 00:00:00,4.48,"24230","Debt Collection Agencies","REDACTED DATA","NEWLYN PLC","3770985","http://opencorporates.com/companies/gb/3770985","739828088"
"London Borough of Redbridge","http://opendatacommunities.org/doc/london-borough-council/redbridge","1BCENTRALPUB","Central Services to the Public","1CLOCALTAXCO","Local Tax Collection","REV","Revenue","R5760","Local Tax Collection","04-SUPPLIES","Supplies And Services","04H","Grants and subscriptions","5957","Bailiff Fees","70113905","202103",30/03/2020 00:00:00,75,"24230","Debt Collection Agencies","REDACTED DATA","EQUITA LIMITED","",,""
"London Borough of Redbridge","http://opendatacommunities.org/doc/london-borough-council/redbridge","1BCENTRALPUB","Central Services to the Public","1CLOCALTAXCO","Local Tax Collection","REV","Revenue","R9005","Registrar Service","04-SUPPLIES","Supplies And Services","04A","Equipment, furniture and materials","5503","Equipment Rentals","60435102","202103",30/06/2020 00:00:00,169.9,"0","Not Classified","REDACTED DATA","ANDREWS SYKES","2985657","http://opencorporates.com/companies/gb/2985657","100429524"
"London Borough of Redbridge","http://opendatacommunities.org/doc/london-borough-council/redbridge","1BCENTRALPUB","Central Services to the Public","1CLOCALTAXCO","Local Tax Collection","REV","Revenue","R9005","Registrar Service","04-SUPPLIES","Supplies And Services","04B","Catering","5602","Refreshments","80037208","202103",25/06/2020 00:00:00,4,"84070","Water Suppliers - Bottled","REDACTED DATA","EDEN SPRINGS (UK) LTD (NATURE SPRING)","4063744","http://opencorporates.com/companies/gb/4063744","232160411"
"London Borough of Redbridge","http://opendatacommunities.org/doc/london-borough-council/redbridge","1BCENTRALPUB","Central Services to the Public","1CLOCALTAXCO","Local Tax Collection","REV","Revenue","R9005","Registrar Service","04-SUPPLIES","Supplies And Services","04H","Grants and subscriptions","5954","Professional Fees","60434176","202103",28/05/2020 00:00:00,400,"52570","National Associations","REDACTED DATA","LOCAL REGISTRATION SERVICES ASSOCIATION","6993726","http://opencorporates.com/companies/gb/6993726",""
"London Borough of Redbridge","http://opendatacommunities.org/doc/london-borough-council/redbridge","1BCENTRALPUB","Central Services to the Public","1CLOCALTAXCO","Local Tax Collection","REV","Revenue","R9005","Registrar Service","04-SUPPLIES","Supplies And Services","04K","Miscellaneous expenses","6280","Miscellaneous Expenditure","60434384","202103",19/06/2020 00:00:00,200,"64550","Removals - Business and Industrial","REDACTED DATA","SONNY WHITE","",,"887526960"
"London Borough of Redbridge","http://opendatacommunities.org/doc/london-borough-council/redbridge","1BCENTRALPUB","Central Services to the Public","1CTRADSURDEF","Trading Account Surpluses & Deficits","REV","Revenue","R3971","Local London Director","01-EMPLOYEES","Employees","01A","Direct employee expenses","4","Agency Staff - Pay","60434774","202103",08/06/2020 00:00:00,1425,"61860","Project Management","REDACTED DATA","CUE VIRTUE LTD","10434123","http://opencorporates.com/companies/gb/10434123",""
"London Borough of Redbridge","http://opendatacommunities.org/doc/london-borough-council/redbridge","1BCENTRALPUB","Central Services to the Public","1CTRADSURDEF","Trading Account Surpluses & Deficits","REV","Revenue","R5754","Income","04-SUPPLIES","Supplies And Services","04D","Printing, stationery and general office expenses","5705","Postage","60433755","202103",09/06/2020 00:00:00,1448.52,"49180","Mailing Houses","REDACTED DATA","DSI BILLING SERVICES","3823171","http://opencorporates.com/companies/gb/3823171","739980671"
"London Borough of Redbridge","http://opendatacommunities.org/doc/london-borough-council/redbridge","1BCENTRALPUB","Central Services to the Public","1CTRADSURDEF","Trading Account Surpluses & Deficits","REV","Revenue","R5754","Income","04-SUPPLIES","Supplies And Services","04H","Grants and subscriptions","5954","Professional Fees","60433649","202103",11/05/2020 00:00:00,316.46,"72460","Solicitors","REDACTED DATA","WILKIN CHAPMAN SOLICITORS","",,"127942455"
"London Borough of Redbridge","http://opendatacommunities.org/doc/london-borough-council/redbridge","1BCENTRALPUB","Central Services to the Public","1CTRADSURDEF","Trading Account Surpluses & Deficits","REV","Revenue","R5754","Income","04-SUPPLIES","Supplies And Services","04H","Grants and subscriptions","5954","Professional Fees","60433866","202103",12/06/2020 00:00:00,16.5,"48582","Loans and Debt - Management","REDACTED DATA","MOORCROFT DEBT RECOVERY LTD","1703704","http://opencorporates.com/companies/gb/1703704","453109273"
"London Borough of Redbridge","http://opendatacommunities.org/doc/london-borough-council/redbridge","1BCENTRALPUB","Central Services to the Public","1CTRADSURDEF","Trading Account Surpluses & Deficits","REV","Revenue","R5754","Income","04-SUPPLIES","Supplies And Services","04H","Grants and subscriptions","5954","Professional Fees","60433867","202103",12/06/2020 00:00:00,7.58,"48582","Loans and Debt - Management","REDACTED DATA","MOORCROFT DEBT RECOVERY LTD","1703704","http://opencorporates.com/companies/gb/1703704","453109273"
"London Borough of Redbridge","http://opendatacommunities.org/doc/london-borough-council/redbridge","1BCENTRALPUB","Central Services to the Public","1CTRADSURDEF","Trading Account Surpluses & Deficits","REV","Revenue","R5770","Income Assessment","04-SUPPLIES","Supplies And Services","04D","Printing, stationery and general office expenses","5705","Postage","60433755","202103",09/06/2020 00:00:00,2750,"49180","Mailing Houses","REDACTED DATA","DSI BILLING SERVICES","3823171","http://opencorporates.com/companies/gb/3823171","739980671"
"London Borough of Redbridge","http://opendatacommunities.org/doc/london-borough-council/redbridge","1BCENTRALPUB","Central Services to the Public","1CTRADSURDEF","Trading Account Surpluses & Deficits","REV","Revenue","R5770","Income Assessment","04-SUPPLIES","Supplies And Services","04H","Grants and subscriptions","5954","Professional Fees","60433865","202103",12/06/2020 00:00:00,30,"48582","Loans and Debt - Management","REDACTED DATA","MOORCROFT DEBT RECOVERY LTD","1703704","http://opencorporates.com/companies/gb/1703704","453109273"
"London Borough of Redbridge","http://opendatacommunities.org/doc/london-borough-council/redbridge","1BOTHEROPI&E","Other Operating Income & Expenditure","1CELECTIONS","Elections","REV","Revenue","R9362","Electoral Registration","04-SUPPLIES","Supplies And Services","04B","Catering","5602","Refreshments","80036998","202103",25/03/2020 00:00:00,50.04,"84070","Water Suppliers - Bottled","REDACTED DATA","EDEN SPRINGS (UK) LTD (NATURE SPRING)","4063744","http://opencorporates.com/companies/gb/4063744","232160411"
"London Borough of Redbridge","http://opendatacommunities.org/doc/london-borough-council/redbridge","1BOTHEROPI&E","Other Operating Income & Expenditure","1CELECTIONS","Elections","REV","Revenue","R9362","Electoral Registration","04-SUPPLIES","Supplies And Services","04B","Catering","5602","Refreshments","80037068","202103",25/05/2020 00:00:00,2,"84070","Water Suppliers - Bottled","REDACTED DATA","EDEN SPRINGS (UK) LTD (NATURE SPRING)","4063744","http://opencorporates.com/companies/gb/4063744","232160411"
"London Borough of Redbridge","http://opendatacommunities.org/doc/london-borough-council/redbridge","1BOTHEROPI&E","Other Operating Income & Expenditure","1CELECTIONS","Elections","REV","Revenue","R9362","Electoral Registration","04-SUPPLIES","Supplies And Services","04D","Printing, stationery and general office expenses","5705","Postage","60433220","202103",16/08/2019 00:00:00,66.96,"24510","Delivery Services","REDACTED DATA","ROYAL MAIL GROUP LTD","4138203","http://opencorporates.com/companies/gb/4138203","243170002"
"London Borough of Redbridge","http://opendatacommunities.org/doc/london-borough-council/redbridge","1BOTHEROPI&E","Other Operating Income & Expenditure","1CELECTIONS","Elections","REV","Revenue","R9362","Electoral Registration","04-SUPPLIES","Supplies And Services","04D","Printing, stationery and general office expenses","5705","Postage","60433310","202103",27/04/2020 00:00:00,140.38,"24510","Delivery Services","REDACTED DATA","ROYAL MAIL GROUP LTD","4138203","http://opencorporates.com/companies/gb/4138203","243170002"
"London Borough of Redbridge","http://opendatacommunities.org/doc/london-borough-council/redbridge","1BOTHEROPI&E","Other Operating Income & Expenditure","1CELECTIONS","Elections","REV","Revenue","R9362","Electoral Registration","04-SUPPLIES","Supplies And Services","04D","Printing, stationery and general office expenses","5705","Postage","60433311","202103",01/06/2020 00:00:00,31.84,"24510","Delivery Services","REDACTED DATA","ROYAL MAIL GROUP LTD","4138203","http://opencorporates.com/companies/gb/4138203","243170002"
"London Borough of Redbridge","http://opendatacommunities.org/doc/london-borough-council/redbridge","1BOTHEROPI&E","Other Operating Income & Expenditure","1CELECTIONS","Elections","REV","Revenue","R9362","Electoral Registration","04-SUPPLIES","Supplies And Services","04D","Printing, stationery and general office expenses","5705","Postage","60433258","202103",30/04/2020 00:00:00,263.05,"61820","Printers' Services and Supplies","REDACTED DATA","FINANCIAL DATA MANAGEMENT PLC","2827644","http://opencorporates.com/companies/gb/2827644","690659887"
"London Borough of Redbridge","http://opendatacommunities.org/doc/london-borough-council/redbridge","1BOTHEROPI&E","Other Operating Income & Expenditure","1CELECTIONS","Elections","REV","Revenue","R9362","Electoral Registration","04-SUPPLIES","Supplies And Services","04F","Communications and computing","5853","Computer Software","60434376","202103",19/06/2020 00:00:00,50,"20703","Computer Systems and Software","REDACTED DATA","CIVICA  UK LTD","1628868","http://opencorporates.com/companies/gb/1628868","391171065"
"London Borough of Redbridge","http://opendatacommunities.org/doc/london-borough-council/redbridge","1BOTHEROPI&E","Other Operating Income & Expenditure","1CELECTIONS","Elections","REV","Revenue","R9363","Municipal Elections","04-SUPPLIES","Supplies And Services","04E","Services","5759","Hire Of Venues","60434525","202103",10/02/2020 00:00:00,468.03,"67981","Schools - Local Authority","REDACTED DATA","NEWBURY PARK PRIMARY SCHOOL ACCOUNT","",,""
"London Borough of Redbridge","http://opendatacommunities.org/doc/london-borough-council/redbridge","1BOTHEROPI&E","Other Operating Income & Expenditure","1CELECTIONS","Elections","REV","Revenue","R9363","Municipal Elections","04-SUPPLIES","Supplies And Services","04E","Services","5759","Hire Of Venues","60434417","202103",18/06/2020 00:00:00,200,"67981","Schools - Local Authority","REDACTED DATA","CLORE TIKVA SCHOOL REDBRIDGE","",,""
"London Borough of Redbridge","http://opendatacommunities.org/doc/london-borough-council/redbridge","1BOTHEROPI&E","Other Operating Income & Expenditure","1CELECTIONS","Elections","REV","Revenue","R9363","Municipal Elections","04-SUPPLIES","Supplies And Services","04E","Services","5759","Hire Of Venues","60433566","202103",28/05/2018 00:00:00,200,"67981","Schools - Local Authority","REDACTED DATA","GROVE PRIMARY SCHOOL A/C","",,""
"London Borough of Redbridge","http://opendatacommunities.org/doc/london-borough-council/redbridge","1BOTHEROPI&E","Other Operating Income & Expenditure","1CELECTIONS","Elections","REV","Revenue","R9363","Municipal Elections","04-SUPPLIES","Supplies And Services","04E","Services","5759","Hire Of Venues","60434526","202103",17/06/2020 00:00:00,300,"67981","Schools - Local Authority","REDACTED DATA","OAKDALE INFANTS SCHOOL A/C","",,""
"London Borough of Redbridge","http://opendatacommunities.org/doc/london-borough-council/redbridge","1BOTHEROPI&E","Other Operating Income & Expenditure","1CTRADSURDEF","Trading Account Surpluses & Deficits","REV","Revenue","R7207","Capital Team Staffing","01-EMPLOYEES","Employees","01A","Direct employee expenses","4","Agency Staff - Pay","3599605","202103",01/07/2020 00:00:00,3792.65,"31230","Employment and Recruitment Agencies","REDACTED DATA","MATRIX SCM LTD","2227962","http://opencorporates.com/companies/gb/2227962","249573468"
"London Borough of Redbridge","http://opendatacommunities.org/doc/london-borough-council/redbridge","1BOTHEROPI&E","Other Operating Income & Expenditure","1CTRADSURDEF","Trading Account Surpluses & Deficits","REV","Revenue","R9001","Customer Contact Centre","01-EMPLOYEES","Employees","01A","Direct employee expenses","4","Agency Staff - Pay","60435007","202103",30/06/2020 00:00:00,6054.69,"69240","Security Services","REDACTED DATA","CIS SECURITY LTD","1555444","http://opencorporates.com/companies/gb/1555444","206193092"
"London Borough of Redbridge","http://opendatacommunities.org/doc/london-borough-council/redbridge","1BOTHEROPI&E","Other Operating Income & Expenditure","1CTRADSURDEF","Trading Account Surpluses & Deficits","REV","Revenue","R9001","Customer Contact Centre","04-SUPPLIES","Supplies And Services","04D","Printing, stationery and general office expenses","5710","Stationery","60434279","202103",16/06/2020 00:00:00,648.15,"45170","Information Services","REDACTED DATA","VALTECH LIMITED","3127414","http://opencorporates.com/companies/gb/3127414","628656016"
"London Borough of Redbridge","http://opendatacommunities.org/doc/london-borough-council/redbridge","1BOTHEROPI&E","Other Operating Income & Expenditure","1CTRADSURDEF","Trading Account Surpluses & Deficits","REV","Revenue","R9001","Customer Contact Centre","04-SUPPLIES","Supplies And Services","04D","Printing, stationery and general office expenses","5710","Stationery","60434280","202103",16/06/2020 00:00:00,-648.15,"45170","Information Services","REDACTED DATA","VALTECH LIMITED","3127414","http://opencorporates.com/companies/gb/3127414","628656016"
"London Borough of Redbridge","http://opendatacommunities.org/doc/london-borough-council/redbridge","1BOTHEROPI&E","Other Operating Income & Expenditure","1CTRADSURDEF","Trading Account Surpluses & Deficits","REV","Revenue","R9053","Tree Management","04-SUPPLIES","Supplies And Services","04C","Clothes, uniform and laundry","5651","Protective Clothing","60433113","202103",10/12/2019 00:00:00,14.88,"62000","Protective Clothing - Industrial","REDACTED DATA","BK SAFETY AND WORKWEAR LIMITED","5815362","http://opencorporates.com/companies/gb/5815362","802540175"
"London Borough of Redbridge","http://opendatacommunities.org/doc/london-borough-council/redbridge","1BOTHEROPI&E","Other Operating Income & Expenditure","1CTRADSURDEF","Trading Account Surpluses & Deficits","REV","Revenue","R9053","Tree Management","04-SUPPLIES","Supplies And Services","04C","Clothes, uniform and laundry","5651","Protective Clothing","60433114","202103",08/10/2019 00:00:00,8.93,"62000","Protective Clothing - Industrial","REDACTED DATA","BK SAFETY AND WORKWEAR LIMITED","5815362","http://opencorporates.com/companies/gb/5815362","802540175"
"London Borough of Redbridge","http://opendatacommunities.org/doc/london-borough-council/redbridge","1BOTHEROPI&E","Other Operating Income & Expenditure","1CTRADSURDEF","Trading Account Surpluses & Deficits","REV","Revenue","R9148","Tree Holding Account","02-PREMISES","Premises","02I","Grounds maintenance costs","4753","Trees / Recreational","60434541","202103",23/06/2020 00:00:00,2120,"80228","Tree Work and Forestry Services","REDACTED DATA","BECKER TREE CONTRACTS LIMITED","3668415","http://opencorporates.com/companies/gb/3668415","726078330"
"London Borough of Redbridge","http://opendatacommunities.org/doc/london-borough-council/redbridge","1BOTHEROPI&E","Other Operating Income & Expenditure","1CTRADSURDEF","Trading Account Surpluses & Deficits","REV","Revenue","R9148","Tree Holding Account","02-PREMISES","Premises","02I","Grounds maintenance costs","4753","Trees / Recreational","60434860","202103",29/06/2020 00:00:00,2090,"80228","Tree Work and Forestry Services","REDACTED DATA","BECKER TREE CONTRACTS LIMITED","3668415","http://opencorporates.com/companies/gb/3668415","726078330"
"London Borough of Redbridge","http://opendatacommunities.org/doc/london-borough-council/redbridge","1BOTHEROPI&E","Other Operating Income & Expenditure","1CTRADSURDEF","Trading Account Surpluses & Deficits","REV","Revenue","R9148","Tree Holding Account","02-PREMISES","Premises","02I","Grounds maintenance costs","4753","Trees / Recreational","60434278","202103",17/06/2020 00:00:00,195,"80228","Tree Work and Forestry Services","REDACTED DATA","DEAN TUCKER LTD","9178711","http://opencorporates.com/companies/gb/9178711","193245792"
"London Borough of Redbridge","http://opendatacommunities.org/doc/london-borough-council/redbridge","1BOTHEROPI&E","Other Operating Income & Expenditure","1CTRADSURDEF","Trading Account Surpluses & Deficits","REV","Revenue","R9148","Tree Holding Account","02-PREMISES","Premises","02I","Grounds maintenance costs","4753","Trees / Recreational","60434910","202103",30/06/2020 00:00:00,3042.15,"80228","Tree Work and Forestry Services","REDACTED DATA","DEAN TUCKER LTD","9178711","http://opencorporates.com/companies/gb/9178711","193245792"
"London Borough of Redbridge","http://opendatacommunities.org/doc/london-borough-council/redbridge","1BOTHEROPI&E","Other Operating Income & Expenditure","1CTRADSURDEF","Trading Account Surpluses & Deficits","REV","Revenue","R9148","Tree Holding Account","02-PREMISES","Premises","02I","Grounds maintenance costs","4753","Trees / Recreational","60433921","202103",12/06/2020 00:00:00,750,"80228","Tree Work and Forestry Services","REDACTED DATA","KINGS LANDSCAPES","5411774","http://opencorporates.com/companies/gb/5411774","838472105"
"London Borough of Redbridge","http://opendatacommunities.org/doc/london-borough-council/redbridge","1BOTHEROPI&E","Other Operating Income & Expenditure","1CTRADSURDEF","Trading Account Surpluses & Deficits","REV","Revenue","R9148","Tree Holding Account","02-PREMISES","Premises","02I","Grounds maintenance costs","4753","Trees / Recreational","60433920","202103",12/06/2020 00:00:00,55,"80228","Tree Work and Forestry Services","REDACTED DATA","KINGS LANDSCAPES","5411774","http://opencorporates.com/companies/gb/5411774","838472105"
"London Borough of Redbridge","http://opendatacommunities.org/doc/london-borough-council/redbridge","1BOTHEROPI&E","Other Operating Income & Expenditure","1CTRADSURDEF","Trading Account Surpluses & Deficits","REV","Revenue","R9148","Tree Holding Account","02-PREMISES","Premises","02I","Grounds maintenance costs","4753","Trees / Recreational","60434246","202103",17/06/2020 00:00:00,600,"80228","Tree Work and Forestry Services","REDACTED DATA","KINGS LANDSCAPES","5411774","http://opencorporates.com/companies/gb/5411774","838472105"
"London Borough of Redbridge","http://opendatacommunities.org/doc/london-borough-council/redbridge","1BOTHEROPI&E","Other Operating Income & Expenditure","1CTRADSURDEF","Trading Account Surpluses & Deficits","REV","Revenue","R9148","Tree Holding Account","02-PREMISES","Premises","02I","Grounds maintenance costs","4753","Trees / Recreational","60433535","202103",05/06/2020 00:00:00,116,"90043","Highway Maintenance","REDACTED DATA","S H GOSS & CO LTD","",,""
"London Borough of Redbridge","http://opendatacommunities.org/doc/london-borough-council/redbridge","1BOTHEROPI&E","Other Operating Income & Expenditure","1CTRADSURDEF","Trading Account Surpluses & Deficits","REV","Revenue","R9148","Tree Holding Account","02-PREMISES","Premises","02I","Grounds maintenance costs","4753","Trees / Recreational","60433526","202103",05/06/2020 00:00:00,4.13,"90043","Highway Maintenance","REDACTED DATA","S H GOSS & CO LTD","",,""
"London Borough of Redbridge","http://opendatacommunities.org/doc/london-borough-council/redbridge","1BOTHEROPI&E","Other Operating Income & Expenditure","1CTRADSURDEF","Trading Account Surpluses & Deficits","REV","Revenue","R9148","Tree Holding Account","02-PREMISES","Premises","02I","Grounds maintenance costs","4753","Trees / Recreational","60434864","202103",29/06/2020 00:00:00,427.56,"90043","Highway Maintenance","REDACTED DATA","S H GOSS & CO LTD","",,""
"London Borough of Redbridge","http://opendatacommunities.org/doc/london-borough-council/redbridge","6BADULTSOCIA","Adult Social Care","6CLONGT1864","Long-Term Support 18 - 64 Years","REV","Revenue","R4441","Older People - Seven Kings","05-THIRD","Third Party Payments","05A","Independent units within the council","6502","Agency Homecare","91149305","202103",29/05/2020 00:00:00,191.59,"43419","Home Care Services","REDACTED DATA","DIVERSITY HEALTH & SOCIAL CARE LTD","8238468","http://opencorporates.com/companies/gb/8238468","1367514244"
"London Borough of Redbridge","http://opendatacommunities.org/doc/london-borough-council/redbridge","6BADULTSOCIA","Adult Social Care","6CLONGT1864","Long-Term Support 18 - 64 Years","REV","Revenue","R4441","Older People - Seven Kings","05-THIRD","Third Party Payments","05A","Independent units within the council","6502","Agency Homecare","91149601","202103",15/05/2020 00:00:00,172.76,"64710","Residential Care Homes","REDACTED DATA","NOMASE CARE LTD","8859648","http://opencorporates.com/companies/gb/8859648","194983937"
"London Borough of Redbridge","http://opendatacommunities.org/doc/london-borough-council/redbridge","6BADULTSOCIA","Adult Social Care","6CLONGT1864","Long-Term Support 18 - 64 Years","REV","Revenue","R4441","Older People - Seven Kings","05-THIRD","Third Party Payments","05A","Independent units within the council","6502","Agency Homecare","91153352","202103",19/06/2020 00:00:00,109.48,"43419","Home Care Services","REDACTED DATA","DIVERSITY HEALTH & SOCIAL CARE LTD","8238468","http://opencorporates.com/companies/gb/8238468","1367514244"
"London Borough of Redbridge","http://opendatacommunities.org/doc/london-borough-council/redbridge","6BADULTSOCIA","Adult Social Care","6CLONGT1864","Long-Term Support 18 - 64 Years","REV","Revenue","R4441","Older People - Seven Kings","05-THIRD","Third Party Payments","05A","Independent units within the council","6502","Agency Homecare","91150369","202103",04/06/2020 00:00:00,191.59,"43419","Home Care Services","REDACTED DATA","DIVERSITY HEALTH & SOCIAL CARE LTD","8238468","http://opencorporates.com/companies/gb/8238468","1367514244"
"London Borough of Redbridge","http://opendatacommunities.org/doc/london-borough-council/redbridge","6BADULTSOCIA","Adult Social Care","6CLONGT1864","Long-Term Support 18 - 64 Years","REV","Revenue","R4441","Older People - Seven Kings","05-THIRD","Third Party Payments","05A","Independent units within the council","6502","Agency Homecare","91150370","202103",04/06/2020 00:00:00,492.66,"43419","Home Care Services","REDACTED DATA","DIVERSITY HEALTH & SOCIAL CARE LTD","8238468","http://opencorporates.com/companies/gb/8238468","1367514244"
"London Borough of Redbridge","http://opendatacommunities.org/doc/london-borough-council/redbridge","6BADULTSOCIA","Adult Social Care","6CLONGT1864","Long-Term Support 18 - 64 Years","REV","Revenue","R4441","Older People - Seven Kings","05-THIRD","Third Party Payments","05A","Independent units within the council","6502","Agency Homecare","91150371","202103",04/06/2020 00:00:00,383.18,"43419","Home Care Services","REDACTED DATA","DIVERSITY HEALTH & SOCIAL CARE LTD","8238468","http://opencorporates.com/companies/gb/8238468","1367514244"
"London Borough of Redbridge","http://opendatacommunities.org/doc/london-borough-council/redbridge","6BADULTSOCIA","Adult Social Care","6CLONGT1864","Long-Term Support 18 - 64 Years","REV","Revenue","R4441","Older People - Seven Kings","05-THIRD","Third Party Payments","05A","Independent units within the council","6502","Agency Homecare","91150870","202103",29/05/2020 00:00:00,273.7,"43419","Home Care Services","REDACTED DATA","Spire Home Care & Training Limited","12254019","http://opencorporates.com/companies/gb/12254019",""
"London Borough of Redbridge","http://opendatacommunities.org/doc/london-borough-council/redbridge","6BADULTSOCIA","Adult Social Care","6CLONGT1864","Long-Term Support 18 - 64 Years","REV","Revenue","R4441","Older People - Seven Kings","05-THIRD","Third Party Payments","05A","Independent units within the council","6502","Agency Homecare","91149217","202103",26/05/2020 00:00:00,175.95,"79980","Training Services","REDACTED DATA","CHOSEN CARE GROUP LTD","6942967","http://opencorporates.com/companies/gb/6942967",""
"London Borough of Redbridge","http://opendatacommunities.org/doc/london-borough-council/redbridge","6BADULTSOCIA","Adult Social Care","6CLONGT1864","Long-Term Support 18 - 64 Years","REV","Revenue","R4441","Older People - Seven Kings","05-THIRD","Third Party Payments","05A","Independent units within the council","6502","Agency Homecare","91150811","202103",19/05/2020 00:00:00,152.49,"43419","Home Care Services","REDACTED DATA","Spire Home Care & Training Limited","12254019","http://opencorporates.com/companies/gb/12254019",""
"London Borough of Redbridge","http://opendatacommunities.org/doc/london-borough-council/redbridge","6BADULTSOCIA","Adult Social Care","6CLONGT1864","Long-Term Support 18 - 64 Years","REV","Revenue","R4441","Older People - Seven Kings","05-THIRD","Third Party Payments","05A","Independent units within the council","6502","Agency Homecare","91150853","202103",28/05/2020 00:00:00,218.96,"43419","Home Care Services","REDACTED DATA","Spire Home Care & Training Limited","12254019","http://opencorporates.com/companies/gb/12254019",""
"London Borough of Redbridge","http://opendatacommunities.org/doc/london-borough-council/redbridge","6BADULTSOCIA","Adult Social Care","6CLONGT1864","Long-Term Support 18 - 64 Years","REV","Revenue","R4441","Older People - Seven Kings","05-THIRD","Third Party Payments","05A","Independent units within the council","6502","Agency Homecare","91150855","202103",29/05/2020 00:00:00,238.51,"43419","Home Care Services","REDACTED DATA","Spire Home Care & Training Limited","12254019","http://opencorporates.com/companies/gb/12254019",""
"London Borough of Redbridge","http://opendatacommunities.org/doc/london-borough-council/redbridge","1BOTHEROPI&E","Other Operating Income & Expenditure","1CTRADSURDEF","Trading Account Surpluses & Deficits","REV","Revenue","R9150","Bank Charges / Audit Fees","09-INCOME","Income","09B","Other Grants/Reimbursements and Contributions","8350","Prompt Payment Discount","70114212","202103",12/07/2019 00:00:00,44.93,"20703","Computer Systems and Software","REDACTED DATA","ASSOCIATED CONSULTANTS LTD","2449243","http://opencorporates.com/companies/gb/2449243","540766441"
"London Borough of Redbridge","http://opendatacommunities.org/doc/london-borough-council/redbridge","1BOTHEROPI&E","Other Operating Income & Expenditure","1CTRADSURDEF","Trading Account Surpluses & Deficits","REV","Revenue","R9152","Operational Accounting","01-EMPLOYEES","Employees","01A","Direct employee expenses","4","Agency Staff - Pay","3599605","202103",01/07/2020 00:00:00,2530.1,"31230","Employment and Recruitment Agencies","REDACTED DATA","MATRIX SCM LTD","2227962","http://opencorporates.com/companies/gb/2227962","249573468"
"London Borough of Redbridge","http://opendatacommunities.org/doc/london-borough-council/redbridge","1BOTHEROPI&E","Other Operating Income & Expenditure","1CTRADSURDEF","Trading Account Surpluses & Deficits","REV","Revenue","R9152","Operational Accounting","01-EMPLOYEES","Employees","01A","Direct employee expenses","4","Agency Staff - Pay","3599605","202103",01/07/2020 00:00:00,2752.65,"31230","Employment and Recruitment Agencies","REDACTED DATA","MATRIX SCM LTD","2227962","http://opencorporates.com/companies/gb/2227962","249573468"
"London Borough of Redbridge","http://opendatacommunities.org/doc/london-borough-council/redbridge","1BOTHEROPI&E","Other Operating Income & Expenditure","1CTRADSURDEF","Trading Account Surpluses & Deficits","REV","Revenue","R9157","Counter Fraud","05-THIRD","Third Party Payments","05A","Independent units within the council","6513","Agency & Contracted Services","60435084","202103",22/06/2020 00:00:00,10250,"5480","Auditors","REDACTED DATA","PRICEWATERHOUSECOOPERS","OC303525","http://opencorporates.com/companies/gb/OC303525","243823957"
"London Borough of Redbridge","http://opendatacommunities.org/doc/london-borough-council/redbridge","1BOTHEROPI&E","Other Operating Income & Expenditure","1CTRADSURDEF","Trading Account Surpluses & Deficits","REV","Revenue","R9157","Counter Fraud","05-THIRD","Third Party Payments","05A","Independent units within the council","6513","Agency & Contracted Services","60435085","202103",22/06/2020 00:00:00,13200,"5480","Auditors","REDACTED DATA","PRICEWATERHOUSECOOPERS","OC303525","http://opencorporates.com/companies/gb/OC303525","243823957"
"London Borough of Redbridge","http://opendatacommunities.org/doc/london-borough-council/redbridge","1BOTHEROPI&E","Other Operating Income & Expenditure","1CTRADSURDEF","Trading Account Surpluses & Deficits","REV","Revenue","R9157","Counter Fraud","05-THIRD","Third Party Payments","05A","Independent units within the council","6513","Agency & Contracted Services","60435083","202103",22/06/2020 00:00:00,13300,"5480","Auditors","REDACTED DATA","PRICEWATERHOUSECOOPERS","OC303525","http://opencorporates.com/companies/gb/OC303525","243823957"
"London Borough of Redbridge","http://opendatacommunities.org/doc/london-borough-council/redbridge","1BOTHEROPI&E","Other Operating Income & Expenditure","1CTRADSURDEF","Trading Account Surpluses & Deficits","REV","Revenue","R9252","Programme Services","01-EMPLOYEES","Employees","01A","Direct employee expenses","4","Agency Staff - Pay","3599605","202103",01/07/2020 00:00:00,3092.3,"31230","Employment and Recruitment Agencies","REDACTED DATA","MATRIX SCM LTD","2227962","http://opencorporates.com/companies/gb/2227962","249573468"
"London Borough of Redbridge","http://opendatacommunities.org/doc/london-borough-council/redbridge","1BOTHEROPI&E","Other Operating Income & Expenditure","1CTRADSURDEF","Trading Account Surpluses & Deficits","REV","Revenue","R9252","Programme Services","04-SUPPLIES","Supplies And Services","04F","Communications and computing","5851","Computer Equipment - Purchases","60433963","202103",12/06/2020 00:00:00,34.95,"20703","Computer Systems and Software","REDACTED DATA","INSIGHT DIRECT (UK) LTD.","2579852","http://opencorporates.com/companies/gb/2579852","746075129"
"London Borough of Redbridge","http://opendatacommunities.org/doc/london-borough-council/redbridge","1BOTHEROPI&E","Other Operating Income & Expenditure","1CTRADSURDEF","Trading Account Surpluses & Deficits","REV","Revenue","R9252","Programme Services","04-SUPPLIES","Supplies And Services","04F","Communications and computing","5851","Computer Equipment - Purchases","60433769","202103",09/06/2020 00:00:00,370,"20703","Computer Systems and Software","REDACTED DATA","SIMPLE TECHNOLOGY (UK) LTD","2655125","http://opencorporates.com/companies/gb/2655125","582072836"
"London Borough of Redbridge","http://opendatacommunities.org/doc/london-borough-council/redbridge","1BOTHEROPI&E","Other Operating Income & Expenditure","1CTRADSURDEF","Trading Account Surpluses & Deficits","REV","Revenue","R9252","Programme Services","04-SUPPLIES","Supplies And Services","04F","Communications and computing","5851","Computer Equipment - Purchases","60435053","202103",01/04/2020 00:00:00,8514.68,"76520","Telecommunications Equipment and Systems","REDACTED DATA","DAISY COMMUNICATIONS LTD","4145329","http://opencorporates.com/companies/gb/4145329","703444170"
"London Borough of Redbridge","http://opendatacommunities.org/doc/london-borough-council/redbridge","1BOTHEROPI&E","Other Operating Income & Expenditure","1CTRADSURDEF","Trading Account Surpluses & Deficits","REV","Revenue","R9252","Programme Services","04-SUPPLIES","Supplies And Services","04F","Communications and computing","5853","Computer Software","60434832","202103",26/06/2020 00:00:00,7087,"20703","Computer Systems and Software","REDACTED DATA","SITEMORSE LTD","8451256","http://opencorporates.com/companies/gb/8451256","158924766"
"London Borough of Redbridge","http://opendatacommunities.org/doc/london-borough-council/redbridge","1BOTHEROPI&E","Other Operating Income & Expenditure","1CTRADSURDEF","Trading Account Surpluses & Deficits","REV","Revenue","R9252","Programme Services","04-SUPPLIES","Supplies And Services","04F","Communications and computing","5853","Computer Software","60433966","202103",06/01/2020 00:00:00,94.05,"35240","Financial Services","REDACTED DATA","PCF PRINT MANAGEMENT LTD","3305359","http://opencorporates.com/companies/gb/3305359","918465791"
"London Borough of Redbridge","http://opendatacommunities.org/doc/london-borough-council/redbridge","1BOTHEROPI&E","Other Operating Income & Expenditure","1CTRADSURDEF","Trading Account Surpluses & Deficits","REV","Revenue","R9252","Programme Services","04-SUPPLIES","Supplies And Services","04F","Communications and computing","5853","Computer Software","60434084","202103",16/06/2020 00:00:00,97281,"20703","Computer Systems and Software","REDACTED DATA","SOFTCAT LTD","2174990","http://opencorporates.com/companies/gb/2174990","491848503"
"London Borough of Redbridge","http://opendatacommunities.org/doc/london-borough-council/redbridge","1BOTHEROPI&E","Other Operating Income & Expenditure","1CTRADSURDEF","Trading Account Surpluses & Deficits","REV","Revenue","R9252","Programme Services","04-SUPPLIES","Supplies And Services","04F","Communications and computing","5853","Computer Software","60434058","202103",16/06/2020 00:00:00,4995,"12100","Business and Management Consultants","REDACTED DATA","OLM SYSTEM LTD T/AS HYTEC INFORMATION SECURITY LTD","2615716","http://opencorporates.com/companies/gb/2615716","577661495"
"London Borough of Redbridge","http://opendatacommunities.org/doc/london-borough-council/redbridge","1BOTHEROPI&E","Other Operating Income & Expenditure","1CTRADSURDEF","Trading Account Surpluses & Deficits","REV","Revenue","R9254","Infrastructure","01-EMPLOYEES","Employees","01B","Indirect employee expenses","2400","Advertising For Staff","60434676","202103",25/06/2020 00:00:00,5459.7,"31230","Employment and Recruitment Agencies","REDACTED DATA","ALLEN LANE LIMITED","5115229","http://opencorporates.com/companies/gb/5115229","835970985"
"London Borough of Redbridge","http://opendatacommunities.org/doc/london-borough-council/redbridge","1BOTHEROPI&E","Other Operating Income & Expenditure","1CTRADSURDEF","Trading Account Surpluses & Deficits","REV","Revenue","R9254","Infrastructure","01-EMPLOYEES","Employees","01B","Indirect employee expenses","2400","Advertising For Staff","60434678","202103",25/06/2020 00:00:00,1988.7,"31230","Employment and Recruitment Agencies","REDACTED DATA","ALLEN LANE LIMITED","5115229","http://opencorporates.com/companies/gb/5115229","835970985"
"London Borough of Redbridge","http://opendatacommunities.org/doc/london-borough-council/redbridge","1BOTHEROPI&E","Other Operating Income & Expenditure","1CTRADSURDEF","Trading Account Surpluses & Deficits","REV","Revenue","R9254","Infrastructure","04-SUPPLIES","Supplies And Services","04F","Communications and computing","5852","Computer Equipment - Repairs & Maintenance","60434409","202103",11/06/2020 00:00:00,5862,"20640","Computer Maintenance and Repairs","REDACTED DATA","PARK PLACE TECHNOLOGIES","9398203","http://opencorporates.com/companies/gb/9398203","213328149"
"London Borough of Redbridge","http://opendatacommunities.org/doc/london-borough-council/redbridge","1BOTHEROPI&E","Other Operating Income & Expenditure","1CTRADSURDEF","Trading Account Surpluses & Deficits","REV","Revenue","R9254","Infrastructure","04-SUPPLIES","Supplies And Services","04F","Communications and computing","5854","Exchange Line Rental","3598559","202103",10/06/2020 00:00:00,332.05,"76520","Telecommunications Equipment and Systems","REDACTED DATA","O2 (UK) LTD","",,""
"London Borough of Redbridge","http://opendatacommunities.org/doc/london-borough-council/redbridge","1BOTHEROPI&E","Other Operating Income & Expenditure","1CTRADSURDEF","Trading Account Surpluses & Deficits","REV","Revenue","R9254","Infrastructure","04-SUPPLIES","Supplies And Services","04F","Communications and computing","5854","Exchange Line Rental","3598559","202103",10/06/2020 00:00:00,301,"76520","Telecommunications Equipment and Systems","REDACTED DATA","O2 (UK) LTD","",,""
"London Borough of Redbridge","http://opendatacommunities.org/doc/london-borough-council/redbridge","1BOTHEROPI&E","Other Operating Income & Expenditure","1CTRADSURDEF","Trading Account Surpluses & Deficits","REV","Revenue","R9254","Infrastructure","04-SUPPLIES","Supplies And Services","04F","Communications and computing","5854","Exchange Line Rental","3596221","202103",01/06/2020 00:00:00,27.8,"76510","Telecommunication Services","REDACTED DATA","VIRGIN MEDIA PAYMENTS LTD(MAIN ACCT)","1785381","http://opencorporates.com/companies/gb/1785381","591819014"
"London Borough of Redbridge","http://opendatacommunities.org/doc/london-borough-council/redbridge","1BOTHEROPI&E","Other Operating Income & Expenditure","1CTRADSURDEF","Trading Account Surpluses & Deficits","REV","Revenue","R9254","Infrastructure","04-SUPPLIES","Supplies And Services","04F","Communications and computing","5854","Exchange Line Rental","3596222","202103",01/06/2020 00:00:00,50.76,"76510","Telecommunication Services","REDACTED DATA","VIRGIN MEDIA PAYMENTS LTD(MAIN ACCT)","1785381","http://opencorporates.com/companies/gb/1785381","591819014"
"London Borough of Redbridge","http://opendatacommunities.org/doc/london-borough-council/redbridge","1BOTHEROPI&E","Other Operating Income & Expenditure","1CTRADSURDEF","Trading Account Surpluses & Deficits","REV","Revenue","R9254","Infrastructure","04-SUPPLIES","Supplies And Services","04F","Communications and computing","5854","Exchange Line Rental","3596226","202103",27/05/2020 00:00:00,7,"76510","Telecommunication Services","REDACTED DATA","VIRGIN MEDIA PAYMENTS LTD(MAIN ACCT)","1785381","http://opencorporates.com/companies/gb/1785381","591819014"
"London Borough of Redbridge","http://opendatacommunities.org/doc/london-borough-council/redbridge","1BOTHEROPI&E","Other Operating Income & Expenditure","1CTRADSURDEF","Trading Account Surpluses & Deficits","REV","Revenue","R9254","Infrastructure","04-SUPPLIES","Supplies And Services","04F","Communications and computing","5854","Exchange Line Rental","3596227","202103",27/05/2020 00:00:00,7,"76510","Telecommunication Services","REDACTED DATA","VIRGIN MEDIA PAYMENTS LTD(MAIN ACCT)","1785381","http://opencorporates.com/companies/gb/1785381","591819014"
"London Borough of Redbridge","http://opendatacommunities.org/doc/london-borough-council/redbridge","1BOTHEROPI&E","Other Operating Income & Expenditure","1CTRADSURDEF","Trading Account Surpluses & Deficits","REV","Revenue","R9254","Infrastructure","04-SUPPLIES","Supplies And Services","04F","Communications and computing","5854","Exchange Line Rental","3596228","202103",27/05/2020 00:00:00,7,"76510","Telecommunication Services","REDACTED DATA","VIRGIN MEDIA PAYMENTS LTD(MAIN ACCT)","1785381","http://opencorporates.com/companies/gb/1785381","591819014"
"London Borough of Redbridge","http://opendatacommunities.org/doc/london-borough-council/redbridge","1BOTHEROPI&E","Other Operating Income & Expenditure","1CTRADSURDEF","Trading Account Surpluses & Deficits","REV","Revenue","R9254","Infrastructure","04-SUPPLIES","Supplies And Services","04F","Communications and computing","5854","Exchange Line Rental","3596229","202103",27/05/2020 00:00:00,7,"76510","Telecommunication Services","REDACTED DATA","VIRGIN MEDIA PAYMENTS LTD(MAIN ACCT)","1785381","http://opencorporates.com/companies/gb/1785381","591819014"
"London Borough of Redbridge","http://opendatacommunities.org/doc/london-borough-council/redbridge","1BOTHEROPI&E","Other Operating Income & Expenditure","1CTRADSURDEF","Trading Account Surpluses & Deficits","REV","Revenue","R9254","Infrastructure","04-SUPPLIES","Supplies And Services","04F","Communications and computing","5854","Exchange Line Rental","3596230","202103",27/05/2020 00:00:00,7,"76510","Telecommunication Services","REDACTED DATA","VIRGIN MEDIA PAYMENTS LTD(MAIN ACCT)","1785381","http://opencorporates.com/companies/gb/1785381","591819014"
"London Borough of Redbridge","http://opendatacommunities.org/doc/london-borough-council/redbridge","1BOTHEROPI&E","Other Operating Income & Expenditure","1CTRADSURDEF","Trading Account Surpluses & Deficits","REV","Revenue","R9254","Infrastructure","04-SUPPLIES","Supplies And Services","04F","Communications and computing","5854","Exchange Line Rental","3596231","202103",27/05/2020 00:00:00,7,"76510","Telecommunication Services","REDACTED DATA","VIRGIN MEDIA PAYMENTS LTD(MAIN ACCT)","1785381","http://opencorporates.com/companies/gb/1785381","591819014"
"London Borough of Redbridge","http://opendatacommunities.org/doc/london-borough-council/redbridge","1BOTHEROPI&E","Other Operating Income & Expenditure","1CTRADSURDEF","Trading Account Surpluses & Deficits","REV","Revenue","R9254","Infrastructure","04-SUPPLIES","Supplies And Services","04F","Communications and computing","5854","Exchange Line Rental","3596232","202103",27/05/2020 00:00:00,7,"76510","Telecommunication Services","REDACTED DATA","VIRGIN MEDIA PAYMENTS LTD(MAIN ACCT)","1785381","http://opencorporates.com/companies/gb/1785381","591819014"
"London Borough of Redbridge","http://opendatacommunities.org/doc/london-borough-council/redbridge","1BOTHEROPI&E","Other Operating Income & Expenditure","1CTRADSURDEF","Trading Account Surpluses & Deficits","REV","Revenue","R9254","Infrastructure","04-SUPPLIES","Supplies And Services","04F","Communications and computing","5854","Exchange Line Rental","3596233","202103",27/05/2020 00:00:00,7,"76510","Telecommunication Services","REDACTED DATA","VIRGIN MEDIA PAYMENTS LTD(MAIN ACCT)","1785381","http://opencorporates.com/companies/gb/1785381","591819014"
"London Borough of Redbridge","http://opendatacommunities.org/doc/london-borough-council/redbridge","1BOTHEROPI&E","Other Operating Income & Expenditure","1CTRADSURDEF","Trading Account Surpluses & Deficits","REV","Revenue","R9254","Infrastructure","04-SUPPLIES","Supplies And Services","04F","Communications and computing","5868","IT Support Contract","60433913","202103",11/06/2020 00:00:00,3443.39,"20617","Computer Bureau and Facilities Management","REDACTED DATA","ENSONO LTD","3276974","http://opencorporates.com/companies/gb/3276974","115105270"
"London Borough of Redbridge","http://opendatacommunities.org/doc/london-borough-council/redbridge","1BOTHEROPI&E","Other Operating Income & Expenditure","1CTRADSURDEF","Trading Account Surpluses & Deficits","REV","Revenue","R9254","Infrastructure","04-SUPPLIES","Supplies And Services","04F","Communications and computing","5868","IT Support Contract","60434672","202103",22/06/2020 00:00:00,71789.61,"20617","Computer Bureau and Facilities Management","REDACTED DATA","ENSONO LTD","3276974","http://opencorporates.com/companies/gb/3276974","115105270"
"London Borough of Redbridge","http://opendatacommunities.org/doc/london-borough-council/redbridge","1BOTHEROPI&E","Other Operating Income & Expenditure","1CTRADSURDEF","Trading Account Surpluses & Deficits","REV","Revenue","R9254","Infrastructure","04-SUPPLIES","Supplies And Services","04F","Communications and computing","5868","IT Support Contract","60433787","202103",10/06/2020 00:00:00,558,"20703","Computer Systems and Software","REDACTED DATA","TRUSTMARQUE SOLUTIONS LTD","2183240","http://opencorporates.com/companies/gb/2183240","618184140"
"London Borough of Redbridge","http://opendatacommunities.org/doc/london-borough-council/redbridge","1BOTHEROPI&E","Other Operating Income & Expenditure","1CTRADSURDEF","Trading Account Surpluses & Deficits","REV","Revenue","R9255","Support","01-EMPLOYEES","Employees","01B","Indirect employee expenses","2400","Advertising For Staff","60434135","202103",16/06/2020 00:00:00,2580.9,"31230","Employment and Recruitment Agencies","REDACTED DATA","ALLEN LANE LIMITED","5115229","http://opencorporates.com/companies/gb/5115229","835970985"
"London Borough of Redbridge","http://opendatacommunities.org/doc/london-borough-council/redbridge","1BOTHEROPI&E","Other Operating Income & Expenditure","1CTRADSURDEF","Trading Account Surpluses & Deficits","REV","Revenue","R9255","Support","01-EMPLOYEES","Employees","01B","Indirect employee expenses","2400","Advertising For Staff","60434675","202103",25/06/2020 00:00:00,3671.1,"31230","Employment and Recruitment Agencies","REDACTED DATA","ALLEN LANE LIMITED","5115229","http://opencorporates.com/companies/gb/5115229","835970985"
"London Borough of Redbridge","http://opendatacommunities.org/doc/london-borough-council/redbridge","1BOTHEROPI&E","Other Operating Income & Expenditure","1CTRADSURDEF","Trading Account Surpluses & Deficits","REV","Revenue","R9255","Support","01-EMPLOYEES","Employees","01B","Indirect employee expenses","2400","Advertising For Staff","60434677","202103",25/06/2020 00:00:00,1988.7,"31230","Employment and Recruitment Agencies","REDACTED DATA","ALLEN LANE LIMITED","5115229","http://opencorporates.com/companies/gb/5115229","835970985"
"London Borough of Redbridge","http://opendatacommunities.org/doc/london-borough-council/redbridge","1BOTHEROPI&E","Other Operating Income & Expenditure","1CTRADSURDEF","Trading Account Surpluses & Deficits","REV","Revenue","R9255","Support","04-SUPPLIES","Supplies And Services","04F","Communications and computing","5858","Phones","3598559","202103",10/06/2020 00:00:00,10,"76520","Telecommunications Equipment and Systems","REDACTED DATA","O2 (UK) LTD","",,""
"London Borough of Redbridge","http://opendatacommunities.org/doc/london-borough-council/redbridge","1BOTHEROPI&E","Other Operating Income & Expenditure","1CTRADSURDEF","Trading Account Surpluses & Deficits","REV","Revenue","R9255","Support","04-SUPPLIES","Supplies And Services","04F","Communications and computing","5858","Phones","3598559","202103",10/06/2020 00:00:00,11.71,"76520","Telecommunications Equipment and Systems","REDACTED DATA","O2 (UK) LTD","",,""
"London Borough of Redbridge","http://opendatacommunities.org/doc/london-borough-council/redbridge","1BOTHEROPI&E","Other Operating Income & Expenditure","1CTRADSURDEF","Trading Account Surpluses & Deficits","REV","Revenue","R9255","Support","04-SUPPLIES","Supplies And Services","04F","Communications and computing","5858","Phones","3598559","202103",10/06/2020 00:00:00,11.05,"76520","Telecommunications Equipment and Systems","REDACTED DATA","O2 (UK) LTD","",,""
"London Borough of Redbridge","http://opendatacommunities.org/doc/london-borough-council/redbridge","1BOTHEROPI&E","Other Operating Income & Expenditure","1CTRADSURDEF","Trading Account Surpluses & Deficits","REV","Revenue","R9255","Support","04-SUPPLIES","Supplies And Services","04F","Communications and computing","5858","Phones","3598559","202103",10/06/2020 00:00:00,10,"76520","Telecommunications Equipment and Systems","REDACTED DATA","O2 (UK) LTD","",,""
"London Borough of Redbridge","http://opendatacommunities.org/doc/london-borough-council/redbridge","1BOTHEROPI&E","Other Operating Income & Expenditure","1CTRADSURDEF","Trading Account Surpluses & Deficits","REV","Revenue","R9255","Support","04-SUPPLIES","Supplies And Services","04F","Communications and computing","5858","Phones","3598559","202103",10/06/2020 00:00:00,16.1,"76520","Telecommunications Equipment and Systems","REDACTED DATA","O2 (UK) LTD","",,""
"London Borough of Redbridge","http://opendatacommunities.org/doc/london-borough-council/redbridge","1BOTHEROPI&E","Other Operating Income & Expenditure","1CTRADSURDEF","Trading Account Surpluses & Deficits","REV","Revenue","R9255","Support","04-SUPPLIES","Supplies And Services","04F","Communications and computing","5858","Phones","3598559","202103",10/06/2020 00:00:00,10,"76520","Telecommunications Equipment and Systems","REDACTED DATA","O2 (UK) LTD","",,""
"London Borough of Redbridge","http://opendatacommunities.org/doc/london-borough-council/redbridge","1BOTHEROPI&E","Other Operating Income & Expenditure","1CTRADSURDEF","Trading Account Surpluses & Deficits","REV","Revenue","R9255","Support","04-SUPPLIES","Supplies And Services","04F","Communications and computing","5858","Phones","3598559","202103",10/06/2020 00:00:00,10,"76520","Telecommunications Equipment and Systems","REDACTED DATA","O2 (UK) LTD","",,""
"London Borough of Redbridge","http://opendatacommunities.org/doc/london-borough-council/redbridge","1BOTHEROPI&E","Other Operating Income & Expenditure","1CTRADSURDEF","Trading Account Surpluses & Deficits","REV","Revenue","R9255","Support","04-SUPPLIES","Supplies And Services","04F","Communications and computing","5858","Phones","3598559","202103",10/06/2020 00:00:00,10,"76520","Telecommunications Equipment and Systems","REDACTED DATA","O2 (UK) LTD","",,""
"London Borough of Redbridge","http://opendatacommunities.org/doc/london-borough-council/redbridge","1BOTHEROPI&E","Other Operating Income & Expenditure","1CTRADSURDEF","Trading Account Surpluses & Deficits","REV","Revenue","R9255","Support","04-SUPPLIES","Supplies And Services","04F","Communications and computing","5858","Phones","3598559","202103",10/06/2020 00:00:00,10.5,"76520","Telecommunications Equipment and Systems","REDACTED DATA","O2 (UK) LTD","",,""
"London Borough of Redbridge","http://opendatacommunities.org/doc/london-borough-council/redbridge","1BOTHEROPI&E","Other Operating Income & Expenditure","1CTRADSURDEF","Trading Account Surpluses & Deficits","REV","Revenue","R9255","Support","04-SUPPLIES","Supplies And Services","04F","Communications and computing","5858","Phones","3598559","202103",10/06/2020 00:00:00,10,"76520","Telecommunications Equipment and Systems","REDACTED DATA","O2 (UK) LTD","",,""
"London Borough of Redbridge","http://opendatacommunities.org/doc/london-borough-council/redbridge","1BOTHEROPI&E","Other Operating Income & Expenditure","1CTRADSURDEF","Trading Account Surpluses & Deficits","REV","Revenue","R9255","Support","04-SUPPLIES","Supplies And Services","04F","Communications and computing","5858","Phones","3598559","202103",10/06/2020 00:00:00,10,"76520","Telecommunications Equipment and Systems","REDACTED DATA","O2 (UK) LTD","",,""
"London Borough of Redbridge","http://opendatacommunities.org/doc/london-borough-council/redbridge","1BOTHEROPI&E","Other Operating Income & Expenditure","1CTRADSURDEF","Trading Account Surpluses & Deficits","REV","Revenue","R9255","Support","04-SUPPLIES","Supplies And Services","04F","Communications and computing","5858","Phones","3598559","202103",10/06/2020 00:00:00,10,"76520","Telecommunications Equipment and Systems","REDACTED DATA","O2 (UK) LTD","",,""
"London Borough of Redbridge","http://opendatacommunities.org/doc/london-borough-council/redbridge","1BOTHEROPI&E","Other Operating Income & Expenditure","1CTRADSURDEF","Trading Account Surpluses & Deficits","REV","Revenue","R9255","Support","04-SUPPLIES","Supplies And Services","04F","Communications and computing","5858","Phones","3598559","202103",10/06/2020 00:00:00,10,"76520","Telecommunications Equipment and Systems","REDACTED DATA","O2 (UK) LTD","",,""
"London Borough of Redbridge","http://opendatacommunities.org/doc/london-borough-council/redbridge","1BOTHEROPI&E","Other Operating Income & Expenditure","1CTRADSURDEF","Trading Account Surpluses & Deficits","REV","Revenue","R9255","Support","04-SUPPLIES","Supplies And Services","04F","Communications and computing","5858","Phones","3598559","202103",10/06/2020 00:00:00,10,"76520","Telecommunications Equipment and Systems","REDACTED DATA","O2 (UK) LTD","",,""
"London Borough of Redbridge","http://opendatacommunities.org/doc/london-borough-council/redbridge","1BOTHEROPI&E","Other Operating Income & Expenditure","1CTRADSURDEF","Trading Account Surpluses & Deficits","REV","Revenue","R9255","Support","04-SUPPLIES","Supplies And Services","04F","Communications and computing","5858","Phones","3598559","202103",10/06/2020 00:00:00,10,"76520","Telecommunications Equipment and Systems","REDACTED DATA","O2 (UK) LTD","",,""
"London Borough of Redbridge","http://opendatacommunities.org/doc/london-borough-council/redbridge","1BOTHEROPI&E","Other Operating Income & Expenditure","1CTRADSURDEF","Trading Account Surpluses & Deficits","REV","Revenue","R9255","Support","04-SUPPLIES","Supplies And Services","04F","Communications and computing","5858","Phones","3598559","202103",10/06/2020 00:00:00,10,"76520","Telecommunications Equipment and Systems","REDACTED DATA","O2 (UK) LTD","",,""
"London Borough of Redbridge","http://opendatacommunities.org/doc/london-borough-council/redbridge","1BOTHEROPI&E","Other Operating Income & Expenditure","1CTRADSURDEF","Trading Account Surpluses & Deficits","REV","Revenue","R9255","Support","04-SUPPLIES","Supplies And Services","04F","Communications and computing","5858","Phones","3598559","202103",10/06/2020 00:00:00,10,"76520","Telecommunications Equipment and Systems","REDACTED DATA","O2 (UK) LTD","",,""
"London Borough of Redbridge","http://opendatacommunities.org/doc/london-borough-council/redbridge","1BOTHEROPI&E","Other Operating Income & Expenditure","1CTRADSURDEF","Trading Account Surpluses & Deficits","REV","Revenue","R9255","Support","04-SUPPLIES","Supplies And Services","04F","Communications and computing","5858","Phones","3598559","202103",10/06/2020 00:00:00,12.84,"76520","Telecommunications Equipment and Systems","REDACTED DATA","O2 (UK) LTD","",,""
"London Borough of Redbridge","http://opendatacommunities.org/doc/london-borough-council/redbridge","1BOTHEROPI&E","Other Operating Income & Expenditure","1CTRADSURDEF","Trading Account Surpluses & Deficits","REV","Revenue","R9255","Support","04-SUPPLIES","Supplies And Services","04F","Communications and computing","5858","Phones","3598559","202103",10/06/2020 00:00:00,11.71,"76520","Telecommunications Equipment and Systems","REDACTED DATA","O2 (UK) LTD","",,""
"London Borough of Redbridge","http://opendatacommunities.org/doc/london-borough-council/redbridge","1BOTHEROPI&E","Other Operating Income & Expenditure","1CTRADSURDEF","Trading Account Surpluses & Deficits","REV","Revenue","R9255","Support","04-SUPPLIES","Supplies And Services","04F","Communications and computing","5858","Phones","3598559","202103",10/06/2020 00:00:00,13.45,"76520","Telecommunications Equipment and Systems","REDACTED DATA","O2 (UK) LTD","",,""
"London Borough of Redbridge","http://opendatacommunities.org/doc/london-borough-council/redbridge","1BOTHEROPI&E","Other Operating Income & Expenditure","1CTRADSURDEF","Trading Account Surpluses & Deficits","REV","Revenue","R9255","Support","04-SUPPLIES","Supplies And Services","04F","Communications and computing","5858","Phones","3598559","202103",10/06/2020 00:00:00,10,"76520","Telecommunications Equipment and Systems","REDACTED DATA","O2 (UK) LTD","",,""
"London Borough of Redbridge","http://opendatacommunities.org/doc/london-borough-council/redbridge","1BOTHEROPI&E","Other Operating Income & Expenditure","1CTRADSURDEF","Trading Account Surpluses & Deficits","REV","Revenue","R9255","Support","04-SUPPLIES","Supplies And Services","04F","Communications and computing","5858","Phones","3598559","202103",10/06/2020 00:00:00,10,"76520","Telecommunications Equipment and Systems","REDACTED DATA","O2 (UK) LTD","",,""
"London Borough of Redbridge","http://opendatacommunities.org/doc/london-borough-council/redbridge","1BOTHEROPI&E","Other Operating Income & Expenditure","1CTRADSURDEF","Trading Account Surpluses & Deficits","REV","Revenue","R9255","Support","04-SUPPLIES","Supplies And Services","04F","Communications and computing","5858","Phones","3598559","202103",10/06/2020 00:00:00,11.06,"76520","Telecommunications Equipment and Systems","REDACTED DATA","O2 (UK) LTD","",,""
"London Borough of Redbridge","http://opendatacommunities.org/doc/london-borough-council/redbridge","1BOTHEROPI&E","Other Operating Income & Expenditure","1CTRADSURDEF","Trading Account Surpluses & Deficits","REV","Revenue","R9255","Support","04-SUPPLIES","Supplies And Services","04F","Communications and computing","5858","Phones","3598559","202103",10/06/2020 00:00:00,10,"76520","Telecommunications Equipment and Systems","REDACTED DATA","O2 (UK) LTD","",,""
"London Borough of Redbridge","http://opendatacommunities.org/doc/london-borough-council/redbridge","1BOTHEROPI&E","Other Operating Income & Expenditure","1CTRADSURDEF","Trading Account Surpluses & Deficits","REV","Revenue","R9255","Support","04-SUPPLIES","Supplies And Services","04F","Communications and computing","5858","Phones","3598559","202103",10/06/2020 00:00:00,10.04,"76520","Telecommunications Equipment and Systems","REDACTED DATA","O2 (UK) LTD","",,""
"London Borough of Redbridge","http://opendatacommunities.org/doc/london-borough-council/redbridge","1BOTHEROPI&E","Other Operating Income & Expenditure","1CTRADSURDEF","Trading Account Surpluses & Deficits","REV","Revenue","R9255","Support","04-SUPPLIES","Supplies And Services","04F","Communications and computing","5858","Phones","3598559","202103",10/06/2020 00:00:00,10,"76520","Telecommunications Equipment and Systems","REDACTED DATA","O2 (UK) LTD","",,""
"London Borough of Redbridge","http://opendatacommunities.org/doc/london-borough-council/redbridge","1BOTHEROPI&E","Other Operating Income & Expenditure","1CTRADSURDEF","Trading Account Surpluses & Deficits","REV","Revenue","R9255","Support","04-SUPPLIES","Supplies And Services","04F","Communications and computing","5858","Phones","3598559","202103",10/06/2020 00:00:00,10,"76520","Telecommunications Equipment and Systems","REDACTED DATA","O2 (UK) LTD","",,""
"London Borough of Redbridge","http://opendatacommunities.org/doc/london-borough-council/redbridge","1BOTHEROPI&E","Other Operating Income & Expenditure","1CTRADSURDEF","Trading Account Surpluses & Deficits","REV","Revenue","R9255","Support","04-SUPPLIES","Supplies And Services","04F","Communications and computing","5858","Phones","3598559","202103",10/06/2020 00:00:00,12,"76520","Telecommunications Equipment and Systems","REDACTED DATA","O2 (UK) LTD","",,""
"London Borough of Redbridge","http://opendatacommunities.org/doc/london-borough-council/redbridge","1BOTHEROPI&E","Other Operating Income & Expenditure","1CTRADSURDEF","Trading Account Surpluses & Deficits","REV","Revenue","R9255","Support","04-SUPPLIES","Supplies And Services","04F","Communications and computing","5858","Phones","3598559","202103",10/06/2020 00:00:00,10,"76520","Telecommunications Equipment and Systems","REDACTED DATA","O2 (UK) LTD","",,""
"London Borough of Redbridge","http://opendatacommunities.org/doc/london-borough-council/redbridge","1BOTHEROPI&E","Other Operating Income & Expenditure","1CTRADSURDEF","Trading Account Surpluses & Deficits","REV","Revenue","R9255","Support","04-SUPPLIES","Supplies And Services","04F","Communications and computing","5858","Phones","3598559","202103",10/06/2020 00:00:00,10,"76520","Telecommunications Equipment and Systems","REDACTED DATA","O2 (UK) LTD","",,""
"London Borough of Redbridge","http://opendatacommunities.org/doc/london-borough-council/redbridge","1BOTHEROPI&E","Other Operating Income & Expenditure","1CTRADSURDEF","Trading Account Surpluses & Deficits","REV","Revenue","R9255","Support","04-SUPPLIES","Supplies And Services","04F","Communications and computing","5858","Phones","3598559","202103",10/06/2020 00:00:00,20,"76520","Telecommunications Equipment and Systems","REDACTED DATA","O2 (UK) LTD","",,""
"London Borough of Redbridge","http://opendatacommunities.org/doc/london-borough-council/redbridge","1BOTHEROPI&E","Other Operating Income & Expenditure","1CTRADSURDEF","Trading Account Surpluses & Deficits","REV","Revenue","R9255","Support","04-SUPPLIES","Supplies And Services","04F","Communications and computing","5858","Phones","3598559","202103",10/06/2020 00:00:00,10,"76520","Telecommunications Equipment and Systems","REDACTED DATA","O2 (UK) LTD","",,""
"London Borough of Redbridge","http://opendatacommunities.org/doc/london-borough-council/redbridge","1BOTHEROPI&E","Other Operating Income & Expenditure","1CTRADSURDEF","Trading Account Surpluses & Deficits","REV","Revenue","R9255","Support","04-SUPPLIES","Supplies And Services","04F","Communications and computing","5858","Phones","3598559","202103",10/06/2020 00:00:00,10.47,"76520","Telecommunications Equipment and Systems","REDACTED DATA","O2 (UK) LTD","",,""
"London Borough of Redbridge","http://opendatacommunities.org/doc/london-borough-council/redbridge","1BOTHEROPI&E","Other Operating Income & Expenditure","1CTRADSURDEF","Trading Account Surpluses & Deficits","REV","Revenue","R9255","Support","04-SUPPLIES","Supplies And Services","04F","Communications and computing","5858","Phones","3598559","202103",10/06/2020 00:00:00,21.5,"76520","Telecommunications Equipment and Systems","REDACTED DATA","O2 (UK) LTD","",,""
"London Borough of Redbridge","http://opendatacommunities.org/doc/london-borough-council/redbridge","1BOTHEROPI&E","Other Operating Income & Expenditure","1CTRADSURDEF","Trading Account Surpluses & Deficits","REV","Revenue","R9255","Support","04-SUPPLIES","Supplies And Services","04F","Communications and computing","5858","Phones","3598559","202103",10/06/2020 00:00:00,10,"76520","Telecommunications Equipment and Systems","REDACTED DATA","O2 (UK) LTD","",,""
"London Borough of Redbridge","http://opendatacommunities.org/doc/london-borough-council/redbridge","1BOTHEROPI&E","Other Operating Income & Expenditure","1CTRADSURDEF","Trading Account Surpluses & Deficits","REV","Revenue","R9255","Support","04-SUPPLIES","Supplies And Services","04F","Communications and computing","5858","Phones","3598559","202103",10/06/2020 00:00:00,40,"76520","Telecommunications Equipment and Systems","REDACTED DATA","O2 (UK) LTD","",,""
"London Borough of Redbridge","http://opendatacommunities.org/doc/london-borough-council/redbridge","1BOTHEROPI&E","Other Operating Income & Expenditure","1CTRADSURDEF","Trading Account Surpluses & Deficits","REV","Revenue","R9255","Support","04-SUPPLIES","Supplies And Services","04F","Communications and computing","5858","Phones","3598559","202103",10/06/2020 00:00:00,10,"76520","Telecommunications Equipment and Systems","REDACTED DATA","O2 (UK) LTD","",,""
"London Borough of Redbridge","http://opendatacommunities.org/doc/london-borough-council/redbridge","1BOTHEROPI&E","Other Operating Income & Expenditure","1CTRADSURDEF","Trading Account Surpluses & Deficits","REV","Revenue","R9255","Support","04-SUPPLIES","Supplies And Services","04F","Communications and computing","5858","Phones","3598559","202103",10/06/2020 00:00:00,10,"76520","Telecommunications Equipment and Systems","REDACTED DATA","O2 (UK) LTD","",,""
"London Borough of Redbridge","http://opendatacommunities.org/doc/london-borough-council/redbridge","1BOTHEROPI&E","Other Operating Income & Expenditure","1CTRADSURDEF","Trading Account Surpluses & Deficits","REV","Revenue","R9255","Support","04-SUPPLIES","Supplies And Services","04F","Communications and computing","5858","Phones","3598559","202103",10/06/2020 00:00:00,10,"76520","Telecommunications Equipment and Systems","REDACTED DATA","O2 (UK) LTD","",,""
"London Borough of Redbridge","http://opendatacommunities.org/doc/london-borough-council/redbridge","1BOTHEROPI&E","Other Operating Income & Expenditure","1CTRADSURDEF","Trading Account Surpluses & Deficits","REV","Revenue","R9255","Support","04-SUPPLIES","Supplies And Services","04F","Communications and computing","5858","Phones","3598559","202103",10/06/2020 00:00:00,10,"76520","Telecommunications Equipment and Systems","REDACTED DATA","O2 (UK) LTD","",,""
"London Borough of Redbridge","http://opendatacommunities.org/doc/london-borough-council/redbridge","1BOTHEROPI&E","Other Operating Income & Expenditure","1CTRADSURDEF","Trading Account Surpluses & Deficits","REV","Revenue","R9255","Support","04-SUPPLIES","Supplies And Services","04F","Communications and computing","5858","Phones","3598559","202103",10/06/2020 00:00:00,0,"76520","Telecommunications Equipment and Systems","REDACTED DATA","O2 (UK) LTD","",,""
"London Borough of Redbridge","http://opendatacommunities.org/doc/london-borough-council/redbridge","1BOTHEROPI&E","Other Operating Income & Expenditure","1CTRADSURDEF","Trading Account Surpluses & Deficits","REV","Revenue","R9255","Support","04-SUPPLIES","Supplies And Services","04F","Communications and computing","5858","Phones","3598559","202103",10/06/2020 00:00:00,85.7,"76520","Telecommunications Equipment and Systems","REDACTED DATA","O2 (UK) LTD","",,""
"London Borough of Redbridge","http://opendatacommunities.org/doc/london-borough-council/redbridge","1BOTHEROPI&E","Other Operating Income & Expenditure","1CTRADSURDEF","Trading Account Surpluses & Deficits","REV","Revenue","R9255","Support","04-SUPPLIES","Supplies And Services","04F","Communications and computing","5858","Phones","3598559","202103",10/06/2020 00:00:00,10,"76520","Telecommunications Equipment and Systems","REDACTED DATA","O2 (UK) LTD","",,""
"London Borough of Redbridge","http://opendatacommunities.org/doc/london-borough-council/redbridge","1BOTHEROPI&E","Other Operating Income & Expenditure","1CTRADSURDEF","Trading Account Surpluses & Deficits","REV","Revenue","R9255","Support","04-SUPPLIES","Supplies And Services","04F","Communications and computing","5858","Phones","3598559","202103",10/06/2020 00:00:00,10,"76520","Telecommunications Equipment and Systems","REDACTED DATA","O2 (UK) LTD","",,""
"London Borough of Redbridge","http://opendatacommunities.org/doc/london-borough-council/redbridge","1BOTHEROPI&E","Other Operating Income & Expenditure","1CTRADSURDEF","Trading Account Surpluses & Deficits","REV","Revenue","R9255","Support","04-SUPPLIES","Supplies And Services","04F","Communications and computing","5858","Phones","3598559","202103",10/06/2020 00:00:00,10,"76520","Telecommunications Equipment and Systems","REDACTED DATA","O2 (UK) LTD","",,""
"London Borough of Redbridge","http://opendatacommunities.org/doc/london-borough-council/redbridge","1BOTHEROPI&E","Other Operating Income & Expenditure","1CTRADSURDEF","Trading Account Surpluses & Deficits","REV","Revenue","R9255","Support","04-SUPPLIES","Supplies And Services","04F","Communications and computing","5858","Phones","3598559","202103",10/06/2020 00:00:00,10,"76520","Telecommunications Equipment and Systems","REDACTED DATA","O2 (UK) LTD","",,""
"London Borough of Redbridge","http://opendatacommunities.org/doc/london-borough-council/redbridge","1BOTHEROPI&E","Other Operating Income & Expenditure","1CTRADSURDEF","Trading Account Surpluses & Deficits","REV","Revenue","R9255","Support","04-SUPPLIES","Supplies And Services","04F","Communications and computing","5858","Phones","3598559","202103",10/06/2020 00:00:00,10,"76520","Telecommunications Equipment and Systems","REDACTED DATA","O2 (UK) LTD","",,""
"London Borough of Redbridge","http://opendatacommunities.org/doc/london-borough-council/redbridge","1BOTHEROPI&E","Other Operating Income & Expenditure","1CTRADSURDEF","Trading Account Surpluses & Deficits","REV","Revenue","R9255","Support","04-SUPPLIES","Supplies And Services","04F","Communications and computing","5858","Phones","3598559","202103",10/06/2020 00:00:00,10,"76520","Telecommunications Equipment and Systems","REDACTED DATA","O2 (UK) LTD","",,""
"London Borough of Redbridge","http://opendatacommunities.org/doc/london-borough-council/redbridge","1BOTHEROPI&E","Other Operating Income & Expenditure","1CTRADSURDEF","Trading Account Surpluses & Deficits","REV","Revenue","R9255","Support","04-SUPPLIES","Supplies And Services","04F","Communications and computing","5858","Phones","3598559","202103",10/06/2020 00:00:00,12.83,"76520","Telecommunications Equipment and Systems","REDACTED DATA","O2 (UK) LTD","",,""
"London Borough of Redbridge","http://opendatacommunities.org/doc/london-borough-council/redbridge","1BOTHEROPI&E","Other Operating Income & Expenditure","1CTRADSURDEF","Trading Account Surpluses & Deficits","REV","Revenue","R9255","Support","04-SUPPLIES","Supplies And Services","04F","Communications and computing","5858","Phones","3598559","202103",10/06/2020 00:00:00,10,"76520","Telecommunications Equipment and Systems","REDACTED DATA","O2 (UK) LTD","",,""
"London Borough of Redbridge","http://opendatacommunities.org/doc/london-borough-council/redbridge","1BOTHEROPI&E","Other Operating Income & Expenditure","1CTRADSURDEF","Trading Account Surpluses & Deficits","REV","Revenue","R9255","Support","04-SUPPLIES","Supplies And Services","04F","Communications and computing","5858","Phones","3598559","202103",10/06/2020 00:00:00,10,"76520","Telecommunications Equipment and Systems","REDACTED DATA","O2 (UK) LTD","",,""
"London Borough of Redbridge","http://opendatacommunities.org/doc/london-borough-council/redbridge","1BOTHEROPI&E","Other Operating Income & Expenditure","1CTRADSURDEF","Trading Account Surpluses & Deficits","REV","Revenue","R9255","Support","04-SUPPLIES","Supplies And Services","04F","Communications and computing","5858","Phones","3598559","202103",10/06/2020 00:00:00,10.4,"76520","Telecommunications Equipment and Systems","REDACTED DATA","O2 (UK) LTD","",,""
"London Borough of Redbridge","http://opendatacommunities.org/doc/london-borough-council/redbridge","1BOTHEROPI&E","Other Operating Income & Expenditure","1CTRADSURDEF","Trading Account Surpluses & Deficits","REV","Revenue","R9255","Support","04-SUPPLIES","Supplies And Services","04F","Communications and computing","5858","Phones","3598559","202103",10/06/2020 00:00:00,10,"76520","Telecommunications Equipment and Systems","REDACTED DATA","O2 (UK) LTD","",,""
"London Borough of Redbridge","http://opendatacommunities.org/doc/london-borough-council/redbridge","1BOTHEROPI&E","Other Operating Income & Expenditure","1CTRADSURDEF","Trading Account Surpluses & Deficits","REV","Revenue","R9255","Support","04-SUPPLIES","Supplies And Services","04F","Communications and computing","5858","Phones","3598559","202103",10/06/2020 00:00:00,10,"76520","Telecommunications Equipment and Systems","REDACTED DATA","O2 (UK) LTD","",,""
"London Borough of Redbridge","http://opendatacommunities.org/doc/london-borough-council/redbridge","1BOTHEROPI&E","Other Operating Income & Expenditure","1CTRADSURDEF","Trading Account Surpluses & Deficits","REV","Revenue","R9255","Support","04-SUPPLIES","Supplies And Services","04F","Communications and computing","5858","Phones","3598559","202103",10/06/2020 00:00:00,10,"76520","Telecommunications Equipment and Systems","REDACTED DATA","O2 (UK) LTD","",,""
"London Borough of Redbridge","http://opendatacommunities.org/doc/london-borough-council/redbridge","1BOTHEROPI&E","Other Operating Income & Expenditure","1CTRADSURDEF","Trading Account Surpluses & Deficits","REV","Revenue","R9255","Support","04-SUPPLIES","Supplies And Services","04F","Communications and computing","5858","Phones","3598559","202103",10/06/2020 00:00:00,10,"76520","Telecommunications Equipment and Systems","REDACTED DATA","O2 (UK) LTD","",,""
"London Borough of Redbridge","http://opendatacommunities.org/doc/london-borough-council/redbridge","1BOTHEROPI&E","Other Operating Income & Expenditure","1CTRADSURDEF","Trading Account Surpluses & Deficits","REV","Revenue","R9255","Support","04-SUPPLIES","Supplies And Services","04F","Communications and computing","5858","Phones","3598559","202103",10/06/2020 00:00:00,10,"76520","Telecommunications Equipment and Systems","REDACTED DATA","O2 (UK) LTD","",,""
"London Borough of Redbridge","http://opendatacommunities.org/doc/london-borough-council/redbridge","1BOTHEROPI&E","Other Operating Income & Expenditure","1CTRADSURDEF","Trading Account Surpluses & Deficits","REV","Revenue","R9255","Support","04-SUPPLIES","Supplies And Services","04F","Communications and computing","5858","Phones","3598559","202103",10/06/2020 00:00:00,10,"76520","Telecommunications Equipment and Systems","REDACTED DATA","O2 (UK) LTD","",,""
"London Borough of Redbridge","http://opendatacommunities.org/doc/london-borough-council/redbridge","1BOTHEROPI&E","Other Operating Income & Expenditure","1CTRADSURDEF","Trading Account Surpluses & Deficits","REV","Revenue","R9255","Support","04-SUPPLIES","Supplies And Services","04F","Communications and computing","5858","Phones","3598559","202103",10/06/2020 00:00:00,10,"76520","Telecommunications Equipment and Systems","REDACTED DATA","O2 (UK) LTD","",,""
"London Borough of Redbridge","http://opendatacommunities.org/doc/london-borough-council/redbridge","1BOTHEROPI&E","Other Operating Income & Expenditure","1CTRADSURDEF","Trading Account Surpluses & Deficits","REV","Revenue","R9255","Support","04-SUPPLIES","Supplies And Services","04F","Communications and computing","5858","Phones","3598559","202103",10/06/2020 00:00:00,10,"76520","Telecommunications Equipment and Systems","REDACTED DATA","O2 (UK) LTD","",,""
"London Borough of Redbridge","http://opendatacommunities.org/doc/london-borough-council/redbridge","1BOTHEROPI&E","Other Operating Income & Expenditure","1CTRADSURDEF","Trading Account Surpluses & Deficits","REV","Revenue","R9255","Support","04-SUPPLIES","Supplies And Services","04F","Communications and computing","5858","Phones","3598559","202103",10/06/2020 00:00:00,10,"76520","Telecommunications Equipment and Systems","REDACTED DATA","O2 (UK) LTD","",,""
"London Borough of Redbridge","http://opendatacommunities.org/doc/london-borough-council/redbridge","1BOTHEROPI&E","Other Operating Income & Expenditure","1CTRADSURDEF","Trading Account Surpluses & Deficits","REV","Revenue","R9255","Support","04-SUPPLIES","Supplies And Services","04F","Communications and computing","5858","Phones","3598559","202103",10/06/2020 00:00:00,10,"76520","Telecommunications Equipment and Systems","REDACTED DATA","O2 (UK) LTD","",,""
"London Borough of Redbridge","http://opendatacommunities.org/doc/london-borough-council/redbridge","1BOTHEROPI&E","Other Operating Income & Expenditure","1CTRADSURDEF","Trading Account Surpluses & Deficits","REV","Revenue","R9255","Support","04-SUPPLIES","Supplies And Services","04F","Communications and computing","5858","Phones","3598559","202103",10/06/2020 00:00:00,11.71,"76520","Telecommunications Equipment and Systems","REDACTED DATA","O2 (UK) LTD","",,""
"London Borough of Redbridge","http://opendatacommunities.org/doc/london-borough-council/redbridge","1BOTHEROPI&E","Other Operating Income & Expenditure","1CTRADSURDEF","Trading Account Surpluses & Deficits","REV","Revenue","R9255","Support","04-SUPPLIES","Supplies And Services","04F","Communications and computing","5858","Phones","3598559","202103",10/06/2020 00:00:00,13.79,"76520","Telecommunications Equipment and Systems","REDACTED DATA","O2 (UK) LTD","",,""
"London Borough of Redbridge","http://opendatacommunities.org/doc/london-borough-council/redbridge","1BOTHEROPI&E","Other Operating Income & Expenditure","1CTRADSURDEF","Trading Account Surpluses & Deficits","REV","Revenue","R9255","Support","04-SUPPLIES","Supplies And Services","04F","Communications and computing","5858","Phones","3598559","202103",10/06/2020 00:00:00,10,"76520","Telecommunications Equipment and Systems","REDACTED DATA","O2 (UK) LTD","",,""
"London Borough of Redbridge","http://opendatacommunities.org/doc/london-borough-council/redbridge","1BOTHEROPI&E","Other Operating Income & Expenditure","1CTRADSURDEF","Trading Account Surpluses & Deficits","REV","Revenue","R9255","Support","04-SUPPLIES","Supplies And Services","04F","Communications and computing","5858","Phones","3598559","202103",10/06/2020 00:00:00,10,"76520","Telecommunications Equipment and Systems","REDACTED DATA","O2 (UK) LTD","",,""
"London Borough of Redbridge","http://opendatacommunities.org/doc/london-borough-council/redbridge","1BOTHEROPI&E","Other Operating Income & Expenditure","1CTRADSURDEF","Trading Account Surpluses & Deficits","REV","Revenue","R9255","Support","04-SUPPLIES","Supplies And Services","04F","Communications and computing","5858","Phones","3598559","202103",10/06/2020 00:00:00,10,"76520","Telecommunications Equipment and Systems","REDACTED DATA","O2 (UK) LTD","",,""
"London Borough of Redbridge","http://opendatacommunities.org/doc/london-borough-council/redbridge","1BOTHEROPI&E","Other Operating Income & Expenditure","1CTRADSURDEF","Trading Account Surpluses & Deficits","REV","Revenue","R9255","Support","04-SUPPLIES","Supplies And Services","04F","Communications and computing","5858","Phones","3598559","202103",10/06/2020 00:00:00,10,"76520","Telecommunications Equipment and Systems","REDACTED DATA","O2 (UK) LTD","",,""
"London Borough of Redbridge","http://opendatacommunities.org/doc/london-borough-council/redbridge","1BOTHEROPI&E","Other Operating Income & Expenditure","1CTRADSURDEF","Trading Account Surpluses & Deficits","REV","Revenue","R9255","Support","04-SUPPLIES","Supplies And Services","04F","Communications and computing","5858","Phones","3598559","202103",10/06/2020 00:00:00,10,"76520","Telecommunications Equipment and Systems","REDACTED DATA","O2 (UK) LTD","",,""
"London Borough of Redbridge","http://opendatacommunities.org/doc/london-borough-council/redbridge","1BOTHEROPI&E","Other Operating Income & Expenditure","1CTRADSURDEF","Trading Account Surpluses & Deficits","REV","Revenue","R9255","Support","04-SUPPLIES","Supplies And Services","04F","Communications and computing","5858","Phones","3598559","202103",10/06/2020 00:00:00,11,"76520","Telecommunications Equipment and Systems","REDACTED DATA","O2 (UK) LTD","",,""
"London Borough of Redbridge","http://opendatacommunities.org/doc/london-borough-council/redbridge","1BOTHEROPI&E","Other Operating Income & Expenditure","1CTRADSURDEF","Trading Account Surpluses & Deficits","REV","Revenue","R9255","Support","04-SUPPLIES","Supplies And Services","04F","Communications and computing","5858","Phones","3598559","202103",10/06/2020 00:00:00,10,"76520","Telecommunications Equipment and Systems","REDACTED DATA","O2 (UK) LTD","",,""
"London Borough of Redbridge","http://opendatacommunities.org/doc/london-borough-council/redbridge","1BOTHEROPI&E","Other Operating Income & Expenditure","1CTRADSURDEF","Trading Account Surpluses & Deficits","REV","Revenue","R9255","Support","04-SUPPLIES","Supplies And Services","04F","Communications and computing","5858","Phones","3598559","202103",10/06/2020 00:00:00,10.04,"76520","Telecommunications Equipment and Systems","REDACTED DATA","O2 (UK) LTD","",,""
"London Borough of Redbridge","http://opendatacommunities.org/doc/london-borough-council/redbridge","1BOTHEROPI&E","Other Operating Income & Expenditure","1CTRADSURDEF","Trading Account Surpluses & Deficits","REV","Revenue","R9255","Support","04-SUPPLIES","Supplies And Services","04F","Communications and computing","5858","Phones","3598559","202103",10/06/2020 00:00:00,10,"76520","Telecommunications Equipment and Systems","REDACTED DATA","O2 (UK) LTD","",,""
"London Borough of Redbridge","http://opendatacommunities.org/doc/london-borough-council/redbridge","1BOTHEROPI&E","Other Operating Income & Expenditure","1CTRADSURDEF","Trading Account Surpluses & Deficits","REV","Revenue","R9255","Support","04-SUPPLIES","Supplies And Services","04F","Communications and computing","5858","Phones","3598559","202103",10/06/2020 00:00:00,10,"76520","Telecommunications Equipment and Systems","REDACTED DATA","O2 (UK) LTD","",,""
"London Borough of Redbridge","http://opendatacommunities.org/doc/london-borough-council/redbridge","1BOTHEROPI&E","Other Operating Income & Expenditure","1CTRADSURDEF","Trading Account Surpluses & Deficits","REV","Revenue","R9255","Support","04-SUPPLIES","Supplies And Services","04F","Communications and computing","5858","Phones","3598559","202103",10/06/2020 00:00:00,10.02,"76520","Telecommunications Equipment and Systems","REDACTED DATA","O2 (UK) LTD","",,""
"London Borough of Redbridge","http://opendatacommunities.org/doc/london-borough-council/redbridge","1BOTHEROPI&E","Other Operating Income & Expenditure","1CTRADSURDEF","Trading Account Surpluses & Deficits","REV","Revenue","R9255","Support","04-SUPPLIES","Supplies And Services","04F","Communications and computing","5858","Phones","3598559","202103",10/06/2020 00:00:00,10,"76520","Telecommunications Equipment and Systems","REDACTED DATA","O2 (UK) LTD","",,""
"London Borough of Redbridge","http://opendatacommunities.org/doc/london-borough-council/redbridge","1BOTHEROPI&E","Other Operating Income & Expenditure","1CTRADSURDEF","Trading Account Surpluses & Deficits","REV","Revenue","R9255","Support","04-SUPPLIES","Supplies And Services","04F","Communications and computing","5858","Phones","3598559","202103",10/06/2020 00:00:00,10,"76520","Telecommunications Equipment and Systems","REDACTED DATA","O2 (UK) LTD","",,""
"London Borough of Redbridge","http://opendatacommunities.org/doc/london-borough-council/redbridge","1BOTHEROPI&E","Other Operating Income & Expenditure","1CTRADSURDEF","Trading Account Surpluses & Deficits","REV","Revenue","R9255","Support","04-SUPPLIES","Supplies And Services","04F","Communications and computing","5858","Phones","3598559","202103",10/06/2020 00:00:00,10,"76520","Telecommunications Equipment and Systems","REDACTED DATA","O2 (UK) LTD","",,""
"London Borough of Redbridge","http://opendatacommunities.org/doc/london-borough-council/redbridge","1BOTHEROPI&E","Other Operating Income & Expenditure","1CTRADSURDEF","Trading Account Surpluses & Deficits","REV","Revenue","R9255","Support","04-SUPPLIES","Supplies And Services","04F","Communications and computing","5858","Phones","3598559","202103",10/06/2020 00:00:00,10,"76520","Telecommunications Equipment and Systems","REDACTED DATA","O2 (UK) LTD","",,""
"London Borough of Redbridge","http://opendatacommunities.org/doc/london-borough-council/redbridge","1BOTHEROPI&E","Other Operating Income & Expenditure","1CTRADSURDEF","Trading Account Surpluses & Deficits","REV","Revenue","R9255","Support","04-SUPPLIES","Supplies And Services","04F","Communications and computing","5858","Phones","3598559","202103",10/06/2020 00:00:00,10,"76520","Telecommunications Equipment and Systems","REDACTED DATA","O2 (UK) LTD","",,""
"London Borough of Redbridge","http://opendatacommunities.org/doc/london-borough-council/redbridge","1BOTHEROPI&E","Other Operating Income & Expenditure","1CTRADSURDEF","Trading Account Surpluses & Deficits","REV","Revenue","R9255","Support","04-SUPPLIES","Supplies And Services","04F","Communications and computing","5858","Phones","3598559","202103",10/06/2020 00:00:00,10,"76520","Telecommunications Equipment and Systems","REDACTED DATA","O2 (UK) LTD","",,""
"London Borough of Redbridge","http://opendatacommunities.org/doc/london-borough-council/redbridge","1BOTHEROPI&E","Other Operating Income & Expenditure","1CTRADSURDEF","Trading Account Surpluses & Deficits","REV","Revenue","R9255","Support","04-SUPPLIES","Supplies And Services","04F","Communications and computing","5858","Phones","3598559","202103",10/06/2020 00:00:00,10,"76520","Telecommunications Equipment and Systems","REDACTED DATA","O2 (UK) LTD","",,""
"London Borough of Redbridge","http://opendatacommunities.org/doc/london-borough-council/redbridge","1BOTHEROPI&E","Other Operating Income & Expenditure","1CTRADSURDEF","Trading Account Surpluses & Deficits","REV","Revenue","R9255","Support","04-SUPPLIES","Supplies And Services","04F","Communications and computing","5858","Phones","3598559","202103",10/06/2020 00:00:00,10,"76520","Telecommunications Equipment and Systems","REDACTED DATA","O2 (UK) LTD","",,""
"London Borough of Redbridge","http://opendatacommunities.org/doc/london-borough-council/redbridge","1BOTHEROPI&E","Other Operating Income & Expenditure","1CTRADSURDEF","Trading Account Surpluses & Deficits","REV","Revenue","R9255","Support","04-SUPPLIES","Supplies And Services","04F","Communications and computing","5858","Phones","3598559","202103",10/06/2020 00:00:00,10,"76520","Telecommunications Equipment and Systems","REDACTED DATA","O2 (UK) LTD","",,""
"London Borough of Redbridge","http://opendatacommunities.org/doc/london-borough-council/redbridge","1BOTHEROPI&E","Other Operating Income & Expenditure","1CTRADSURDEF","Trading Account Surpluses & Deficits","REV","Revenue","R9256","IT Strategy","04-SUPPLIES","Supplies And Services","04E","Services","5754","Consultancy","60434973","202103",30/06/2020 00:00:00,19950,"45255","Institutes - Professional","REDACTED DATA","SOCITM LTD","4396808","http://opencorporates.com/companies/gb/4396808","799604958"
"London Borough of Redbridge","http://opendatacommunities.org/doc/london-borough-council/redbridge","1BOTHEROPI&E","Other Operating Income & Expenditure","1CTRADSURDEF","Trading Account Surpluses & Deficits","REV","Revenue","R9278","IT - Vision RCL Costs","04-SUPPLIES","Supplies And Services","04F","Communications and computing","5854","Exchange Line Rental","3596225","202103",01/06/2020 00:00:00,40,"76510","Telecommunication Services","REDACTED DATA","VIRGIN MEDIA PAYMENTS LTD(MAIN ACCT)","1785381","http://opencorporates.com/companies/gb/1785381","591819014"
"London Borough of Redbridge","http://opendatacommunities.org/doc/london-borough-council/redbridge","1BOTHEROPI&E","Other Operating Income & Expenditure","1CTRADSURDEF","Trading Account Surpluses & Deficits","REV","Revenue","R9278","IT - Vision RCL Costs","04-SUPPLIES","Supplies And Services","04F","Communications and computing","5854","Exchange Line Rental","3596214","202103",01/06/2020 00:00:00,25.08,"76510","Telecommunication Services","REDACTED DATA","VIRGIN MEDIA PAYMENTS LTD(MAIN ACCT)","1785381","http://opencorporates.com/companies/gb/1785381","591819014"
"London Borough of Redbridge","http://opendatacommunities.org/doc/london-borough-council/redbridge","1BOTHEROPI&E","Other Operating Income & Expenditure","1CTRADSURDEF","Trading Account Surpluses & Deficits","REV","Revenue","R9278","IT - Vision RCL Costs","04-SUPPLIES","Supplies And Services","04F","Communications and computing","5854","Exchange Line Rental","3596218","202103",01/06/2020 00:00:00,43.35,"76510","Telecommunication Services","REDACTED DATA","VIRGIN MEDIA PAYMENTS LTD(MAIN ACCT)","1785381","http://opencorporates.com/companies/gb/1785381","591819014"
"London Borough of Redbridge","http://opendatacommunities.org/doc/london-borough-council/redbridge","1BOTHEROPI&E","Other Operating Income & Expenditure","1CTRADSURDEF","Trading Account Surpluses & Deficits","REV","Revenue","R9278","IT - Vision RCL Costs","04-SUPPLIES","Supplies And Services","04F","Communications and computing","5854","Exchange Line Rental","3596219","202103",01/06/2020 00:00:00,41.21,"76510","Telecommunication Services","REDACTED DATA","VIRGIN MEDIA PAYMENTS LTD(MAIN ACCT)","1785381","http://opencorporates.com/companies/gb/1785381","591819014"
"London Borough of Redbridge","http://opendatacommunities.org/doc/london-borough-council/redbridge","1BOTHEROPI&E","Other Operating Income & Expenditure","1CTRADSURDEF","Trading Account Surpluses & Deficits","REV","Revenue","R9350","Management Team","01-EMPLOYEES","Employees","01A","Direct employee expenses","4","Agency Staff - Pay","3599605","202103",01/07/2020 00:00:00,2572.2,"31230","Employment and Recruitment Agencies","REDACTED DATA","MATRIX SCM LTD","2227962","http://opencorporates.com/companies/gb/2227962","249573468"
"London Borough of Redbridge","http://opendatacommunities.org/doc/london-borough-council/redbridge","1BOTHEROPI&E","Other Operating Income & Expenditure","1CTRADSURDEF","Trading Account Surpluses & Deficits","REV","Revenue","R9351","Litigation Team","01-EMPLOYEES","Employees","01A","Direct employee expenses","4","Agency Staff - Pay","3599605","202103",01/07/2020 00:00:00,1788.3,"31230","Employment and Recruitment Agencies","REDACTED DATA","MATRIX SCM LTD","2227962","http://opencorporates.com/companies/gb/2227962","249573468"
"London Borough of Redbridge","http://opendatacommunities.org/doc/london-borough-council/redbridge","1BOTHEROPI&E","Other Operating Income & Expenditure","1CTRADSURDEF","Trading Account Surpluses & Deficits","REV","Revenue","R9351","Litigation Team","01-EMPLOYEES","Employees","01A","Direct employee expenses","4","Agency Staff - Pay","3599605","202103",01/07/2020 00:00:00,1416.65,"31230","Employment and Recruitment Agencies","REDACTED DATA","MATRIX SCM LTD","2227962","http://opencorporates.com/companies/gb/2227962","249573468"
"London Borough of Redbridge","http://opendatacommunities.org/doc/london-borough-council/redbridge","1BOTHEROPI&E","Other Operating Income & Expenditure","1CTRADSURDEF","Trading Account Surpluses & Deficits","REV","Revenue","R9352","Legal Supplies & Services","04-SUPPLIES","Supplies And Services","04B","Catering","5602","Refreshments","80037207","202103",25/06/2020 00:00:00,2,"84070","Water Suppliers - Bottled","REDACTED DATA","EDEN SPRINGS (UK) LTD (NATURE SPRING)","4063744","http://opencorporates.com/companies/gb/4063744","232160411"
"London Borough of Redbridge","http://opendatacommunities.org/doc/london-borough-council/redbridge","1BOTHEROPI&E","Other Operating Income & Expenditure","1CTRADSURDEF","Trading Account Surpluses & Deficits","REV","Revenue","R9352","Legal Supplies & Services","04-SUPPLIES","Supplies And Services","04D","Printing, stationery and general office expenses","5705","Postage","60433452","202103",31/12/2019 00:00:00,40.37,"22620","Courier and Messenger Services","REDACTED DATA","ANGELS COURIER SERVICE LTD","2949091","http://opencorporates.com/companies/gb/2949091","648831896"
"London Borough of Redbridge","http://opendatacommunities.org/doc/london-borough-council/redbridge","1BOTHEROPI&E","Other Operating Income & Expenditure","1CTRADSURDEF","Trading Account Surpluses & Deficits","REV","Revenue","R9352","Legal Supplies & Services","04-SUPPLIES","Supplies And Services","04D","Printing, stationery and general office expenses","5705","Postage","60433454","202103",30/04/2020 00:00:00,248.81,"22620","Courier and Messenger Services","REDACTED DATA","ANGELS COURIER SERVICE LTD","2949091","http://opencorporates.com/companies/gb/2949091","648831896"
"London Borough of Redbridge","http://opendatacommunities.org/doc/london-borough-council/redbridge","1BOTHEROPI&E","Other Operating Income & Expenditure","1CTRADSURDEF","Trading Account Surpluses & Deficits","REV","Revenue","R9352","Legal Supplies & Services","04-SUPPLIES","Supplies And Services","04D","Printing, stationery and general office expenses","5705","Postage","60433653","202103",31/03/2020 00:00:00,314.17,"22620","Courier and Messenger Services","REDACTED DATA","ANGELS COURIER SERVICE LTD","2949091","http://opencorporates.com/companies/gb/2949091","648831896"
"London Borough of Redbridge","http://opendatacommunities.org/doc/london-borough-council/redbridge","1BOTHEROPI&E","Other Operating Income & Expenditure","1CTRADSURDEF","Trading Account Surpluses & Deficits","REV","Revenue","R9353","Advisory Team","01-EMPLOYEES","Employees","01A","Direct employee expenses","4","Agency Staff - Pay","3599605","202103",01/07/2020 00:00:00,1659.5,"31230","Employment and Recruitment Agencies","REDACTED DATA","MATRIX SCM LTD","2227962","http://opencorporates.com/companies/gb/2227962","249573468"
"London Borough of Redbridge","http://opendatacommunities.org/doc/london-borough-council/redbridge","1BOTHEROPI&E","Other Operating Income & Expenditure","1CTRADSURDEF","Trading Account Surpluses & Deficits","REV","Revenue","R9353","Advisory Team","01-EMPLOYEES","Employees","01A","Direct employee expenses","4","Agency Staff - Pay","3599605","202103",01/07/2020 00:00:00,1788.3,"31230","Employment and Recruitment Agencies","REDACTED DATA","MATRIX SCM LTD","2227962","http://opencorporates.com/companies/gb/2227962","249573468"
"London Borough of Redbridge","http://opendatacommunities.org/doc/london-borough-council/redbridge","1BOTHEROPI&E","Other Operating Income & Expenditure","1CTRADSURDEF","Trading Account Surpluses & Deficits","REV","Revenue","R9353","Advisory Team","01-EMPLOYEES","Employees","01A","Direct employee expenses","4","Agency Staff - Pay","3599605","202103",01/07/2020 00:00:00,1758.75,"31230","Employment and Recruitment Agencies","REDACTED DATA","MATRIX SCM LTD","2227962","http://opencorporates.com/companies/gb/2227962","249573468"
"London Borough of Redbridge","http://opendatacommunities.org/doc/london-borough-council/redbridge","1BOTHEROPI&E","Other Operating Income & Expenditure","1CTRADSURDEF","Trading Account Surpluses & Deficits","REV","Revenue","R9353","Advisory Team","01-EMPLOYEES","Employees","01A","Direct employee expenses","4","Agency Staff - Pay","3599605","202103",01/07/2020 00:00:00,1405.1,"31230","Employment and Recruitment Agencies","REDACTED DATA","MATRIX SCM LTD","2227962","http://opencorporates.com/companies/gb/2227962","249573468"
"London Borough of Redbridge","http://opendatacommunities.org/doc/london-borough-council/redbridge","1BOTHEROPI&E","Other Operating Income & Expenditure","1CTRADSURDEF","Trading Account Surpluses & Deficits","REV","Revenue","R9354","Legal Disbursements","04-SUPPLIES","Supplies And Services","04H","Grants and subscriptions","5954","Professional Fees","60434806","202103",24/06/2020 00:00:00,740,"6700","Barristers","REDACTED DATA","FIVE PAPER CHAMBERS- FEES ACCOUNT","",,""
"London Borough of Redbridge","http://opendatacommunities.org/doc/london-borough-council/redbridge","1BOTHEROPI&E","Other Operating Income & Expenditure","1CTRADSURDEF","Trading Account Surpluses & Deficits","REV","Revenue","R9354","Legal Disbursements","04-SUPPLIES","Supplies And Services","04H","Grants and subscriptions","5954","Professional Fees","60434809","202103",17/06/2020 00:00:00,123.75,"6700","Barristers","REDACTED DATA","FIVE PAPER CHAMBERS- FEES ACCOUNT","",,""
"London Borough of Redbridge","http://opendatacommunities.org/doc/london-borough-council/redbridge","1BOTHEROPI&E","Other Operating Income & Expenditure","1CTRADSURDEF","Trading Account Surpluses & Deficits","REV","Revenue","R9354","Legal Disbursements","04-SUPPLIES","Supplies And Services","04H","Grants and subscriptions","5954","Professional Fees","60434814","202103",26/06/2020 00:00:00,475,"6700","Barristers","REDACTED DATA","FIVE PAPER CHAMBERS- FEES ACCOUNT","",,""
"London Borough of Redbridge","http://opendatacommunities.org/doc/london-borough-council/redbridge","1BOTHEROPI&E","Other Operating Income & Expenditure","1CTRADSURDEF","Trading Account Surpluses & Deficits","REV","Revenue","R9354","Legal Disbursements","04-SUPPLIES","Supplies And Services","04H","Grants and subscriptions","5954","Professional Fees","60434815","202103",24/06/2020 00:00:00,450,"6700","Barristers","REDACTED DATA","FIVE PAPER CHAMBERS- FEES ACCOUNT","",,""
"London Borough of Redbridge","http://opendatacommunities.org/doc/london-borough-council/redbridge","1BOTHEROPI&E","Other Operating Income & Expenditure","1CTRADSURDEF","Trading Account Surpluses & Deficits","REV","Revenue","R9354","Legal Disbursements","04-SUPPLIES","Supplies And Services","04H","Grants and subscriptions","5954","Professional Fees","60434411","202103",17/06/2020 00:00:00,475,"6700","Barristers","REDACTED DATA","FIVE PAPER CHAMBERS- FEES ACCOUNT","",,""
"London Borough of Redbridge","http://opendatacommunities.org/doc/london-borough-council/redbridge","1BOTHEROPI&E","Other Operating Income & Expenditure","1CTRADSURDEF","Trading Account Surpluses & Deficits","REV","Revenue","R9354","Legal Disbursements","04-SUPPLIES","Supplies And Services","04H","Grants and subscriptions","5954","Professional Fees","60434412","202103",23/03/2020 00:00:00,400,"6700","Barristers","REDACTED DATA","LANDMARK CHAMBERS","",,""
"London Borough of Redbridge","http://opendatacommunities.org/doc/london-borough-council/redbridge","1BOTHEROPI&E","Other Operating Income & Expenditure","1CTRADSURDEF","Trading Account Surpluses & Deficits","REV","Revenue","R9354","Legal Disbursements","04-SUPPLIES","Supplies And Services","04H","Grants and subscriptions","5954","Professional Fees","60434805","202103",18/06/2020 00:00:00,320,"47830","Legal Services","REDACTED DATA","11 KBW LTD( ELEVEN KING'S BENCH WALK LTD)","5829287","http://opencorporates.com/companies/gb/5829287","888449060"
"London Borough of Redbridge","http://opendatacommunities.org/doc/london-borough-council/redbridge","1BOTHEROPI&E","Other Operating Income & Expenditure","1CTRADSURDEF","Trading Account Surpluses & Deficits","REV","Revenue","R9354","Legal Disbursements","04-SUPPLIES","Supplies And Services","04H","Grants and subscriptions","5954","Professional Fees","60434304","202103",26/05/2020 00:00:00,-177.6,"47830","Legal Services","REDACTED DATA","SHARPE PRITCHARD LLP","OC378650","http://opencorporates.com/companies/gb/OC378650","233214995"
"London Borough of Redbridge","http://opendatacommunities.org/doc/london-borough-council/redbridge","1BOTHEROPI&E","Other Operating Income & Expenditure","1CTRADSURDEF","Trading Account Surpluses & Deficits","REV","Revenue","R9354","Legal Disbursements","04-SUPPLIES","Supplies And Services","04H","Grants and subscriptions","5954","Professional Fees","60434305","202103",26/05/2020 00:00:00,-153.6,"47830","Legal Services","REDACTED DATA","SHARPE PRITCHARD LLP","OC378650","http://opencorporates.com/companies/gb/OC378650","233214995"
"London Borough of Redbridge","http://opendatacommunities.org/doc/london-borough-council/redbridge","1BOTHEROPI&E","Other Operating Income & Expenditure","1CTRADSURDEF","Trading Account Surpluses & Deficits","REV","Revenue","R9354","Legal Disbursements","04-SUPPLIES","Supplies And Services","04H","Grants and subscriptions","5954","Professional Fees","60434165","202103",30/04/2020 00:00:00,221,"47830","Legal Services","REDACTED DATA","SHARPE PRITCHARD LLP","OC378650","http://opencorporates.com/companies/gb/OC378650","233214995"
"London Borough of Redbridge","http://opendatacommunities.org/doc/london-borough-council/redbridge","1BOTHEROPI&E","Other Operating Income & Expenditure","1CTRADSURDEF","Trading Account Surpluses & Deficits","REV","Revenue","R9354","Legal Disbursements","04-SUPPLIES","Supplies And Services","04H","Grants and subscriptions","5954","Professional Fees","60434170","202103",04/02/2020 00:00:00,400,"6700","Barristers","REDACTED DATA","RICHARD DAVIES","",,"187554759"
"London Borough of Redbridge","http://opendatacommunities.org/doc/london-borough-council/redbridge","1BOTHEROPI&E","Other Operating Income & Expenditure","1CTRADSURDEF","Trading Account Surpluses & Deficits","REV","Revenue","R9354","Legal Disbursements","04-SUPPLIES","Supplies And Services","04H","Grants and subscriptions","5954","Professional Fees","60434169","202103",17/01/2020 00:00:00,350,"45255","Institutes - Professional","REDACTED DATA","NICHOLAS HAM","",,"798946437"
"London Borough of Redbridge","http://opendatacommunities.org/doc/london-borough-council/redbridge","1BOTHEROPI&E","Other Operating Income & Expenditure","1CTRADSURDEF","Trading Account Surpluses & Deficits","REV","Revenue","R9354","Legal Disbursements","04-SUPPLIES","Supplies And Services","04H","Grants and subscriptions","5954","Professional Fees","60433565","202103",27/05/2020 00:00:00,206.7,"72460","Solicitors","REDACTED DATA","BEVAN BRITTAN LLP","OC399219","http://opencorporates.com/companies/gb/OC399219","840723148"
"London Borough of Redbridge","http://opendatacommunities.org/doc/london-borough-council/redbridge","1BOTHEROPI&E","Other Operating Income & Expenditure","1CTRADSURDEF","Trading Account Surpluses & Deficits","REV","Revenue","R9354","Legal Disbursements","04-SUPPLIES","Supplies And Services","04H","Grants and subscriptions","5954","Professional Fees","60433130","202103",28/04/2020 00:00:00,238.5,"72460","Solicitors","REDACTED DATA","BEVAN BRITTAN LLP","OC399219","http://opencorporates.com/companies/gb/OC399219","840723148"
"London Borough of Redbridge","http://opendatacommunities.org/doc/london-borough-council/redbridge","1BOTHEROPI&E","Other Operating Income & Expenditure","1CTRADSURDEF","Trading Account Surpluses & Deficits","REV","Revenue","R9354","Legal Disbursements","04-SUPPLIES","Supplies And Services","04H","Grants and subscriptions","5954","Professional Fees","60434410","202103",12/06/2020 00:00:00,550,"72460","Solicitors","REDACTED DATA","A&M BACON LTD","3694494","http://opencorporates.com/companies/gb/3694494","817021168"
"London Borough of Redbridge","http://opendatacommunities.org/doc/london-borough-council/redbridge","1BOTHEROPI&E","Other Operating Income & Expenditure","1CTRADSURDEF","Trading Account Surpluses & Deficits","REV","Revenue","R9462","HR Employee Experience","01-EMPLOYEES","Employees","01A","Direct employee expenses","4","Agency Staff - Pay","3599605","202103",01/07/2020 00:00:00,243.1,"31230","Employment and Recruitment Agencies","REDACTED DATA","MATRIX SCM LTD","2227962","http://opencorporates.com/companies/gb/2227962","249573468"
"London Borough of Redbridge","http://opendatacommunities.org/doc/london-borough-council/redbridge","1BOTHEROPI&E","Other Operating Income & Expenditure","1CTRADSURDEF","Trading Account Surpluses & Deficits","REV","Revenue","R9462","HR Employee Experience","01-EMPLOYEES","Employees","01A","Direct employee expenses","4","Agency Staff - Pay","3599605","202103",01/07/2020 00:00:00,632.05,"31230","Employment and Recruitment Agencies","REDACTED DATA","MATRIX SCM LTD","2227962","http://opencorporates.com/companies/gb/2227962","249573468"
"London Borough of Redbridge","http://opendatacommunities.org/doc/london-borough-council/redbridge","1BOTHEROPI&E","Other Operating Income & Expenditure","1CTRADSURDEF","Trading Account Surpluses & Deficits","REV","Revenue","R9462","HR Employee Experience","01-EMPLOYEES","Employees","01A","Direct employee expenses","4","Agency Staff - Pay","3599605","202103",01/07/2020 00:00:00,840,"31230","Employment and Recruitment Agencies","REDACTED DATA","MATRIX SCM LTD","2227962","http://opencorporates.com/companies/gb/2227962","249573468"
"London Borough of Redbridge","http://opendatacommunities.org/doc/london-borough-council/redbridge","1BOTHEROPI&E","Other Operating Income & Expenditure","1CTRADSURDEF","Trading Account Surpluses & Deficits","REV","Revenue","R9462","HR Employee Experience","04-SUPPLIES","Supplies And Services","04H","Grants and subscriptions","5954","Professional Fees","60434679","202103",06/02/2020 00:00:00,250,"48583","Local Government","REDACTED DATA","LONDON BOROUGH OF WALTHAM FOREST","",,"248212866"
"London Borough of Redbridge","http://opendatacommunities.org/doc/london-borough-council/redbridge","1BOTHEROPI&E","Other Operating Income & Expenditure","1CTRADSURDEF","Trading Account Surpluses & Deficits","REV","Revenue","R9462","HR Employee Experience","04-SUPPLIES","Supplies And Services","04H","Grants and subscriptions","5954","Professional Fees","60434403","202103",01/05/2020 00:00:00,79,"24080","Database Services","REDACTED DATA","ATLANTIC DATA LTD","4085856","http://opencorporates.com/companies/gb/4085856","755878078"
"London Borough of Redbridge","http://opendatacommunities.org/doc/london-borough-council/redbridge","1BOTHEROPI&E","Other Operating Income & Expenditure","1CTRADSURDEF","Trading Account Surpluses & Deficits","REV","Revenue","R9551","CLM Maintenance","02-PREMISES","Premises","02A","Repairs, alteration and maintenance of buildings","3016","General Premises Costs","3597737","202103",29/05/2020 00:00:00,365,"51520","Mobility Equipment","REDACTED DATA","EVAC+CHAIR INTERNATIONAL LIMITED","3593826","http://opencorporates.com/companies/gb/3593826","705337746"
"London Borough of Redbridge","http://opendatacommunities.org/doc/london-borough-council/redbridge","1BOTHEROPI&E","Other Operating Income & Expenditure","1CTRADSURDEF","Trading Account Surpluses & Deficits","REV","Revenue","R9551","CLM Maintenance","02-PREMISES","Premises","02A","Repairs, alteration and maintenance of buildings","3016","General Premises Costs","3596738","202103",31/05/2020 00:00:00,14,"77780","Theatrical Costumes, Equipment and Supplies","REDACTED DATA","TERRY TEW SOUND & LIGHTING","",,"736164824"
"London Borough of Redbridge","http://opendatacommunities.org/doc/london-borough-council/redbridge","1BOTHEROPI&E","Other Operating Income & Expenditure","1CTRADSURDEF","Trading Account Surpluses & Deficits","REV","Revenue","R9551","CLM Maintenance","02-PREMISES","Premises","02A","Repairs, alteration and maintenance of buildings","3026","Minor Maintenance","3597220","202103",21/05/2020 00:00:00,75,"35290","Fire Alarm Systems","REDACTED DATA","MULTI-ALARM SYSTEMS (GB) LTD","1020755","http://opencorporates.com/companies/gb/1020755","358056637"
"London Borough of Redbridge","http://opendatacommunities.org/doc/london-borough-council/redbridge","1BOTHEROPI&E","Other Operating Income & Expenditure","1CTRADSURDEF","Trading Account Surpluses & Deficits","REV","Revenue","R9551","CLM Maintenance","02-PREMISES","Premises","02A","Repairs, alteration and maintenance of buildings","3026","Minor Maintenance","3597239","202103",29/05/2020 00:00:00,245,"40470","Glaziers","REDACTED DATA","ADVANCED WOODFORD GLAZING COMPANY","5866306","http://opencorporates.com/companies/gb/5866306","906069231"
"London Borough of Redbridge","http://opendatacommunities.org/doc/london-borough-council/redbridge","1BOTHEROPI&E","Other Operating Income & Expenditure","1CTRADSURDEF","Trading Account Surpluses & Deficits","REV","Revenue","R9551","CLM Maintenance","02-PREMISES","Premises","02A","Repairs, alteration and maintenance of buildings","3026","Minor Maintenance","3598605","202103",17/06/2020 00:00:00,118.6,"35290","Fire Alarm Systems","REDACTED DATA","MULTI-ALARM SYSTEMS (GB) LTD","1020755","http://opencorporates.com/companies/gb/1020755","358056637"
"London Borough of Redbridge","http://opendatacommunities.org/doc/london-borough-council/redbridge","1BOTHEROPI&E","Other Operating Income & Expenditure","1CTRADSURDEF","Trading Account Surpluses & Deficits","REV","Revenue","R9551","CLM Maintenance","02-PREMISES","Premises","02A","Repairs, alteration and maintenance of buildings","3026","Minor Maintenance","3598606","202103",17/06/2020 00:00:00,93.2,"35290","Fire Alarm Systems","REDACTED DATA","MULTI-ALARM SYSTEMS (GB) LTD","1020755","http://opencorporates.com/companies/gb/1020755","358056637"
"London Borough of Redbridge","http://opendatacommunities.org/doc/london-borough-council/redbridge","1BOTHEROPI&E","Other Operating Income & Expenditure","1CTRADSURDEF","Trading Account Surpluses & Deficits","REV","Revenue","R9551","CLM Maintenance","02-PREMISES","Premises","02A","Repairs, alteration and maintenance of buildings","3026","Minor Maintenance","3597223","202103",26/05/2020 00:00:00,75,"35290","Fire Alarm Systems","REDACTED DATA","MULTI-ALARM SYSTEMS (GB) LTD","1020755","http://opencorporates.com/companies/gb/1020755","358056637"
"London Borough of Redbridge","http://opendatacommunities.org/doc/london-borough-council/redbridge","1BOTHEROPI&E","Other Operating Income & Expenditure","1CTRADSURDEF","Trading Account Surpluses & Deficits","REV","Revenue","R9551","CLM Maintenance","02-PREMISES","Premises","02A","Repairs, alteration and maintenance of buildings","3026","Minor Maintenance","3598592","202103",16/06/2020 00:00:00,-81.6,"30250","Electrical Heating Equipment and Systems","REDACTED DATA","OAKRAY LTD","1458147","http://opencorporates.com/companies/gb/1458147","327787712"
"London Borough of Redbridge","http://opendatacommunities.org/doc/london-borough-council/redbridge","1BOTHEROPI&E","Other Operating Income & Expenditure","1CTRADSURDEF","Trading Account Surpluses & Deficits","REV","Revenue","R9551","CLM Maintenance","02-PREMISES","Premises","02A","Repairs, alteration and maintenance of buildings","3026","Minor Maintenance","3598593","202103",10/10/2018 00:00:00,40.8,"30250","Electrical Heating Equipment and Systems","REDACTED DATA","OAKRAY LTD","1458147","http://opencorporates.com/companies/gb/1458147","327787712"
"London Borough of Redbridge","http://opendatacommunities.org/doc/london-borough-council/redbridge","1BOTHEROPI&E","Other Operating Income & Expenditure","1CTRADSURDEF","Trading Account Surpluses & Deficits","REV","Revenue","R9551","CLM Maintenance","02-PREMISES","Premises","02A","Repairs, alteration and maintenance of buildings","3026","Minor Maintenance","3596671","202103",14/05/2020 00:00:00,25.84,"26625","Do It Yourself Wholesalers","REDACTED DATA","SCREWFIX DIRECT LIMITED T/A TRADE UK","3006378","http://opencorporates.com/companies/gb/3006378","232555575"
"London Borough of Redbridge","http://opendatacommunities.org/doc/london-borough-council/redbridge","1BOTHEROPI&E","Other Operating Income & Expenditure","1CTRADSURDEF","Trading Account Surpluses & Deficits","REV","Revenue","R9551","CLM Maintenance","02-PREMISES","Premises","02A","Repairs, alteration and maintenance of buildings","3026","Minor Maintenance","3597722","202103",16/06/2020 00:00:00,204,"11040","Builders","REDACTED DATA","M & G CONSTRUCTION LTD.","1918880","http://opencorporates.com/companies/gb/1918880","406392853"
"London Borough of Redbridge","http://opendatacommunities.org/doc/london-borough-council/redbridge","1BOTHEROPI&E","Other Operating Income & Expenditure","1CTRADSURDEF","Trading Account Surpluses & Deficits","REV","Revenue","R9551","CLM Maintenance","02-PREMISES","Premises","02A","Repairs, alteration and maintenance of buildings","3026","Minor Maintenance","3596705","202103",21/05/2020 00:00:00,285.37,"11040","Builders","REDACTED DATA","M & G CONSTRUCTION LTD.","1918880","http://opencorporates.com/companies/gb/1918880","406392853"
"London Borough of Redbridge","http://opendatacommunities.org/doc/london-borough-council/redbridge","1BOTHEROPI&E","Other Operating Income & Expenditure","1CTRADSURDEF","Trading Account Surpluses & Deficits","REV","Revenue","R9551","CLM Maintenance","02-PREMISES","Premises","02A","Repairs, alteration and maintenance of buildings","3026","Minor Maintenance","3596714","202103",28/05/2020 00:00:00,85,"11040","Builders","REDACTED DATA","M & G CONSTRUCTION LTD.","1918880","http://opencorporates.com/companies/gb/1918880","406392853"
"London Borough of Redbridge","http://opendatacommunities.org/doc/london-borough-council/redbridge","1BOTHEROPI&E","Other Operating Income & Expenditure","1CTRADSURDEF","Trading Account Surpluses & Deficits","REV","Revenue","R9551","CLM Maintenance","02-PREMISES","Premises","02A","Repairs, alteration and maintenance of buildings","3026","Minor Maintenance","3596678","202103",21/05/2020 00:00:00,154.24,"11040","Builders","REDACTED DATA","M & G CONSTRUCTION LTD.","1918880","http://opencorporates.com/companies/gb/1918880","406392853"
"London Borough of Redbridge","http://opendatacommunities.org/doc/london-borough-council/redbridge","1BOTHEROPI&E","Other Operating Income & Expenditure","1CTRADSURDEF","Trading Account Surpluses & Deficits","REV","Revenue","R9551","CLM Maintenance","02-PREMISES","Premises","02A","Repairs, alteration and maintenance of buildings","3026","Minor Maintenance","3597719","202103",15/06/2020 00:00:00,286,"11040","Builders","REDACTED DATA","M & G CONSTRUCTION LTD.","1918880","http://opencorporates.com/companies/gb/1918880","406392853"
"London Borough of Redbridge","http://opendatacommunities.org/doc/london-borough-council/redbridge","1BOTHEROPI&E","Other Operating Income & Expenditure","1CTRADSURDEF","Trading Account Surpluses & Deficits","REV","Revenue","R9551","CLM Maintenance","02-PREMISES","Premises","02A","Repairs, alteration and maintenance of buildings","3026","Minor Maintenance","3596697","202103",21/05/2020 00:00:00,253,"11040","Builders","REDACTED DATA","M & G CONSTRUCTION LTD.","1918880","http://opencorporates.com/companies/gb/1918880","406392853"
"London Borough of Redbridge","http://opendatacommunities.org/doc/london-borough-council/redbridge","1BOTHEROPI&E","Other Operating Income & Expenditure","1CTRADSURDEF","Trading Account Surpluses & Deficits","REV","Revenue","R9551","CLM Maintenance","02-PREMISES","Premises","02A","Repairs, alteration and maintenance of buildings","3026","Minor Maintenance","3596719","202103",28/05/2020 00:00:00,280,"11040","Builders","REDACTED DATA","M & G CONSTRUCTION LTD.","1918880","http://opencorporates.com/companies/gb/1918880","406392853"
"London Borough of Redbridge","http://opendatacommunities.org/doc/london-borough-council/redbridge","1BOTHEROPI&E","Other Operating Income & Expenditure","1CTRADSURDEF","Trading Account Surpluses & Deficits","REV","Revenue","R9551","CLM Maintenance","02-PREMISES","Premises","02A","Repairs, alteration and maintenance of buildings","3026","Minor Maintenance","3596672","202103",21/05/2020 00:00:00,197.6,"11040","Builders","REDACTED DATA","M & G CONSTRUCTION LTD.","1918880","http://opencorporates.com/companies/gb/1918880","406392853"
"London Borough of Redbridge","http://opendatacommunities.org/doc/london-borough-council/redbridge","1BOTHEROPI&E","Other Operating Income & Expenditure","1CTRADSURDEF","Trading Account Surpluses & Deficits","REV","Revenue","R9551","CLM Maintenance","02-PREMISES","Premises","02A","Repairs, alteration and maintenance of buildings","3026","Minor Maintenance","3596733","202103",04/06/2020 00:00:00,145,"11040","Builders","REDACTED DATA","M & G CONSTRUCTION LTD.","1918880","http://opencorporates.com/companies/gb/1918880","406392853"
"London Borough of Redbridge","http://opendatacommunities.org/doc/london-borough-council/redbridge","1BOTHEROPI&E","Other Operating Income & Expenditure","1CTRADSURDEF","Trading Account Surpluses & Deficits","REV","Revenue","R9551","CLM Maintenance","02-PREMISES","Premises","02A","Repairs, alteration and maintenance of buildings","3026","Minor Maintenance","3596691","202103",21/05/2020 00:00:00,187,"11040","Builders","REDACTED DATA","M & G CONSTRUCTION LTD.","1918880","http://opencorporates.com/companies/gb/1918880","406392853"
"London Borough of Redbridge","http://opendatacommunities.org/doc/london-borough-council/redbridge","1BOTHEROPI&E","Other Operating Income & Expenditure","1CTRADSURDEF","Trading Account Surpluses & Deficits","REV","Revenue","R9551","CLM Maintenance","02-PREMISES","Premises","02A","Repairs, alteration and maintenance of buildings","3026","Minor Maintenance","3596683","202103",21/05/2020 00:00:00,175,"11040","Builders","REDACTED DATA","M & G CONSTRUCTION LTD.","1918880","http://opencorporates.com/companies/gb/1918880","406392853"
"London Borough of Redbridge","http://opendatacommunities.org/doc/london-borough-council/redbridge","1BOTHEROPI&E","Other Operating Income & Expenditure","1CTRADSURDEF","Trading Account Surpluses & Deficits","REV","Revenue","R9551","CLM Maintenance","02-PREMISES","Premises","02A","Repairs, alteration and maintenance of buildings","3026","Minor Maintenance","3597699","202103",30/11/2018 00:00:00,175.35,"11040","Builders","REDACTED DATA","M & G CONSTRUCTION LTD.","1918880","http://opencorporates.com/companies/gb/1918880","406392853"
"London Borough of Redbridge","http://opendatacommunities.org/doc/london-borough-council/redbridge","1BOTHEROPI&E","Other Operating Income & Expenditure","1CTRADSURDEF","Trading Account Surpluses & Deficits","REV","Revenue","R9551","CLM Maintenance","02-PREMISES","Premises","02A","Repairs, alteration and maintenance of buildings","3026","Minor Maintenance","3596709","202103",21/05/2020 00:00:00,82,"11040","Builders","REDACTED DATA","M & G CONSTRUCTION LTD.","1918880","http://opencorporates.com/companies/gb/1918880","406392853"
"London Borough of Redbridge","http://opendatacommunities.org/doc/london-borough-council/redbridge","1BOTHEROPI&E","Other Operating Income & Expenditure","1CTRADSURDEF","Trading Account Surpluses & Deficits","REV","Revenue","R9551","CLM Maintenance","02-PREMISES","Premises","02A","Repairs, alteration and maintenance of buildings","3026","Minor Maintenance","3597703","202103",12/06/2020 00:00:00,85,"11040","Builders","REDACTED DATA","M & G CONSTRUCTION LTD.","1918880","http://opencorporates.com/companies/gb/1918880","406392853"
"London Borough of Redbridge","http://opendatacommunities.org/doc/london-borough-council/redbridge","1BOTHEROPI&E","Other Operating Income & Expenditure","1CTRADSURDEF","Trading Account Surpluses & Deficits","REV","Revenue","R9551","CLM Maintenance","02-PREMISES","Premises","02A","Repairs, alteration and maintenance of buildings","3026","Minor Maintenance","3597704","202103",12/06/2020 00:00:00,145,"11040","Builders","REDACTED DATA","M & G CONSTRUCTION LTD.","1918880","http://opencorporates.com/companies/gb/1918880","406392853"
"London Borough of Redbridge","http://opendatacommunities.org/doc/london-borough-council/redbridge","1BOTHEROPI&E","Other Operating Income & Expenditure","1CTRADSURDEF","Trading Account Surpluses & Deficits","REV","Revenue","R9551","CLM Maintenance","02-PREMISES","Premises","02A","Repairs, alteration and maintenance of buildings","3026","Minor Maintenance","3597705","202103",12/06/2020 00:00:00,145,"11040","Builders","REDACTED DATA","M & G CONSTRUCTION LTD.","1918880","http://opencorporates.com/companies/gb/1918880","406392853"
"London Borough of Redbridge","http://opendatacommunities.org/doc/london-borough-council/redbridge","1BOTHEROPI&E","Other Operating Income & Expenditure","1CTRADSURDEF","Trading Account Surpluses & Deficits","REV","Revenue","R9551","CLM Maintenance","02-PREMISES","Premises","02A","Repairs, alteration and maintenance of buildings","3026","Minor Maintenance","3596674","202103",21/05/2020 00:00:00,147,"11040","Builders","REDACTED DATA","M & G CONSTRUCTION LTD.","1918880","http://opencorporates.com/companies/gb/1918880","406392853"
"London Borough of Redbridge","http://opendatacommunities.org/doc/london-borough-council/redbridge","1BOTHEROPI&E","Other Operating Income & Expenditure","1CTRADSURDEF","Trading Account Surpluses & Deficits","REV","Revenue","R9551","CLM Maintenance","02-PREMISES","Premises","02A","Repairs, alteration and maintenance of buildings","3026","Minor Maintenance","3596676","202103",21/05/2020 00:00:00,115,"11040","Builders","REDACTED DATA","M & G CONSTRUCTION LTD.","1918880","http://opencorporates.com/companies/gb/1918880","406392853"
"London Borough of Redbridge","http://opendatacommunities.org/doc/london-borough-council/redbridge","1BOTHEROPI&E","Other Operating Income & Expenditure","1CTRADSURDEF","Trading Account Surpluses & Deficits","REV","Revenue","R9551","CLM Maintenance","02-PREMISES","Premises","02A","Repairs, alteration and maintenance of buildings","3026","Minor Maintenance","3596735","202103",04/06/2020 00:00:00,187.13,"11040","Builders","REDACTED DATA","M & G CONSTRUCTION LTD.","1918880","http://opencorporates.com/companies/gb/1918880","406392853"
"London Borough of Redbridge","http://opendatacommunities.org/doc/london-borough-council/redbridge","1BOTHEROPI&E","Other Operating Income & Expenditure","1CTRADSURDEF","Trading Account Surpluses & Deficits","REV","Revenue","R9551","CLM Maintenance","02-PREMISES","Premises","02A","Repairs, alteration and maintenance of buildings","3026","Minor Maintenance","3596723","202103",28/05/2020 00:00:00,163.99,"11040","Builders","REDACTED DATA","M & G CONSTRUCTION LTD.","1918880","http://opencorporates.com/companies/gb/1918880","406392853"
"London Borough of Redbridge","http://opendatacommunities.org/doc/london-borough-council/redbridge","1BOTHEROPI&E","Other Operating Income & Expenditure","1CTRADSURDEF","Trading Account Surpluses & Deficits","REV","Revenue","R9551","CLM Maintenance","02-PREMISES","Premises","02A","Repairs, alteration and maintenance of buildings","3026","Minor Maintenance","3596685","202103",21/05/2020 00:00:00,155.2,"11040","Builders","REDACTED DATA","M & G CONSTRUCTION LTD.","1918880","http://opencorporates.com/companies/gb/1918880","406392853"
"London Borough of Redbridge","http://opendatacommunities.org/doc/london-borough-council/redbridge","1BOTHEROPI&E","Other Operating Income & Expenditure","1CTRADSURDEF","Trading Account Surpluses & Deficits","REV","Revenue","R9551","CLM Maintenance","02-PREMISES","Premises","02A","Repairs, alteration and maintenance of buildings","3026","Minor Maintenance","3596680","202103",21/05/2020 00:00:00,194.93,"11040","Builders","REDACTED DATA","M & G CONSTRUCTION LTD.","1918880","http://opencorporates.com/companies/gb/1918880","406392853"
"London Borough of Redbridge","http://opendatacommunities.org/doc/london-borough-council/redbridge","1BOTHEROPI&E","Other Operating Income & Expenditure","1CTRADSURDEF","Trading Account Surpluses & Deficits","REV","Revenue","R9551","CLM Maintenance","02-PREMISES","Premises","02A","Repairs, alteration and maintenance of buildings","3026","Minor Maintenance","3596720","202103",28/05/2020 00:00:00,145,"11040","Builders","REDACTED DATA","M & G CONSTRUCTION LTD.","1918880","http://opencorporates.com/companies/gb/1918880","406392853"
"London Borough of Redbridge","http://opendatacommunities.org/doc/london-borough-council/redbridge","1BOTHEROPI&E","Other Operating Income & Expenditure","1CTRADSURDEF","Trading Account Surpluses & Deficits","REV","Revenue","R9551","CLM Maintenance","02-PREMISES","Premises","02A","Repairs, alteration and maintenance of buildings","3026","Minor Maintenance","3596700","202103",21/05/2020 00:00:00,225,"11040","Builders","REDACTED DATA","M & G CONSTRUCTION LTD.","1918880","http://opencorporates.com/companies/gb/1918880","406392853"
"London Borough of Redbridge","http://opendatacommunities.org/doc/london-borough-council/redbridge","1BOTHEROPI&E","Other Operating Income & Expenditure","1CTRADSURDEF","Trading Account Surpluses & Deficits","REV","Revenue","R9551","CLM Maintenance","02-PREMISES","Premises","02A","Repairs, alteration and maintenance of buildings","3026","Minor Maintenance","3596673","202103",21/05/2020 00:00:00,182,"11040","Builders","REDACTED DATA","M & G CONSTRUCTION LTD.","1918880","http://opencorporates.com/companies/gb/1918880","406392853"
"London Borough of Redbridge","http://opendatacommunities.org/doc/london-borough-council/redbridge","1BOTHEROPI&E","Other Operating Income & Expenditure","1CTRADSURDEF","Trading Account Surpluses & Deficits","REV","Revenue","R9551","CLM Maintenance","02-PREMISES","Premises","02A","Repairs, alteration and maintenance of buildings","3026","Minor Maintenance","3596736","202103",04/06/2020 00:00:00,152.19,"11040","Builders","REDACTED DATA","M & G CONSTRUCTION LTD.","1918880","http://opencorporates.com/companies/gb/1918880","406392853"
"London Borough of Redbridge","http://opendatacommunities.org/doc/london-borough-council/redbridge","1BOTHEROPI&E","Other Operating Income & Expenditure","1CTRADSURDEF","Trading Account Surpluses & Deficits","REV","Revenue","R9551","CLM Maintenance","02-PREMISES","Premises","02A","Repairs, alteration and maintenance of buildings","3026","Minor Maintenance","3596724","202103",28/05/2020 00:00:00,191.9,"11040","Builders","REDACTED DATA","M & G CONSTRUCTION LTD.","1918880","http://opencorporates.com/companies/gb/1918880","406392853"
"London Borough of Redbridge","http://opendatacommunities.org/doc/london-borough-council/redbridge","1BOTHEROPI&E","Other Operating Income & Expenditure","1CTRADSURDEF","Trading Account Surpluses & Deficits","REV","Revenue","R9551","CLM Maintenance","02-PREMISES","Premises","02A","Repairs, alteration and maintenance of buildings","3026","Minor Maintenance","3596725","202103",28/05/2020 00:00:00,231.68,"11040","Builders","REDACTED DATA","M & G CONSTRUCTION LTD.","1918880","http://opencorporates.com/companies/gb/1918880","406392853"
"London Borough of Redbridge","http://opendatacommunities.org/doc/london-borough-council/redbridge","1BOTHEROPI&E","Other Operating Income & Expenditure","1CTRADSURDEF","Trading Account Surpluses & Deficits","REV","Revenue","R9551","CLM Maintenance","02-PREMISES","Premises","02A","Repairs, alteration and maintenance of buildings","3026","Minor Maintenance","3597670","202103",05/06/2020 00:00:00,82.5,"15269","Cleaning Services - Commercial","REDACTED DATA","LEWIS & GRAVES PARTNERSHIP LLP","8953594","http://opencorporates.com/companies/gb/8953594","135553810"
"London Borough of Redbridge","http://opendatacommunities.org/doc/london-borough-council/redbridge","1BOTHEROPI&E","Other Operating Income & Expenditure","1CTRADSURDEF","Trading Account Surpluses & Deficits","REV","Revenue","R9551","CLM Maintenance","02-PREMISES","Premises","02A","Repairs, alteration and maintenance of buildings","3026","Minor Maintenance","3597687","202103",09/06/2020 00:00:00,112.5,"16111","Catering Equipment","REDACTED DATA","J SCOTT & SONS  LTD","",,"354241082"
"London Borough of Redbridge","http://opendatacommunities.org/doc/london-borough-council/redbridge","1BOTHEROPI&E","Other Operating Income & Expenditure","1CTRADSURDEF","Trading Account Surpluses & Deficits","REV","Revenue","R9551","CLM Maintenance","02-PREMISES","Premises","02A","Repairs, alteration and maintenance of buildings","3026","Minor Maintenance","3596752","202103",08/06/2020 00:00:00,132.8,"16111","Catering Equipment","REDACTED DATA","J SCOTT & SONS  LTD","",,"354241082"
"London Borough of Redbridge","http://opendatacommunities.org/doc/london-borough-council/redbridge","1BOTHEROPI&E","Other Operating Income & Expenditure","1CTRADSURDEF","Trading Account Surpluses & Deficits","REV","Revenue","R9551","CLM Maintenance","02-PREMISES","Premises","02A","Repairs, alteration and maintenance of buildings","3026","Minor Maintenance","3596747","202103",05/06/2020 00:00:00,112.5,"16111","Catering Equipment","REDACTED DATA","J SCOTT & SONS  LTD","",,"354241082"
"London Borough of Redbridge","http://opendatacommunities.org/doc/london-borough-council/redbridge","1BOTHEROPI&E","Other Operating Income & Expenditure","1CTRADSURDEF","Trading Account Surpluses & Deficits","REV","Revenue","R9551","CLM Maintenance","02-PREMISES","Premises","02A","Repairs, alteration and maintenance of buildings","3026","Minor Maintenance","3596731","202103",03/06/2020 00:00:00,140,"16111","Catering Equipment","REDACTED DATA","J SCOTT & SONS  LTD","",,"354241082"
"London Borough of Redbridge","http://opendatacommunities.org/doc/london-borough-council/redbridge","1BOTHEROPI&E","Other Operating Income & Expenditure","1CTRADSURDEF","Trading Account Surpluses & Deficits","REV","Revenue","R9551","CLM Maintenance","02-PREMISES","Premises","02A","Repairs, alteration and maintenance of buildings","3026","Minor Maintenance","3596749","202103",08/06/2020 00:00:00,84,"16111","Catering Equipment","REDACTED DATA","J SCOTT & SONS  LTD","",,"354241082"
"London Borough of Redbridge","http://opendatacommunities.org/doc/london-borough-council/redbridge","1BOTHEROPI&E","Other Operating Income & Expenditure","1CTRADSURDEF","Trading Account Surpluses & Deficits","REV","Revenue","R9551","CLM Maintenance","02-PREMISES","Premises","02A","Repairs, alteration and maintenance of buildings","3026","Minor Maintenance","3597231","202103",20/05/2020 00:00:00,120,"69240","Security Services","REDACTED DATA","HALL & KAY FIRE SERVICES LTD T/A HALL & KAY FIRE ENGINEERING","5211559","http://opencorporates.com/companies/gb/5211559","199888505"
"London Borough of Redbridge","http://opendatacommunities.org/doc/london-borough-council/redbridge","1BOTHEROPI&E","Other Operating Income & Expenditure","1CTRADSURDEF","Trading Account Surpluses & Deficits","REV","Revenue","R9551","CLM Maintenance","02-PREMISES","Premises","02A","Repairs, alteration and maintenance of buildings","3026","Minor Maintenance","3597232","202103",20/05/2020 00:00:00,120,"69240","Security Services","REDACTED DATA","HALL & KAY FIRE SERVICES LTD T/A HALL & KAY FIRE ENGINEERING","5211559","http://opencorporates.com/companies/gb/5211559","199888505"
"London Borough of Redbridge","http://opendatacommunities.org/doc/london-borough-council/redbridge","1BOTHEROPI&E","Other Operating Income & Expenditure","1CTRADSURDEF","Trading Account Surpluses & Deficits","REV","Revenue","R9551","CLM Maintenance","02-PREMISES","Premises","02A","Repairs, alteration and maintenance of buildings","3026","Minor Maintenance","3597698","202103",08/06/2020 00:00:00,120,"69240","Security Services","REDACTED DATA","HALL & KAY FIRE SERVICES LTD T/A HALL & KAY FIRE ENGINEERING","5211559","http://opencorporates.com/companies/gb/5211559","199888505"
"London Borough of Redbridge","http://opendatacommunities.org/doc/london-borough-council/redbridge","1BOTHEROPI&E","Other Operating Income & Expenditure","1CTRADSURDEF","Trading Account Surpluses & Deficits","REV","Revenue","R9551","CLM Maintenance","02-PREMISES","Premises","02A","Repairs, alteration and maintenance of buildings","3026","Minor Maintenance","3597700","202103",08/06/2020 00:00:00,120,"69240","Security Services","REDACTED DATA","HALL & KAY FIRE SERVICES LTD T/A HALL & KAY FIRE ENGINEERING","5211559","http://opencorporates.com/companies/gb/5211559","199888505"
"London Borough of Redbridge","http://opendatacommunities.org/doc/london-borough-council/redbridge","1BOTHEROPI&E","Other Operating Income & Expenditure","1CTRADSURDEF","Trading Account Surpluses & Deficits","REV","Revenue","R9551","CLM Maintenance","02-PREMISES","Premises","02A","Repairs, alteration and maintenance of buildings","3026","Minor Maintenance","3597697","202103",08/06/2020 00:00:00,504.43,"69240","Security Services","REDACTED DATA","HALL & KAY FIRE SERVICES LTD T/A HALL & KAY FIRE ENGINEERING","5211559","http://opencorporates.com/companies/gb/5211559","199888505"
"London Borough of Redbridge","http://opendatacommunities.org/doc/london-borough-council/redbridge","1BOTHEROPI&E","Other Operating Income & Expenditure","1CTRADSURDEF","Trading Account Surpluses & Deficits","REV","Revenue","R9551","CLM Maintenance","02-PREMISES","Premises","02A","Repairs, alteration and maintenance of buildings","3026","Minor Maintenance","3597225","202103",27/05/2020 00:00:00,50,"2950","Air Conditioning and Refrigeration Contractors","REDACTED DATA","NIXON & FARROW","4159118","http://opencorporates.com/companies/gb/4159118","683409123"
"London Borough of Redbridge","http://opendatacommunities.org/doc/london-borough-council/redbridge","1BOTHEROPI&E","Other Operating Income & Expenditure","1CTRADSURDEF","Trading Account Surpluses & Deficits","REV","Revenue","R9551","CLM Maintenance","02-PREMISES","Premises","02A","Repairs, alteration and maintenance of buildings","3026","Minor Maintenance","3596730","202103",02/06/2020 00:00:00,75,"2950","Air Conditioning and Refrigeration Contractors","REDACTED DATA","NIXON & FARROW","4159118","http://opencorporates.com/companies/gb/4159118","683409123"
"London Borough of Redbridge","http://opendatacommunities.org/doc/london-borough-council/redbridge","1BOTHEROPI&E","Other Operating Income & Expenditure","1CTRADSURDEF","Trading Account Surpluses & Deficits","REV","Revenue","R9551","CLM Maintenance","02-PREMISES","Premises","02A","Repairs, alteration and maintenance of buildings","3026","Minor Maintenance","3597657","202103",26/05/2020 00:00:00,190,"57130","Pest and Vermin Control Products","REDACTED DATA","RAPTOR SERVICES LTD (SOUTH EAST) LTD","6624216","http://opencorporates.com/companies/gb/6624216","650089346"
"London Borough of Redbridge","http://opendatacommunities.org/doc/london-borough-council/redbridge","1BOTHEROPI&E","Other Operating Income & Expenditure","1CTRADSURDEF","Trading Account Surpluses & Deficits","REV","Revenue","R9551","CLM Maintenance","02-PREMISES","Premises","02A","Repairs, alteration and maintenance of buildings","3026","Minor Maintenance","3596761","202103",08/06/2020 00:00:00,70,"30045","Electrical Engineers","REDACTED DATA","COUNTY ELECTRICAL SOLUTIONS LTD","6476990","http://opencorporates.com/companies/gb/6476990","924889474"
"London Borough of Redbridge","http://opendatacommunities.org/doc/london-borough-council/redbridge","1BOTHEROPI&E","Other Operating Income & Expenditure","1CTRADSURDEF","Trading Account Surpluses & Deficits","REV","Revenue","R9551","CLM Maintenance","02-PREMISES","Premises","02A","Repairs, alteration and maintenance of buildings","3026","Minor Maintenance","3596761","202103",08/06/2020 00:00:00,0,"30045","Electrical Engineers","REDACTED DATA","COUNTY ELECTRICAL SOLUTIONS LTD","6476990","http://opencorporates.com/companies/gb/6476990","924889474"
"London Borough of Redbridge","http://opendatacommunities.org/doc/london-borough-council/redbridge","1BOTHEROPI&E","Other Operating Income & Expenditure","1CTRADSURDEF","Trading Account Surpluses & Deficits","REV","Revenue","R9551","CLM Maintenance","02-PREMISES","Premises","02A","Repairs, alteration and maintenance of buildings","3026","Minor Maintenance","3598587","202103",13/06/2020 00:00:00,186.2,"16710","Central Heating - Installation and Servicing","REDACTED DATA","J R ASHWORTH PLMBING & HTG LTD","",,""
"London Borough of Redbridge","http://opendatacommunities.org/doc/london-borough-council/redbridge","1BOTHEROPI&E","Other Operating Income & Expenditure","1CTRADSURDEF","Trading Account Surpluses & Deficits","REV","Revenue","R9551","CLM Maintenance","02-PREMISES","Premises","02A","Repairs, alteration and maintenance of buildings","3026","Minor Maintenance","3598575","202103",22/08/2019 00:00:00,118,"30025","Electrical Distribution Companies","REDACTED DATA","REXEL UK LTD T/A WFSENATE","434724","http://opencorporates.com/companies/gb/434724","614213680"
"London Borough of Redbridge","http://opendatacommunities.org/doc/london-borough-council/redbridge","1BOTHEROPI&E","Other Operating Income & Expenditure","1CTRADSURDEF","Trading Account Surpluses & Deficits","REV","Revenue","R9551","CLM Maintenance","02-PREMISES","Premises","02A","Repairs, alteration and maintenance of buildings","3026","Minor Maintenance","3598576","202103",25/09/2019 00:00:00,119.24,"30025","Electrical Distribution Companies","REDACTED DATA","REXEL UK LTD T/A WFSENATE","434724","http://opencorporates.com/companies/gb/434724","614213680"
"London Borough of Redbridge","http://opendatacommunities.org/doc/london-borough-council/redbridge","1BOTHEROPI&E","Other Operating Income & Expenditure","1CTRADSURDEF","Trading Account Surpluses & Deficits","REV","Revenue","R9551","CLM Maintenance","02-PREMISES","Premises","02A","Repairs, alteration and maintenance of buildings","3026","Minor Maintenance","3596757","202103",08/06/2020 00:00:00,42.5,"30045","Electrical Engineers","REDACTED DATA","COUNTY ELECTRICAL SOLUTIONS LTD","6476990","http://opencorporates.com/companies/gb/6476990","924889474"
"London Borough of Redbridge","http://opendatacommunities.org/doc/london-borough-council/redbridge","1BOTHEROPI&E","Other Operating Income & Expenditure","1CTRADSURDEF","Trading Account Surpluses & Deficits","REV","Revenue","R9551","CLM Maintenance","02-PREMISES","Premises","02A","Repairs, alteration and maintenance of buildings","3026","Minor Maintenance","3596757","202103",08/06/2020 00:00:00,90,"30045","Electrical Engineers","REDACTED DATA","COUNTY ELECTRICAL SOLUTIONS LTD","6476990","http://opencorporates.com/companies/gb/6476990","924889474"
"London Borough of Redbridge","http://opendatacommunities.org/doc/london-borough-council/redbridge","1BOTHEROPI&E","Other Operating Income & Expenditure","1CTRADSURDEF","Trading Account Surpluses & Deficits","REV","Revenue","R9551","CLM Maintenance","02-PREMISES","Premises","02A","Repairs, alteration and maintenance of buildings","3026","Minor Maintenance","3596768","202103",08/06/2020 00:00:00,214.3,"30045","Electrical Engineers","REDACTED DATA","COUNTY ELECTRICAL SOLUTIONS LTD","6476990","http://opencorporates.com/companies/gb/6476990","924889474"
"London Borough of Redbridge","http://opendatacommunities.org/doc/london-borough-council/redbridge","1BOTHEROPI&E","Other Operating Income & Expenditure","1CTRADSURDEF","Trading Account Surpluses & Deficits","REV","Revenue","R9551","CLM Maintenance","02-PREMISES","Premises","02A","Repairs, alteration and maintenance of buildings","3026","Minor Maintenance","3596768","202103",08/06/2020 00:00:00,180,"30045","Electrical Engineers","REDACTED DATA","COUNTY ELECTRICAL SOLUTIONS LTD","6476990","http://opencorporates.com/companies/gb/6476990","924889474"
"London Borough of Redbridge","http://opendatacommunities.org/doc/london-borough-council/redbridge","1BOTHEROPI&E","Other Operating Income & Expenditure","1CTRADSURDEF","Trading Account Surpluses & Deficits","REV","Revenue","R9551","CLM Maintenance","02-PREMISES","Premises","02A","Repairs, alteration and maintenance of buildings","3026","Minor Maintenance","3598610","202103",08/06/2020 00:00:00,160,"57130","Pest and Vermin Control Products","REDACTED DATA","RAPTOR SERVICES LTD (SOUTH EAST) LTD","6624216","http://opencorporates.com/companies/gb/6624216","650089346"
"London Borough of Redbridge","http://opendatacommunities.org/doc/london-borough-council/redbridge","1BOTHEROPI&E","Other Operating Income & Expenditure","1CTRADSURDEF","Trading Account Surpluses & Deficits","REV","Revenue","R9551","CLM Maintenance","02-PREMISES","Premises","02A","Repairs, alteration and maintenance of buildings","3026","Minor Maintenance","3598580","202103",03/10/2019 00:00:00,65.5,"30025","Electrical Distribution Companies","REDACTED DATA","REXEL UK LTD T/A WFSENATE","434724","http://opencorporates.com/companies/gb/434724","614213680"
"London Borough of Redbridge","http://opendatacommunities.org/doc/london-borough-council/redbridge","1BOTHEROPI&E","Other Operating Income & Expenditure","1CTRADSURDEF","Trading Account Surpluses & Deficits","REV","Revenue","R9551","CLM Maintenance","02-PREMISES","Premises","02A","Repairs, alteration and maintenance of buildings","3026","Minor Maintenance","3598598","202103",13/04/2020 00:00:00,320,"16710","Central Heating - Installation and Servicing","REDACTED DATA","J R ASHWORTH PLMBING & HTG LTD","",,""
"London Borough of Redbridge","http://opendatacommunities.org/doc/london-borough-council/redbridge","1BOTHEROPI&E","Other Operating Income & Expenditure","1CTRADSURDEF","Trading Account Surpluses & Deficits","REV","Revenue","R9551","CLM Maintenance","02-PREMISES","Premises","02A","Repairs, alteration and maintenance of buildings","3026","Minor Maintenance","3598602","202103",30/05/2020 00:00:00,237,"16710","Central Heating - Installation and Servicing","REDACTED DATA","J R ASHWORTH PLMBING & HTG LTD","",,""
"London Borough of Redbridge","http://opendatacommunities.org/doc/london-borough-council/redbridge","1BOTHEROPI&E","Other Operating Income & Expenditure","1CTRADSURDEF","Trading Account Surpluses & Deficits","REV","Revenue","R9551","CLM Maintenance","02-PREMISES","Premises","02A","Repairs, alteration and maintenance of buildings","3026","Minor Maintenance","3598577","202103",25/09/2019 00:00:00,114,"30025","Electrical Distribution Companies","REDACTED DATA","REXEL UK LTD T/A WFSENATE","434724","http://opencorporates.com/companies/gb/434724","614213680"
"London Borough of Redbridge","http://opendatacommunities.org/doc/london-borough-council/redbridge","1BOTHEROPI&E","Other Operating Income & Expenditure","1CTRADSURDEF","Trading Account Surpluses & Deficits","REV","Revenue","R9551","CLM Maintenance","02-PREMISES","Premises","02A","Repairs, alteration and maintenance of buildings","3026","Minor Maintenance","3598578","202103",26/09/2019 00:00:00,190.12,"30025","Electrical Distribution Companies","REDACTED DATA","REXEL UK LTD T/A WFSENATE","434724","http://opencorporates.com/companies/gb/434724","614213680"
"London Borough of Redbridge","http://opendatacommunities.org/doc/london-borough-council/redbridge","1BOTHEROPI&E","Other Operating Income & Expenditure","1CTRADSURDEF","Trading Account Surpluses & Deficits","REV","Revenue","R9551","CLM Maintenance","02-PREMISES","Premises","02A","Repairs, alteration and maintenance of buildings","3026","Minor Maintenance","3598579","202103",30/09/2019 00:00:00,39,"30025","Electrical Distribution Companies","REDACTED DATA","REXEL UK LTD T/A WFSENATE","434724","http://opencorporates.com/companies/gb/434724","614213680"
"London Borough of Redbridge","http://opendatacommunities.org/doc/london-borough-council/redbridge","1BOTHEROPI&E","Other Operating Income & Expenditure","1CTRADSURDEF","Trading Account Surpluses & Deficits","REV","Revenue","R9551","CLM Maintenance","02-PREMISES","Premises","02A","Repairs, alteration and maintenance of buildings","3026","Minor Maintenance","3597682","202103",08/06/2020 00:00:00,90,"30045","Electrical Engineers","REDACTED DATA","COUNTY ELECTRICAL SOLUTIONS LTD","6476990","http://opencorporates.com/companies/gb/6476990","924889474"
"London Borough of Redbridge","http://opendatacommunities.org/doc/london-borough-council/redbridge","1BOTHEROPI&E","Other Operating Income & Expenditure","1CTRADSURDEF","Trading Account Surpluses & Deficits","REV","Revenue","R9551","CLM Maintenance","02-PREMISES","Premises","02A","Repairs, alteration and maintenance of buildings","3026","Minor Maintenance","3597682","202103",08/06/2020 00:00:00,85,"30045","Electrical Engineers","REDACTED DATA","COUNTY ELECTRICAL SOLUTIONS LTD","6476990","http://opencorporates.com/companies/gb/6476990","924889474"
"London Borough of Redbridge","http://opendatacommunities.org/doc/london-borough-council/redbridge","1BOTHEROPI&E","Other Operating Income & Expenditure","1CTRADSURDEF","Trading Account Surpluses & Deficits","REV","Revenue","R9551","CLM Maintenance","02-PREMISES","Premises","02A","Repairs, alteration and maintenance of buildings","3026","Minor Maintenance","3598581","202103",09/10/2019 00:00:00,45,"30025","Electrical Distribution Companies","REDACTED DATA","REXEL UK LTD T/A WFSENATE","434724","http://opencorporates.com/companies/gb/434724","614213680"
"London Borough of Redbridge","http://opendatacommunities.org/doc/london-borough-council/redbridge","1BOTHEROPI&E","Other Operating Income & Expenditure","1CTRADSURDEF","Trading Account Surpluses & Deficits","REV","Revenue","R9551","CLM Maintenance","02-PREMISES","Premises","02A","Repairs, alteration and maintenance of buildings","3026","Minor Maintenance","3598609","202103",08/06/2020 00:00:00,120,"57130","Pest and Vermin Control Products","REDACTED DATA","RAPTOR SERVICES LTD (SOUTH EAST) LTD","6624216","http://opencorporates.com/companies/gb/6624216","650089346"
"London Borough of Redbridge","http://opendatacommunities.org/doc/london-borough-council/redbridge","1BOTHEROPI&E","Other Operating Income & Expenditure","1CTRADSURDEF","Trading Account Surpluses & Deficits","REV","Revenue","R9551","CLM Maintenance","02-PREMISES","Premises","02A","Repairs, alteration and maintenance of buildings","3026","Minor Maintenance","3596759","202103",08/06/2020 00:00:00,150,"30045","Electrical Engineers","REDACTED DATA","COUNTY ELECTRICAL SOLUTIONS LTD","6476990","http://opencorporates.com/companies/gb/6476990","924889474"
"London Borough of Redbridge","http://opendatacommunities.org/doc/london-borough-council/redbridge","1BOTHEROPI&E","Other Operating Income & Expenditure","1CTRADSURDEF","Trading Account Surpluses & Deficits","REV","Revenue","R9551","CLM Maintenance","02-PREMISES","Premises","02A","Repairs, alteration and maintenance of buildings","3026","Minor Maintenance","3596759","202103",08/06/2020 00:00:00,32.5,"30045","Electrical Engineers","REDACTED DATA","COUNTY ELECTRICAL SOLUTIONS LTD","6476990","http://opencorporates.com/companies/gb/6476990","924889474"
"London Borough of Redbridge","http://opendatacommunities.org/doc/london-borough-council/redbridge","1BOTHEROPI&E","Other Operating Income & Expenditure","1CTRADSURDEF","Trading Account Surpluses & Deficits","REV","Revenue","R9551","CLM Maintenance","02-PREMISES","Premises","02A","Repairs, alteration and maintenance of buildings","3037","Service Contracts","3597728","202103",31/01/2019 00:00:00,150,"30250","Electrical Heating Equipment and Systems","REDACTED DATA","OAKRAY LTD","1458147","http://opencorporates.com/companies/gb/1458147","327787712"
"London Borough of Redbridge","http://opendatacommunities.org/doc/london-borough-council/redbridge","1BOTHEROPI&E","Other Operating Income & Expenditure","1CTRADSURDEF","Trading Account Surpluses & Deficits","REV","Revenue","R9551","CLM Maintenance","02-PREMISES","Premises","02A","Repairs, alteration and maintenance of buildings","3037","Service Contracts","3597733","202103",29/02/2020 00:00:00,220,"84085","Water Treatment Equipment and Service","REDACTED DATA","P H WATER TECHNOLOGIES LTD","5042025","http://opencorporates.com/companies/gb/5042025","834219240"
"London Borough of Redbridge","http://opendatacommunities.org/doc/london-borough-council/redbridge","1BOTHEROPI&E","Other Operating Income & Expenditure","1CTRADSURDEF","Trading Account Surpluses & Deficits","REV","Revenue","R9551","CLM Maintenance","02-PREMISES","Premises","02A","Repairs, alteration and maintenance of buildings","3037","Service Contracts","3597729","202103",19/02/2020 00:00:00,0,"84085","Water Treatment Equipment and Service","REDACTED DATA","P H WATER TECHNOLOGIES LTD","5042025","http://opencorporates.com/companies/gb/5042025","834219240"
"London Borough of Redbridge","http://opendatacommunities.org/doc/london-borough-council/redbridge","1BOTHEROPI&E","Other Operating Income & Expenditure","1CTRADSURDEF","Trading Account Surpluses & Deficits","REV","Revenue","R9551","CLM Maintenance","02-PREMISES","Premises","02A","Repairs, alteration and maintenance of buildings","3037","Service Contracts","3597649","202103",30/04/2020 00:00:00,0,"84085","Water Treatment Equipment and Service","REDACTED DATA","P H WATER TECHNOLOGIES LTD","5042025","http://opencorporates.com/companies/gb/5042025","834219240"
"London Borough of Redbridge","http://opendatacommunities.org/doc/london-borough-council/redbridge","1BOTHEROPI&E","Other Operating Income & Expenditure","1CTRADSURDEF","Trading Account Surpluses & Deficits","REV","Revenue","R9551","CLM Maintenance","02-PREMISES","Premises","02A","Repairs, alteration and maintenance of buildings","3037","Service Contracts","3597649","202103",30/04/2020 00:00:00,-13.5,"84085","Water Treatment Equipment and Service","REDACTED DATA","P H WATER TECHNOLOGIES LTD","5042025","http://opencorporates.com/companies/gb/5042025","834219240"
"London Borough of Redbridge","http://opendatacommunities.org/doc/london-borough-council/redbridge","1BOTHEROPI&E","Other Operating Income & Expenditure","1CTRADSURDEF","Trading Account Surpluses & Deficits","REV","Revenue","R9551","CLM Maintenance","02-PREMISES","Premises","02A","Repairs, alteration and maintenance of buildings","3037","Service Contracts","3597730","202103",18/03/2020 00:00:00,55,"84085","Water Treatment Equipment and Service","REDACTED DATA","P H WATER TECHNOLOGIES LTD","5042025","http://opencorporates.com/companies/gb/5042025","834219240"
"London Borough of Redbridge","http://opendatacommunities.org/doc/london-borough-council/redbridge","1BOTHEROPI&E","Other Operating Income & Expenditure","1CTRADSURDEF","Trading Account Surpluses & Deficits","REV","Revenue","R9551","CLM Maintenance","02-PREMISES","Premises","02A","Repairs, alteration and maintenance of buildings","3037","Service Contracts","3597731","202103",22/03/2020 00:00:00,0,"84085","Water Treatment Equipment and Service","REDACTED DATA","P H WATER TECHNOLOGIES LTD","5042025","http://opencorporates.com/companies/gb/5042025","834219240"
"London Borough of Redbridge","http://opendatacommunities.org/doc/london-borough-council/redbridge","1BOTHEROPI&E","Other Operating Income & Expenditure","1CTRADSURDEF","Trading Account Surpluses & Deficits","REV","Revenue","R9551","CLM Maintenance","02-PREMISES","Premises","02A","Repairs, alteration and maintenance of buildings","3037","Service Contracts","3597731","202103",22/03/2020 00:00:00,95,"84085","Water Treatment Equipment and Service","REDACTED DATA","P H WATER TECHNOLOGIES LTD","5042025","http://opencorporates.com/companies/gb/5042025","834219240"
"London Borough of Redbridge","http://opendatacommunities.org/doc/london-borough-council/redbridge","1BOTHEROPI&E","Other Operating Income & Expenditure","1CTRADSURDEF","Trading Account Surpluses & Deficits","REV","Revenue","R9551","CLM Maintenance","02-PREMISES","Premises","02A","Repairs, alteration and maintenance of buildings","3037","Service Contracts","3597646","202103",30/04/2020 00:00:00,0,"84085","Water Treatment Equipment and Service","REDACTED DATA","P H WATER TECHNOLOGIES LTD","5042025","http://opencorporates.com/companies/gb/5042025","834219240"
"London Borough of Redbridge","http://opendatacommunities.org/doc/london-borough-council/redbridge","1BOTHEROPI&E","Other Operating Income & Expenditure","1CTRADSURDEF","Trading Account Surpluses & Deficits","REV","Revenue","R9551","CLM Maintenance","02-PREMISES","Premises","02A","Repairs, alteration and maintenance of buildings","3037","Service Contracts","3597690","202103",31/12/2019 00:00:00,0,"84085","Water Treatment Equipment and Service","REDACTED DATA","P H WATER TECHNOLOGIES LTD","5042025","http://opencorporates.com/companies/gb/5042025","834219240"
"London Borough of Redbridge","http://opendatacommunities.org/doc/london-borough-council/redbridge","1BOTHEROPI&E","Other Operating Income & Expenditure","1CTRADSURDEF","Trading Account Surpluses & Deficits","REV","Revenue","R9551","CLM Maintenance","02-PREMISES","Premises","02A","Repairs, alteration and maintenance of buildings","3037","Service Contracts","3597690","202103",31/12/2019 00:00:00,-350,"84085","Water Treatment Equipment and Service","REDACTED DATA","P H WATER TECHNOLOGIES LTD","5042025","http://opencorporates.com/companies/gb/5042025","834219240"
"London Borough of Redbridge","http://opendatacommunities.org/doc/london-borough-council/redbridge","1BOTHEROPI&E","Other Operating Income & Expenditure","1CTRADSURDEF","Trading Account Surpluses & Deficits","REV","Revenue","R9551","CLM Maintenance","02-PREMISES","Premises","02A","Repairs, alteration and maintenance of buildings","3037","Service Contracts","3597646","202103",30/04/2020 00:00:00,-13.5,"84085","Water Treatment Equipment and Service","REDACTED DATA","P H WATER TECHNOLOGIES LTD","5042025","http://opencorporates.com/companies/gb/5042025","834219240"
"London Borough of Redbridge","http://opendatacommunities.org/doc/london-borough-council/redbridge","1BOTHEROPI&E","Other Operating Income & Expenditure","1CTRADSURDEF","Trading Account Surpluses & Deficits","REV","Revenue","R9551","CLM Maintenance","02-PREMISES","Premises","02A","Repairs, alteration and maintenance of buildings","3037","Service Contracts","3597647","202103",30/04/2020 00:00:00,0,"84085","Water Treatment Equipment and Service","REDACTED DATA","P H WATER TECHNOLOGIES LTD","5042025","http://opencorporates.com/companies/gb/5042025","834219240"
"London Borough of Redbridge","http://opendatacommunities.org/doc/london-borough-council/redbridge","1BOTHEROPI&E","Other Operating Income & Expenditure","1CTRADSURDEF","Trading Account Surpluses & Deficits","REV","Revenue","R9551","CLM Maintenance","02-PREMISES","Premises","02A","Repairs, alteration and maintenance of buildings","3037","Service Contracts","3597647","202103",30/04/2020 00:00:00,-6,"84085","Water Treatment Equipment and Service","REDACTED DATA","P H WATER TECHNOLOGIES LTD","5042025","http://opencorporates.com/companies/gb/5042025","834219240"
"London Borough of Redbridge","http://opendatacommunities.org/doc/london-borough-council/redbridge","1BOTHEROPI&E","Other Operating Income & Expenditure","1CTRADSURDEF","Trading Account Surpluses & Deficits","REV","Revenue","R9551","CLM Maintenance","02-PREMISES","Premises","02A","Repairs, alteration and maintenance of buildings","3037","Service Contracts","3597729","202103",19/02/2020 00:00:00,68.5,"84085","Water Treatment Equipment and Service","REDACTED DATA","P H WATER TECHNOLOGIES LTD","5042025","http://opencorporates.com/companies/gb/5042025","834219240"
"London Borough of Redbridge","http://opendatacommunities.org/doc/london-borough-council/redbridge","1BOTHEROPI&E","Other Operating Income & Expenditure","1CTRADSURDEF","Trading Account Surpluses & Deficits","REV","Revenue","R9551","CLM Maintenance","02-PREMISES","Premises","02A","Repairs, alteration and maintenance of buildings","3037","Service Contracts","3597730","202103",18/03/2020 00:00:00,0,"84085","Water Treatment Equipment and Service","REDACTED DATA","P H WATER TECHNOLOGIES LTD","5042025","http://opencorporates.com/companies/gb/5042025","834219240"
"London Borough of Redbridge","http://opendatacommunities.org/doc/london-borough-council/redbridge","1BOTHEROPI&E","Other Operating Income & Expenditure","1CTRADSURDEF","Trading Account Surpluses & Deficits","REV","Revenue","R9551","CLM Maintenance","02-PREMISES","Premises","02A","Repairs, alteration and maintenance of buildings","3037","Service Contracts","3597732","202103",08/04/2020 00:00:00,0,"84085","Water Treatment Equipment and Service","REDACTED DATA","P H WATER TECHNOLOGIES LTD","5042025","http://opencorporates.com/companies/gb/5042025","834219240"
"London Borough of Redbridge","http://opendatacommunities.org/doc/london-borough-council/redbridge","1BOTHEROPI&E","Other Operating Income & Expenditure","1CTRADSURDEF","Trading Account Surpluses & Deficits","REV","Revenue","R9551","CLM Maintenance","02-PREMISES","Premises","02A","Repairs, alteration and maintenance of buildings","3037","Service Contracts","3597732","202103",08/04/2020 00:00:00,55,"84085","Water Treatment Equipment and Service","REDACTED DATA","P H WATER TECHNOLOGIES LTD","5042025","http://opencorporates.com/companies/gb/5042025","834219240"
"London Borough of Redbridge","http://opendatacommunities.org/doc/london-borough-council/redbridge","1BOTHEROPI&E","Other Operating Income & Expenditure","1CTRADSURDEF","Trading Account Surpluses & Deficits","REV","Revenue","R9551","CLM Maintenance","02-PREMISES","Premises","02A","Repairs, alteration and maintenance of buildings","3037","Service Contracts","3597733","202103",29/02/2020 00:00:00,0,"84085","Water Treatment Equipment and Service","REDACTED DATA","P H WATER TECHNOLOGIES LTD","5042025","http://opencorporates.com/companies/gb/5042025","834219240"
"London Borough of Redbridge","http://opendatacommunities.org/doc/london-borough-council/redbridge","1BOTHEROPI&E","Other Operating Income & Expenditure","1CTRADSURDEF","Trading Account Surpluses & Deficits","REV","Revenue","R9551","CLM Maintenance","02-PREMISES","Premises","02A","Repairs, alteration and maintenance of buildings","3037","Service Contracts","3597740","202103",12/02/2020 00:00:00,55,"84085","Water Treatment Equipment and Service","REDACTED DATA","P H WATER TECHNOLOGIES LTD","5042025","http://opencorporates.com/companies/gb/5042025","834219240"
"London Borough of Redbridge","http://opendatacommunities.org/doc/london-borough-council/redbridge","1BOTHEROPI&E","Other Operating Income & Expenditure","1CTRADSURDEF","Trading Account Surpluses & Deficits","REV","Revenue","R9551","CLM Maintenance","02-PREMISES","Premises","02A","Repairs, alteration and maintenance of buildings","3037","Service Contracts","3597740","202103",12/02/2020 00:00:00,0,"84085","Water Treatment Equipment and Service","REDACTED DATA","P H WATER TECHNOLOGIES LTD","5042025","http://opencorporates.com/companies/gb/5042025","834219240"
"London Borough of Redbridge","http://opendatacommunities.org/doc/london-borough-council/redbridge","1BOTHEROPI&E","Other Operating Income & Expenditure","1CTRADSURDEF","Trading Account Surpluses & Deficits","REV","Revenue","R9551","CLM Maintenance","02-PREMISES","Premises","02A","Repairs, alteration and maintenance of buildings","3037","Service Contracts","3596661","202103",31/12/2019 00:00:00,0,"84085","Water Treatment Equipment and Service","REDACTED DATA","P H WATER TECHNOLOGIES LTD","5042025","http://opencorporates.com/companies/gb/5042025","834219240"
"London Borough of Redbridge","http://opendatacommunities.org/doc/london-borough-council/redbridge","1BOTHEROPI&E","Other Operating Income & Expenditure","1CTRADSURDEF","Trading Account Surpluses & Deficits","REV","Revenue","R9551","CLM Maintenance","02-PREMISES","Premises","02A","Repairs, alteration and maintenance of buildings","3037","Service Contracts","3596661","202103",31/12/2019 00:00:00,-45,"84085","Water Treatment Equipment and Service","REDACTED DATA","P H WATER TECHNOLOGIES LTD","5042025","http://opencorporates.com/companies/gb/5042025","834219240"
"London Borough of Redbridge","http://opendatacommunities.org/doc/london-borough-council/redbridge","1BOTHEROPI&E","Other Operating Income & Expenditure","1CTRADSURDEF","Trading Account Surpluses & Deficits","REV","Revenue","R9551","CLM Maintenance","02-PREMISES","Premises","02A","Repairs, alteration and maintenance of buildings","3037","Service Contracts","3596663","202103",31/12/2019 00:00:00,0,"84085","Water Treatment Equipment and Service","REDACTED DATA","P H WATER TECHNOLOGIES LTD","5042025","http://opencorporates.com/companies/gb/5042025","834219240"
"London Borough of Redbridge","http://opendatacommunities.org/doc/london-borough-council/redbridge","1BOTHEROPI&E","Other Operating Income & Expenditure","1CTRADSURDEF","Trading Account Surpluses & Deficits","REV","Revenue","R9551","CLM Maintenance","02-PREMISES","Premises","02A","Repairs, alteration and maintenance of buildings","3037","Service Contracts","3596663","202103",31/12/2019 00:00:00,-67.5,"84085","Water Treatment Equipment and Service","REDACTED DATA","P H WATER TECHNOLOGIES LTD","5042025","http://opencorporates.com/companies/gb/5042025","834219240"
"London Borough of Redbridge","http://opendatacommunities.org/doc/london-borough-council/redbridge","1BOTHEROPI&E","Other Operating Income & Expenditure","1CTRADSURDEF","Trading Account Surpluses & Deficits","REV","Revenue","R9551","CLM Maintenance","02-PREMISES","Premises","02A","Repairs, alteration and maintenance of buildings","3037","Service Contracts","3596777","202103",21/11/2019 00:00:00,0,"84085","Water Treatment Equipment and Service","REDACTED DATA","P H WATER TECHNOLOGIES LTD","5042025","http://opencorporates.com/companies/gb/5042025","834219240"
"London Borough of Redbridge","http://opendatacommunities.org/doc/london-borough-council/redbridge","1BOTHEROPI&E","Other Operating Income & Expenditure","1CTRADSURDEF","Trading Account Surpluses & Deficits","REV","Revenue","R9551","CLM Maintenance","02-PREMISES","Premises","02A","Repairs, alteration and maintenance of buildings","3037","Service Contracts","3596777","202103",21/11/2019 00:00:00,122.5,"84085","Water Treatment Equipment and Service","REDACTED DATA","P H WATER TECHNOLOGIES LTD","5042025","http://opencorporates.com/companies/gb/5042025","834219240"
"London Borough of Redbridge","http://opendatacommunities.org/doc/london-borough-council/redbridge","1BOTHEROPI&E","Other Operating Income & Expenditure","1CTRADSURDEF","Trading Account Surpluses & Deficits","REV","Revenue","R9551","CLM Maintenance","02-PREMISES","Premises","02A","Repairs, alteration and maintenance of buildings","3037","Service Contracts","3596779","202103",31/01/2020 00:00:00,0,"84085","Water Treatment Equipment and Service","REDACTED DATA","P H WATER TECHNOLOGIES LTD","5042025","http://opencorporates.com/companies/gb/5042025","834219240"
"London Borough of Redbridge","http://opendatacommunities.org/doc/london-borough-council/redbridge","1BOTHEROPI&E","Other Operating Income & Expenditure","1CTRADSURDEF","Trading Account Surpluses & Deficits","REV","Revenue","R9551","CLM Maintenance","02-PREMISES","Premises","02A","Repairs, alteration and maintenance of buildings","3037","Service Contracts","3596779","202103",31/01/2020 00:00:00,68.5,"84085","Water Treatment Equipment and Service","REDACTED DATA","P H WATER TECHNOLOGIES LTD","5042025","http://opencorporates.com/companies/gb/5042025","834219240"
"London Borough of Redbridge","http://opendatacommunities.org/doc/london-borough-council/redbridge","1BOTHEROPI&E","Other Operating Income & Expenditure","1CTRADSURDEF","Trading Account Surpluses & Deficits","REV","Revenue","R9551","CLM Maintenance","02-PREMISES","Premises","02A","Repairs, alteration and maintenance of buildings","3037","Service Contracts","3596670","202103",31/12/2019 00:00:00,0,"84085","Water Treatment Equipment and Service","REDACTED DATA","P H WATER TECHNOLOGIES LTD","5042025","http://opencorporates.com/companies/gb/5042025","834219240"
"London Borough of Redbridge","http://opendatacommunities.org/doc/london-borough-council/redbridge","1BOTHEROPI&E","Other Operating Income & Expenditure","1CTRADSURDEF","Trading Account Surpluses & Deficits","REV","Revenue","R9551","CLM Maintenance","02-PREMISES","Premises","02A","Repairs, alteration and maintenance of buildings","3037","Service Contracts","3596775","202103",14/11/2019 00:00:00,0,"84085","Water Treatment Equipment and Service","REDACTED DATA","P H WATER TECHNOLOGIES LTD","5042025","http://opencorporates.com/companies/gb/5042025","834219240"
"London Borough of Redbridge","http://opendatacommunities.org/doc/london-borough-council/redbridge","1BOTHEROPI&E","Other Operating Income & Expenditure","1CTRADSURDEF","Trading Account Surpluses & Deficits","REV","Revenue","R9551","CLM Maintenance","02-PREMISES","Premises","02A","Repairs, alteration and maintenance of buildings","3037","Service Contracts","3596775","202103",14/11/2019 00:00:00,73,"84085","Water Treatment Equipment and Service","REDACTED DATA","P H WATER TECHNOLOGIES LTD","5042025","http://opencorporates.com/companies/gb/5042025","834219240"
"London Borough of Redbridge","http://opendatacommunities.org/doc/london-borough-council/redbridge","1BOTHEROPI&E","Other Operating Income & Expenditure","1CTRADSURDEF","Trading Account Surpluses & Deficits","REV","Revenue","R9551","CLM Maintenance","02-PREMISES","Premises","02A","Repairs, alteration and maintenance of buildings","3037","Service Contracts","3596782","202103",29/02/2020 00:00:00,0,"84085","Water Treatment Equipment and Service","REDACTED DATA","P H WATER TECHNOLOGIES LTD","5042025","http://opencorporates.com/companies/gb/5042025","834219240"
"London Borough of Redbridge","http://opendatacommunities.org/doc/london-borough-council/redbridge","1BOTHEROPI&E","Other Operating Income & Expenditure","1CTRADSURDEF","Trading Account Surpluses & Deficits","REV","Revenue","R9551","CLM Maintenance","02-PREMISES","Premises","02A","Repairs, alteration and maintenance of buildings","3037","Service Contracts","3596782","202103",29/02/2020 00:00:00,61,"84085","Water Treatment Equipment and Service","REDACTED DATA","P H WATER TECHNOLOGIES LTD","5042025","http://opencorporates.com/companies/gb/5042025","834219240"
"London Borough of Redbridge","http://opendatacommunities.org/doc/london-borough-council/redbridge","1BOTHEROPI&E","Other Operating Income & Expenditure","1CTRADSURDEF","Trading Account Surpluses & Deficits","REV","Revenue","R9551","CLM Maintenance","02-PREMISES","Premises","02A","Repairs, alteration and maintenance of buildings","3037","Service Contracts","3596670","202103",31/12/2019 00:00:00,-175.37,"84085","Water Treatment Equipment and Service","REDACTED DATA","P H WATER TECHNOLOGIES LTD","5042025","http://opencorporates.com/companies/gb/5042025","834219240"
"London Borough of Redbridge","http://opendatacommunities.org/doc/london-borough-council/redbridge","1BOTHEROPI&E","Other Operating Income & Expenditure","1CTRADSURDEF","Trading Account Surpluses & Deficits","REV","Revenue","R9551","CLM Maintenance","02-PREMISES","Premises","02A","Repairs, alteration and maintenance of buildings","3037","Service Contracts","3596669","202103",31/12/2019 00:00:00,0,"84085","Water Treatment Equipment and Service","REDACTED DATA","P H WATER TECHNOLOGIES LTD","5042025","http://opencorporates.com/companies/gb/5042025","834219240"
"London Borough of Redbridge","http://opendatacommunities.org/doc/london-borough-council/redbridge","1BOTHEROPI&E","Other Operating Income & Expenditure","1CTRADSURDEF","Trading Account Surpluses & Deficits","REV","Revenue","R9551","CLM Maintenance","02-PREMISES","Premises","02A","Repairs, alteration and maintenance of buildings","3037","Service Contracts","3596669","202103",31/12/2019 00:00:00,-30,"84085","Water Treatment Equipment and Service","REDACTED DATA","P H WATER TECHNOLOGIES LTD","5042025","http://opencorporates.com/companies/gb/5042025","834219240"
"London Borough of Redbridge","http://opendatacommunities.org/doc/london-borough-council/redbridge","1BOTHEROPI&E","Other Operating Income & Expenditure","1CTRADSURDEF","Trading Account Surpluses & Deficits","REV","Revenue","R9551","CLM Maintenance","02-PREMISES","Premises","02A","Repairs, alteration and maintenance of buildings","3037","Service Contracts","3597252","202103",10/07/2019 00:00:00,0,"84085","Water Treatment Equipment and Service","REDACTED DATA","P H WATER TECHNOLOGIES LTD","5042025","http://opencorporates.com/companies/gb/5042025","834219240"
"London Borough of Redbridge","http://opendatacommunities.org/doc/london-borough-council/redbridge","1BOTHEROPI&E","Other Operating Income & Expenditure","1CTRADSURDEF","Trading Account Surpluses & Deficits","REV","Revenue","R9551","CLM Maintenance","02-PREMISES","Premises","02A","Repairs, alteration and maintenance of buildings","3037","Service Contracts","3597252","202103",10/07/2019 00:00:00,55,"84085","Water Treatment Equipment and Service","REDACTED DATA","P H WATER TECHNOLOGIES LTD","5042025","http://opencorporates.com/companies/gb/5042025","834219240"
"London Borough of Redbridge","http://opendatacommunities.org/doc/london-borough-council/redbridge","1BOTHEROPI&E","Other Operating Income & Expenditure","1CTRADSURDEF","Trading Account Surpluses & Deficits","REV","Revenue","R9555","CLM Waste","02-PREMISES","Premises","02H","Cleaning and domestic supplies","4626","Refuse and Recyc. Contractor Costs","70114161","202103",30/05/2020 00:00:00,183.24,"83610","Waste Paper Merchants and Collectors","REDACTED DATA","RESTORE DATASHRED LTD","9969408","http://opencorporates.com/companies/gb/9969408","240193143"
"London Borough of Redbridge","http://opendatacommunities.org/doc/london-borough-council/redbridge","1BOTHEROPI&E","Other Operating Income & Expenditure","1CTRADSURDEF","Trading Account Surpluses & Deficits","REV","Revenue","R9555","CLM Waste","02-PREMISES","Premises","02H","Cleaning and domestic supplies","4626","Refuse and Recyc. Contractor Costs","70114162","202103",31/01/2020 00:00:00,193.17,"83610","Waste Paper Merchants and Collectors","REDACTED DATA","RESTORE DATASHRED LTD","9969408","http://opencorporates.com/companies/gb/9969408","240193143"
"London Borough of Redbridge","http://opendatacommunities.org/doc/london-borough-council/redbridge","1BOTHEROPI&E","Other Operating Income & Expenditure","1CTRADSURDEF","Trading Account Surpluses & Deficits","REV","Revenue","R9555","CLM Waste","02-PREMISES","Premises","02H","Cleaning and domestic supplies","4626","Refuse and Recyc. Contractor Costs","70114166","202103",31/01/2020 00:00:00,65.52,"83610","Waste Paper Merchants and Collectors","REDACTED DATA","RESTORE DATASHRED LTD","9969408","http://opencorporates.com/companies/gb/9969408","240193143"
"London Borough of Redbridge","http://opendatacommunities.org/doc/london-borough-council/redbridge","1BOTHEROPI&E","Other Operating Income & Expenditure","1CTRADSURDEF","Trading Account Surpluses & Deficits","REV","Revenue","R9555","CLM Waste","02-PREMISES","Premises","02H","Cleaning and domestic supplies","4626","Refuse and Recyc. Contractor Costs","70114158","202103",31/03/2020 00:00:00,65.52,"83610","Waste Paper Merchants and Collectors","REDACTED DATA","RESTORE DATASHRED LTD","9969408","http://opencorporates.com/companies/gb/9969408","240193143"
"London Borough of Redbridge","http://opendatacommunities.org/doc/london-borough-council/redbridge","1BOTHEROPI&E","Other Operating Income & Expenditure","1CTRADSURDEF","Trading Account Surpluses & Deficits","REV","Revenue","R9555","CLM Waste","02-PREMISES","Premises","02H","Cleaning and domestic supplies","4626","Refuse and Recyc. Contractor Costs","70114159","202103",29/02/2020 00:00:00,65.52,"83610","Waste Paper Merchants and Collectors","REDACTED DATA","RESTORE DATASHRED LTD","9969408","http://opencorporates.com/companies/gb/9969408","240193143"
"London Borough of Redbridge","http://opendatacommunities.org/doc/london-borough-council/redbridge","1BOTHEROPI&E","Other Operating Income & Expenditure","1CTRADSURDEF","Trading Account Surpluses & Deficits","REV","Revenue","R9555","CLM Waste","02-PREMISES","Premises","02H","Cleaning and domestic supplies","4626","Refuse and Recyc. Contractor Costs","70114160","202103",30/03/2020 00:00:00,211.85,"83610","Waste Paper Merchants and Collectors","REDACTED DATA","RESTORE DATASHRED LTD","9969408","http://opencorporates.com/companies/gb/9969408","240193143"
"London Borough of Redbridge","http://opendatacommunities.org/doc/london-borough-council/redbridge","1BOTHEROPI&E","Other Operating Income & Expenditure","1CTRADSURDEF","Trading Account Surpluses & Deficits","REV","Revenue","R9555","CLM Waste","02-PREMISES","Premises","02H","Cleaning and domestic supplies","4626","Refuse and Recyc. Contractor Costs","70114180","202103",29/02/2020 00:00:00,404.91,"83610","Waste Paper Merchants and Collectors","REDACTED DATA","RESTORE DATASHRED LTD","9969408","http://opencorporates.com/companies/gb/9969408","240193143"
"London Borough of Redbridge","http://opendatacommunities.org/doc/london-borough-council/redbridge","1BOTHEROPI&E","Other Operating Income & Expenditure","1CTRADSURDEF","Trading Account Surpluses & Deficits","REV","Revenue","R9555","CLM Waste","02-PREMISES","Premises","02H","Cleaning and domestic supplies","4626","Refuse and Recyc. Contractor Costs","70114181","202103",31/01/2020 00:00:00,404.91,"83610","Waste Paper Merchants and Collectors","REDACTED DATA","RESTORE DATASHRED LTD","9969408","http://opencorporates.com/companies/gb/9969408","240193143"
"London Borough of Redbridge","http://opendatacommunities.org/doc/london-borough-council/redbridge","1BOTHEROPI&E","Other Operating Income & Expenditure","1CTRADSURDEF","Trading Account Surpluses & Deficits","REV","Revenue","R9555","CLM Waste","02-PREMISES","Premises","02H","Cleaning and domestic supplies","4626","Refuse and Recyc. Contractor Costs","70114183","202103",31/10/2019 00:00:00,81.9,"83610","Waste Paper Merchants and Collectors","REDACTED DATA","RESTORE DATASHRED LTD","9969408","http://opencorporates.com/companies/gb/9969408","240193143"
"London Borough of Redbridge","http://opendatacommunities.org/doc/london-borough-council/redbridge","1BOTHEROPI&E","Other Operating Income & Expenditure","1CTRADSURDEF","Trading Account Surpluses & Deficits","REV","Revenue","R9555","CLM Waste","02-PREMISES","Premises","02H","Cleaning and domestic supplies","4626","Refuse and Recyc. Contractor Costs","70114148","202103",30/09/2019 00:00:00,25.7,"83610","Waste Paper Merchants and Collectors","REDACTED DATA","RESTORE DATASHRED LTD","9969408","http://opencorporates.com/companies/gb/9969408","240193143"
"London Borough of Redbridge","http://opendatacommunities.org/doc/london-borough-council/redbridge","1BOTHEROPI&E","Other Operating Income & Expenditure","1CTRADSURDEF","Trading Account Surpluses & Deficits","REV","Revenue","R9555","CLM Waste","02-PREMISES","Premises","02H","Cleaning and domestic supplies","4626","Refuse and Recyc. Contractor Costs","70114150","202103",30/04/2020 00:00:00,172.43,"83610","Waste Paper Merchants and Collectors","REDACTED DATA","RESTORE DATASHRED LTD","9969408","http://opencorporates.com/companies/gb/9969408","240193143"
"London Borough of Redbridge","http://opendatacommunities.org/doc/london-borough-council/redbridge","1BOTHEROPI&E","Other Operating Income & Expenditure","1CTRADSURDEF","Trading Account Surpluses & Deficits","REV","Revenue","R9555","CLM Waste","02-PREMISES","Premises","02H","Cleaning and domestic supplies","4626","Refuse and Recyc. Contractor Costs","70114177","202103",31/01/2020 00:00:00,65.52,"83610","Waste Paper Merchants and Collectors","REDACTED DATA","RESTORE DATASHRED LTD","9969408","http://opencorporates.com/companies/gb/9969408","240193143"
"London Borough of Redbridge","http://opendatacommunities.org/doc/london-borough-council/redbridge","1BOTHEROPI&E","Other Operating Income & Expenditure","1CTRADSURDEF","Trading Account Surpluses & Deficits","REV","Revenue","R9555","CLM Waste","02-PREMISES","Premises","02H","Cleaning and domestic supplies","4626","Refuse and Recyc. Contractor Costs","70114178","202103",30/11/2019 00:00:00,65.52,"83610","Waste Paper Merchants and Collectors","REDACTED DATA","RESTORE DATASHRED LTD","9969408","http://opencorporates.com/companies/gb/9969408","240193143"
"London Borough of Redbridge","http://opendatacommunities.org/doc/london-borough-council/redbridge","1BOTHEROPI&E","Other Operating Income & Expenditure","1CTRADSURDEF","Trading Account Surpluses & Deficits","REV","Revenue","R9555","CLM Waste","02-PREMISES","Premises","02H","Cleaning and domestic supplies","4626","Refuse and Recyc. Contractor Costs","70114179","202103",31/03/2020 00:00:00,404.91,"83610","Waste Paper Merchants and Collectors","REDACTED DATA","RESTORE DATASHRED LTD","9969408","http://opencorporates.com/companies/gb/9969408","240193143"
"London Borough of Redbridge","http://opendatacommunities.org/doc/london-borough-council/redbridge","1BOTHEROPI&E","Other Operating Income & Expenditure","1CTRADSURDEF","Trading Account Surpluses & Deficits","REV","Revenue","R9555","CLM Waste","02-PREMISES","Premises","02H","Cleaning and domestic supplies","4626","Refuse and Recyc. Contractor Costs","70114157","202103",30/04/2020 00:00:00,49.14,"83610","Waste Paper Merchants and Collectors","REDACTED DATA","RESTORE DATASHRED LTD","9969408","http://opencorporates.com/companies/gb/9969408","240193143"
"London Borough of Redbridge","http://opendatacommunities.org/doc/london-borough-council/redbridge","1BOTHEROPI&E","Other Operating Income & Expenditure","1CTRADSURDEF","Trading Account Surpluses & Deficits","REV","Revenue","R9555","CLM Waste","02-PREMISES","Premises","02H","Cleaning and domestic supplies","4626","Refuse and Recyc. Contractor Costs","70114173","202103",31/05/2020 00:00:00,65.52,"83610","Waste Paper Merchants and Collectors","REDACTED DATA","RESTORE DATASHRED LTD","9969408","http://opencorporates.com/companies/gb/9969408","240193143"
"London Borough of Redbridge","http://opendatacommunities.org/doc/london-borough-council/redbridge","6BADULTSOCIA","Adult Social Care","6CLONGT1864","Long-Term Support 18 - 64 Years","REV","Revenue","R4441","Older People - Seven Kings","05-THIRD","Third Party Payments","05A","Independent units within the council","6502","Agency Homecare","91150918","202103",03/06/2020 00:00:00,62.56,"43419","Home Care Services","REDACTED DATA","Spire Home Care & Training Limited","12254019","http://opencorporates.com/companies/gb/12254019",""
"London Borough of Redbridge","http://opendatacommunities.org/doc/london-borough-council/redbridge","6BADULTSOCIA","Adult Social Care","6CLONGT1864","Long-Term Support 18 - 64 Years","REV","Revenue","R4441","Older People - Seven Kings","05-THIRD","Third Party Payments","05A","Independent units within the council","6502","Agency Homecare","91150919","202103",03/06/2020 00:00:00,136.85,"43419","Home Care Services","REDACTED DATA","Spire Home Care & Training Limited","12254019","http://opencorporates.com/companies/gb/12254019",""
"London Borough of Redbridge","http://opendatacommunities.org/doc/london-borough-council/redbridge","6BADULTSOCIA","Adult Social Care","6CLONGT1864","Long-Term Support 18 - 64 Years","REV","Revenue","R4441","Older People - Seven Kings","05-THIRD","Third Party Payments","05A","Independent units within the council","6502","Agency Homecare","91150921","202103",03/06/2020 00:00:00,273.7,"43419","Home Care Services","REDACTED DATA","Spire Home Care & Training Limited","12254019","http://opencorporates.com/companies/gb/12254019",""
"London Borough of Redbridge","http://opendatacommunities.org/doc/london-borough-council/redbridge","6BADULTSOCIA","Adult Social Care","6CLONGT1864","Long-Term Support 18 - 64 Years","REV","Revenue","R4441","Older People - Seven Kings","05-THIRD","Third Party Payments","05A","Independent units within the council","6502","Agency Homecare","91150872","202103",29/05/2020 00:00:00,54.74,"43419","Home Care Services","REDACTED DATA","Spire Home Care & Training Limited","12254019","http://opencorporates.com/companies/gb/12254019",""
"London Borough of Redbridge","http://opendatacommunities.org/doc/london-borough-council/redbridge","6BADULTSOCIA","Adult Social Care","6CLONGT1864","Long-Term Support 18 - 64 Years","REV","Revenue","R4441","Older People - Seven Kings","05-THIRD","Third Party Payments","05A","Independent units within the council","6502","Agency Homecare","91150963","202103",08/06/2020 00:00:00,347.99,"43419","Home Care Services","REDACTED DATA","Spire Home Care & Training Limited","12254019","http://opencorporates.com/companies/gb/12254019",""
"London Borough of Redbridge","http://opendatacommunities.org/doc/london-borough-council/redbridge","6BADULTSOCIA","Adult Social Care","6CLONGT1864","Long-Term Support 18 - 64 Years","REV","Revenue","R4441","Older People - Seven Kings","05-THIRD","Third Party Payments","05A","Independent units within the council","6502","Agency Homecare","91150850","202103",28/05/2020 00:00:00,355.81,"43419","Home Care Services","REDACTED DATA","Spire Home Care & Training Limited","12254019","http://opencorporates.com/companies/gb/12254019",""
"London Borough of Redbridge","http://opendatacommunities.org/doc/london-borough-council/redbridge","6BADULTSOCIA","Adult Social Care","6CLONGT1864","Long-Term Support 18 - 64 Years","REV","Revenue","R4441","Older People - Seven Kings","05-THIRD","Third Party Payments","05A","Independent units within the council","6502","Agency Homecare","91150924","202103",03/06/2020 00:00:00,269.79,"43419","Home Care Services","REDACTED DATA","Spire Home Care & Training Limited","12254019","http://opencorporates.com/companies/gb/12254019",""
"London Borough of Redbridge","http://opendatacommunities.org/doc/london-borough-council/redbridge","6BADULTSOCIA","Adult Social Care","6CLONGT1864","Long-Term Support 18 - 64 Years","REV","Revenue","R4441","Older People - Seven Kings","05-THIRD","Third Party Payments","05A","Independent units within the council","6502","Agency Homecare","91150989","202103",08/06/2020 00:00:00,78.2,"43419","Home Care Services","REDACTED DATA","Spire Home Care & Training Limited","12254019","http://opencorporates.com/companies/gb/12254019",""
"London Borough of Redbridge","http://opendatacommunities.org/doc/london-borough-council/redbridge","6BADULTSOCIA","Adult Social Care","6CLONGT1864","Long-Term Support 18 - 64 Years","REV","Revenue","R4441","Older People - Seven Kings","05-THIRD","Third Party Payments","05A","Independent units within the council","6502","Agency Homecare","91150904","202103",01/06/2020 00:00:00,54.74,"43419","Home Care Services","REDACTED DATA","Spire Home Care & Training Limited","12254019","http://opencorporates.com/companies/gb/12254019",""
"London Borough of Redbridge","http://opendatacommunities.org/doc/london-borough-council/redbridge","6BADULTSOCIA","Adult Social Care","6CLONGT1864","Long-Term Support 18 - 64 Years","REV","Revenue","R4441","Older People - Seven Kings","05-THIRD","Third Party Payments","05A","Independent units within the council","6502","Agency Homecare","91150865","202103",29/05/2020 00:00:00,269.79,"43419","Home Care Services","REDACTED DATA","Spire Home Care & Training Limited","12254019","http://opencorporates.com/companies/gb/12254019",""
"London Borough of Redbridge","http://opendatacommunities.org/doc/london-borough-council/redbridge","6BADULTSOCIA","Adult Social Care","6CLONGT1864","Long-Term Support 18 - 64 Years","REV","Revenue","R4441","Older People - Seven Kings","05-THIRD","Third Party Payments","05A","Independent units within the council","6502","Agency Homecare","91150968","202103",08/06/2020 00:00:00,218.96,"43419","Home Care Services","REDACTED DATA","Spire Home Care & Training Limited","12254019","http://opencorporates.com/companies/gb/12254019",""
"London Borough of Redbridge","http://opendatacommunities.org/doc/london-borough-council/redbridge","1BOTHEROPI&E","Other Operating Income & Expenditure","1CTRADSURDEF","Trading Account Surpluses & Deficits","REV","Revenue","R9555","CLM Waste","02-PREMISES","Premises","02H","Cleaning and domestic supplies","4626","Refuse and Recyc. Contractor Costs","70114174","202103",31/12/2019 00:00:00,81.9,"83610","Waste Paper Merchants and Collectors","REDACTED DATA","RESTORE DATASHRED LTD","9969408","http://opencorporates.com/companies/gb/9969408","240193143"
"London Borough of Redbridge","http://opendatacommunities.org/doc/london-borough-council/redbridge","1BOTHEROPI&E","Other Operating Income & Expenditure","1CTRADSURDEF","Trading Account Surpluses & Deficits","REV","Revenue","R9555","CLM Waste","02-PREMISES","Premises","02H","Cleaning and domestic supplies","4626","Refuse and Recyc. Contractor Costs","70114175","202103",31/03/2020 00:00:00,65.52,"83610","Waste Paper Merchants and Collectors","REDACTED DATA","RESTORE DATASHRED LTD","9969408","http://opencorporates.com/companies/gb/9969408","240193143"
"London Borough of Redbridge","http://opendatacommunities.org/doc/london-borough-council/redbridge","1BOTHEROPI&E","Other Operating Income & Expenditure","1CTRADSURDEF","Trading Account Surpluses & Deficits","REV","Revenue","R9555","CLM Waste","02-PREMISES","Premises","02H","Cleaning and domestic supplies","4626","Refuse and Recyc. Contractor Costs","70114176","202103",30/11/2019 00:00:00,404.91,"83610","Waste Paper Merchants and Collectors","REDACTED DATA","RESTORE DATASHRED LTD","9969408","http://opencorporates.com/companies/gb/9969408","240193143"
"London Borough of Redbridge","http://opendatacommunities.org/doc/london-borough-council/redbridge","1BOTHEROPI&E","Other Operating Income & Expenditure","1CTRADSURDEF","Trading Account Surpluses & Deficits","REV","Revenue","R9555","CLM Waste","02-PREMISES","Premises","02H","Cleaning and domestic supplies","4626","Refuse and Recyc. Contractor Costs","70114151","202103",30/06/2019 00:00:00,25.7,"83610","Waste Paper Merchants and Collectors","REDACTED DATA","RESTORE DATASHRED LTD","9969408","http://opencorporates.com/companies/gb/9969408","240193143"
"London Borough of Redbridge","http://opendatacommunities.org/doc/london-borough-council/redbridge","1BOTHEROPI&E","Other Operating Income & Expenditure","1CTRADSURDEF","Trading Account Surpluses & Deficits","REV","Revenue","R9555","CLM Waste","02-PREMISES","Premises","02H","Cleaning and domestic supplies","4626","Refuse and Recyc. Contractor Costs","70114156","202103",29/02/2020 00:00:00,226.37,"83610","Waste Paper Merchants and Collectors","REDACTED DATA","RESTORE DATASHRED LTD","9969408","http://opencorporates.com/companies/gb/9969408","240193143"
"London Borough of Redbridge","http://opendatacommunities.org/doc/london-borough-council/redbridge","1BOTHEROPI&E","Other Operating Income & Expenditure","1CTRADSURDEF","Trading Account Surpluses & Deficits","REV","Revenue","R9555","CLM Waste","02-PREMISES","Premises","02H","Cleaning and domestic supplies","4626","Refuse and Recyc. Contractor Costs","70114167","202103",31/05/2019 00:00:00,75,"83610","Waste Paper Merchants and Collectors","REDACTED DATA","RESTORE DATASHRED LTD","9969408","http://opencorporates.com/companies/gb/9969408","240193143"
"London Borough of Redbridge","http://opendatacommunities.org/doc/london-borough-council/redbridge","1BOTHEROPI&E","Other Operating Income & Expenditure","1CTRADSURDEF","Trading Account Surpluses & Deficits","REV","Revenue","R9555","CLM Waste","02-PREMISES","Premises","02H","Cleaning and domestic supplies","4626","Refuse and Recyc. Contractor Costs","70114172","202103",30/04/2020 00:00:00,65.52,"83610","Waste Paper Merchants and Collectors","REDACTED DATA","RESTORE DATASHRED LTD","9969408","http://opencorporates.com/companies/gb/9969408","240193143"
"London Borough of Redbridge","http://opendatacommunities.org/doc/london-borough-council/redbridge","1BOTHEROPI&E","Other Operating Income & Expenditure","1CTRADSURDEF","Trading Account Surpluses & Deficits","REV","Revenue","R9556","CLM Cleaning","02-PREMISES","Premises","02H","Cleaning and domestic supplies","4620","Cleaning Contract Payments","3596794","202103",31/05/2020 00:00:00,85,"15269","Cleaning Services - Commercial","REDACTED DATA","INTEGRA CLEANING GROUP LTD T/A INTEGRA CLEANING SERVICES","3431457","http://opencorporates.com/companies/gb/3431457","681517328"
"London Borough of Redbridge","http://opendatacommunities.org/doc/london-borough-council/redbridge","1BOTHEROPI&E","Other Operating Income & Expenditure","1CTRADSURDEF","Trading Account Surpluses & Deficits","REV","Revenue","R9556","CLM Cleaning","02-PREMISES","Premises","02H","Cleaning and domestic supplies","4620","Cleaning Contract Payments","3597216","202103",08/04/2020 00:00:00,23.98,"15269","Cleaning Services - Commercial","REDACTED DATA","INTEGRA CLEANING GROUP LTD T/A INTEGRA CLEANING SERVICES","3431457","http://opencorporates.com/companies/gb/3431457","681517328"
"London Borough of Redbridge","http://opendatacommunities.org/doc/london-borough-council/redbridge","1BOTHEROPI&E","Other Operating Income & Expenditure","1CTRADSURDEF","Trading Account Surpluses & Deficits","REV","Revenue","R9556","CLM Cleaning","02-PREMISES","Premises","02H","Cleaning and domestic supplies","4620","Cleaning Contract Payments","3597675","202103",05/06/2020 00:00:00,120,"15269","Cleaning Services - Commercial","REDACTED DATA","LEWIS & GRAVES PARTNERSHIP LLP","8953594","http://opencorporates.com/companies/gb/8953594","135553810"
"London Borough of Redbridge","http://opendatacommunities.org/doc/london-borough-council/redbridge","6BADULTSOCIA","Adult Social Care","6CLONGT1864","Long-Term Support 18 - 64 Years","REV","Revenue","R4441","Older People - Seven Kings","05-THIRD","Third Party Payments","05A","Independent units within the council","6502","Agency Homecare","91150969","202103",08/06/2020 00:00:00,230.69,"43419","Home Care Services","REDACTED DATA","Spire Home Care & Training Limited","12254019","http://opencorporates.com/companies/gb/12254019",""
"London Borough of Redbridge","http://opendatacommunities.org/doc/london-borough-council/redbridge","6BADULTSOCIA","Adult Social Care","6CLONGT1864","Long-Term Support 18 - 64 Years","REV","Revenue","R4441","Older People - Seven Kings","05-THIRD","Third Party Payments","05A","Independent units within the council","6502","Agency Homecare","91154036","202103",22/06/2020 00:00:00,54.74,"43419","Home Care Services","REDACTED DATA","Spire Home Care & Training Limited","12254019","http://opencorporates.com/companies/gb/12254019",""
"London Borough of Redbridge","http://opendatacommunities.org/doc/london-borough-council/redbridge","6BADULTSOCIA","Adult Social Care","6CLONGT1864","Long-Term Support 18 - 64 Years","REV","Revenue","R4441","Older People - Seven Kings","05-THIRD","Third Party Payments","05A","Independent units within the council","6502","Agency Homecare","91153941","202103",12/06/2020 00:00:00,254.15,"43419","Home Care Services","REDACTED DATA","Spire Home Care & Training Limited","12254019","http://opencorporates.com/companies/gb/12254019",""
"London Borough of Redbridge","http://opendatacommunities.org/doc/london-borough-council/redbridge","6BADULTSOCIA","Adult Social Care","6CLONGT1864","Long-Term Support 18 - 64 Years","REV","Revenue","R4441","Older People - Seven Kings","05-THIRD","Third Party Payments","05A","Independent units within the council","6502","Agency Homecare","91154016","202103",22/06/2020 00:00:00,109.48,"43419","Home Care Services","REDACTED DATA","Spire Home Care & Training Limited","12254019","http://opencorporates.com/companies/gb/12254019",""
"London Borough of Redbridge","http://opendatacommunities.org/doc/london-borough-council/redbridge","6BADULTSOCIA","Adult Social Care","6CLONGT1864","Long-Term Support 18 - 64 Years","REV","Revenue","R4441","Older People - Seven Kings","05-THIRD","Third Party Payments","05A","Independent units within the council","6502","Agency Homecare","91153962","202103",16/06/2020 00:00:00,109.48,"43419","Home Care Services","REDACTED DATA","Spire Home Care & Training Limited","12254019","http://opencorporates.com/companies/gb/12254019",""
"London Borough of Redbridge","http://opendatacommunities.org/doc/london-borough-council/redbridge","6BADULTSOCIA","Adult Social Care","6CLONGT1864","Long-Term Support 18 - 64 Years","REV","Revenue","R4441","Older People - Seven Kings","05-THIRD","Third Party Payments","05A","Independent units within the council","6502","Agency Homecare","91153984","202103",16/06/2020 00:00:00,54.74,"43419","Home Care Services","REDACTED DATA","Spire Home Care & Training Limited","12254019","http://opencorporates.com/companies/gb/12254019",""
"London Borough of Redbridge","http://opendatacommunities.org/doc/london-borough-council/redbridge","6BADULTSOCIA","Adult Social Care","6CLONGT1864","Long-Term Support 18 - 64 Years","REV","Revenue","R4441","Older People - Seven Kings","05-THIRD","Third Party Payments","05A","Independent units within the council","6502","Agency Homecare","91154004","202103",22/06/2020 00:00:00,269.79,"43419","Home Care Services","REDACTED DATA","Spire Home Care & Training Limited","12254019","http://opencorporates.com/companies/gb/12254019",""
"London Borough of Redbridge","http://opendatacommunities.org/doc/london-borough-council/redbridge","6BADULTSOCIA","Adult Social Care","6CLONGT1864","Long-Term Support 18 - 64 Years","REV","Revenue","R4441","Older People - Seven Kings","05-THIRD","Third Party Payments","05A","Independent units within the council","6502","Agency Homecare","91153954","202103",16/06/2020 00:00:00,273.7,"43419","Home Care Services","REDACTED DATA","Spire Home Care & Training Limited","12254019","http://opencorporates.com/companies/gb/12254019",""
"London Borough of Redbridge","http://opendatacommunities.org/doc/london-borough-council/redbridge","6BADULTSOCIA","Adult Social Care","6CLONGT1864","Long-Term Support 18 - 64 Years","REV","Revenue","R4441","Older People - Seven Kings","05-THIRD","Third Party Payments","05A","Independent units within the council","6502","Agency Homecare","91150982","202103",08/06/2020 00:00:00,273.7,"43419","Home Care Services","REDACTED DATA","Spire Home Care & Training Limited","12254019","http://opencorporates.com/companies/gb/12254019",""
"London Borough of Redbridge","http://opendatacommunities.org/doc/london-borough-council/redbridge","6BADULTSOCIA","Adult Social Care","6CLONGT1864","Long-Term Support 18 - 64 Years","REV","Revenue","R4441","Older People - Seven Kings","05-THIRD","Third Party Payments","05A","Independent units within the council","6502","Agency Homecare","91150983","202103",08/06/2020 00:00:00,54.74,"43419","Home Care Services","REDACTED DATA","Spire Home Care & Training Limited","12254019","http://opencorporates.com/companies/gb/12254019",""
"London Borough of Redbridge","http://opendatacommunities.org/doc/london-borough-council/redbridge","6BADULTSOCIA","Adult Social Care","6CLONGT1864","Long-Term Support 18 - 64 Years","REV","Revenue","R4441","Older People - Seven Kings","05-THIRD","Third Party Payments","05A","Independent units within the council","6502","Agency Homecare","91150976","202103",08/06/2020 00:00:00,269.79,"43419","Home Care Services","REDACTED DATA","Spire Home Care & Training Limited","12254019","http://opencorporates.com/companies/gb/12254019",""
"London Borough of Redbridge","http://opendatacommunities.org/doc/london-borough-council/redbridge","1BOTHEROPI&E","Other Operating Income & Expenditure","1CTRADSURDEF","Trading Account Surpluses & Deficits","REV","Revenue","R9556","CLM Cleaning","02-PREMISES","Premises","02H","Cleaning and domestic supplies","4620","Cleaning Contract Payments","3597664","202103",05/06/2020 00:00:00,65,"15269","Cleaning Services - Commercial","REDACTED DATA","LEWIS & GRAVES PARTNERSHIP LLP","8953594","http://opencorporates.com/companies/gb/8953594","135553810"
"London Borough of Redbridge","http://opendatacommunities.org/doc/london-borough-council/redbridge","1BOTHEROPI&E","Other Operating Income & Expenditure","1CTRADSURDEF","Trading Account Surpluses & Deficits","REV","Revenue","R9556","CLM Cleaning","02-PREMISES","Premises","02H","Cleaning and domestic supplies","4620","Cleaning Contract Payments","3598612","202103",19/06/2020 00:00:00,50,"15269","Cleaning Services - Commercial","REDACTED DATA","LEWIS & GRAVES PARTNERSHIP LLP","8953594","http://opencorporates.com/companies/gb/8953594","135553810"
"London Borough of Redbridge","http://opendatacommunities.org/doc/london-borough-council/redbridge","1BOTHEROPI&E","Other Operating Income & Expenditure","1CTRADSURDEF","Trading Account Surpluses & Deficits","REV","Revenue","R9556","CLM Cleaning","02-PREMISES","Premises","02H","Cleaning and domestic supplies","4620","Cleaning Contract Payments","3597668","202103",05/06/2020 00:00:00,240,"15269","Cleaning Services - Commercial","REDACTED DATA","LEWIS & GRAVES PARTNERSHIP LLP","8953594","http://opencorporates.com/companies/gb/8953594","135553810"
"London Borough of Redbridge","http://opendatacommunities.org/doc/london-borough-council/redbridge","1BOTHEROPI&E","Other Operating Income & Expenditure","1CTRADSURDEF","Trading Account Surpluses & Deficits","REV","Revenue","R9556","CLM Cleaning","02-PREMISES","Premises","02H","Cleaning and domestic supplies","4620","Cleaning Contract Payments","3597672","202103",05/06/2020 00:00:00,240,"15269","Cleaning Services - Commercial","REDACTED DATA","LEWIS & GRAVES PARTNERSHIP LLP","8953594","http://opencorporates.com/companies/gb/8953594","135553810"
"London Borough of Redbridge","http://opendatacommunities.org/doc/london-borough-council/redbridge","1BOTHEROPI&E","Other Operating Income & Expenditure","1CTRADSURDEF","Trading Account Surpluses & Deficits","REV","Revenue","R9557","CLM Utilities","02-PREMISES","Premises","02B","Energy costs","4000","Electricity","80037043","202103",28/05/2020 00:00:00,415.68,"39564","Gas Companies","REDACTED DATA","KENT COUNTY COUNCIL (GAS & ELECTRIC)","",,"204269191"
"London Borough of Redbridge","http://opendatacommunities.org/doc/london-borough-council/redbridge","1BOTHEROPI&E","Other Operating Income & Expenditure","1CTRADSURDEF","Trading Account Surpluses & Deficits","REV","Revenue","R9557","CLM Utilities","02-PREMISES","Premises","02B","Energy costs","4000","Electricity","80037181","202103",19/06/2020 00:00:00,318.86,"39564","Gas Companies","REDACTED DATA","KENT COUNTY COUNCIL (GAS & ELECTRIC)","",,"204269191"
"London Borough of Redbridge","http://opendatacommunities.org/doc/london-borough-council/redbridge","1BOTHEROPI&E","Other Operating Income & Expenditure","1CTRADSURDEF","Trading Account Surpluses & Deficits","REV","Revenue","R9557","CLM Utilities","02-PREMISES","Premises","02B","Energy costs","4000","Electricity","80037205","202103",23/06/2020 00:00:00,151.61,"39564","Gas Companies","REDACTED DATA","KENT COUNTY COUNCIL (GAS & ELECTRIC)","",,"204269191"
"London Borough of Redbridge","http://opendatacommunities.org/doc/london-borough-council/redbridge","1BOTHEROPI&E","Other Operating Income & Expenditure","1CTRADSURDEF","Trading Account Surpluses & Deficits","REV","Revenue","R9557","CLM Utilities","02-PREMISES","Premises","02B","Energy costs","4000","Electricity","80037154","202103",17/06/2020 00:00:00,262.88,"39564","Gas Companies","REDACTED DATA","KENT COUNTY COUNCIL (GAS & ELECTRIC)","",,"204269191"
"London Borough of Redbridge","http://opendatacommunities.org/doc/london-borough-council/redbridge","1BOTHEROPI&E","Other Operating Income & Expenditure","1CTRADSURDEF","Trading Account Surpluses & Deficits","REV","Revenue","R9557","CLM Utilities","02-PREMISES","Premises","02B","Energy costs","4000","Electricity","80037195","202103",17/06/2020 00:00:00,29.11,"39564","Gas Companies","REDACTED DATA","KENT COUNTY COUNCIL (GAS & ELECTRIC)","",,"204269191"
"London Borough of Redbridge","http://opendatacommunities.org/doc/london-borough-council/redbridge","1BOTHEROPI&E","Other Operating Income & Expenditure","1CTRADSURDEF","Trading Account Surpluses & Deficits","REV","Revenue","R9557","CLM Utilities","02-PREMISES","Premises","02B","Energy costs","4000","Electricity","80037151","202103",17/06/2020 00:00:00,84.35,"39564","Gas Companies","REDACTED DATA","KENT COUNTY COUNCIL (GAS & ELECTRIC)","",,"204269191"
